Workbook

Sheet Main
B10: 2019-11-04
B12: Sheet No. | C12: Template Name | D12: Summary
B13: 1 | C13: Future Intra | D13: For Intraday trading in F&O segment
B14: 2 | C14: Cash Intra | D14: For Intraday trading in cash market segment
B15: 3 | C15: Mid-cap Intra | D15: For Intraday trading in Mid-cap stocks
B16: 4 | C16: Bulk Deals | D16: Reveals Bulk Deals carried on NSE & BSE
B17: 5 | C17: Call Tracker
K27: `

Sheet Future Intra
M5: Back to Main Page
A6: FOR INTRA DAY TRADING | L6: =Main!B10 -> 2019-11-04
A9: Sr.no | B9: Sector | C9: Scrip | D9: CLOSE RATE | E9: Pivot Point | F9: Supports | I9: Resistances
B10: Sector | D10: Point | E10: Point | F10: S1 | G10: S2 | H10: S3 | I10: R1 | J10: R2 | K10: R3 | L10: HIGH | M10: LOW | N10: OI | O10: % Change in OI
A11: 1 | B11: Index | C11: BANKNIFTY | D11: 30374.10 | E11: 30295.55 | F11: 30141.65 | G11: 29909.20 | H11: 29755.30 | I11: 30528.00 | J11: 30681.90 | K11: 30914.35 | L11: 30449.45 | M11: 30063.1 | N11: 983540 | O11: 21.63%
A12: 2 | B12: Index | C12: NIFTY | D12: 11928.25 | E12: 11917.05 | F12: 11889.20 | G12: 11850.15 | H12: 11822.30 | I12: 11956.10 | J12: 11983.95 | K12: 12023.00 | L12: 11944.9 | M12: 11878 | N12: 15198525 | O12: 1.68%
A13: 3 | B13: Index | C13: NIFTYIT | D13: 15600.00 | E13: 15619.00 | F13: 15513.00 | G13: 15426.00 | H13: 15320.00 | I13: 15706.00 | J13: 15812.00 | K13: 15899.00 | L13: 15725 | M13: 15532 | N13: 7700 | O13: 16.67%
A14: 4 | B14: Cement | C14: ACC | D14: 1549.40 | E14: 1556.65 | F14: 1528.25 | G14: 1507.10 | H14: 1478.70 | I14: 1577.80 | J14: 1606.20 | K14: 1627.35 | L14: 1585.05 | M14: 1535.5 | N14: 2529200 | O14: 3.00%
A15: 5 | B15: Others | C15: ADANIENT | D15: 201.25 | E15: 200.47 | F15: 197.58 | G15: 193.92 | H15: 191.03 | I15: 204.13 | J15: 207.02 | K15: 210.68 | L15: 203.35 | M15: 196.8 | N15: 29524000 | O15: 0.08%
A16: 6 | B16: Others | C16: ADANIPORTS | D16: 391.65 | E16: 393.12 | F16: 387.68 | G16: 383.72 | H16: 378.28 | I16: 397.08 | J16: 402.52 | K16: 406.48 | L16: 398.55 | M16: 389.15 | N16: 15215000 | O16: 11.00%
A17: 7 | B17: Power | C17: ADANIPOWER | D17: 68.15 | E17: 67.53 | F17: 66.37 | G17: 64.58 | H17: 63.42 | I17: 69.32 | J17: 70.48 | K17: 72.27 | L17: 68.7 | M17: 65.75 | N17: 82020000 | O17: 2.60%
A18: 8 | B18: Automobile | C18: AMARAJABAT | D18: 690.55 | E18: 689.30 | F18: 681.35 | G18: 672.15 | H18: 664.20 | I18: 698.50 | J18: 706.45 | K18: 715.65 | L18: 697.25 | M18: 680.1 | N18: 1472200 | O18: 2.79%
A19: 9 | B19: Cement | C19: AMBUJACEM | D19: 202.05 | E19: 202.27 | F19: 199.88 | G19: 197.72 | H19: 195.33 | I19: 204.43 | J19: 206.82 | K19: 208.98 | L19: 204.65 | M19: 200.1 | N19: 20312500 | O19: 0.83%
A20: 10 | B20: Others | C20: APOLLOHOSP | D20: 1466.45 | E20: 1477.08 | F20: 1445.52 | G20: 1424.58 | H20: 1393.02 | I20: 1498.02 | J20: 1529.58 | K20: 1550.52 | L20: 1508.65 | M20: 1456.15 | N20: 1516500 | O20: 3.55%
A21: 11 | B21: Automobile | C21: APOLLOTYRE | D21: 188.35 | E21: 190.80 | F21: 184.75 | G21: 181.15 | H21: 175.10 | I21: 194.40 | J21: 200.45 | K21: 204.05 | L21: 196.85 | M21: 187.2 | N21: 6063000 | O21: 24.68%
A22: 12 | B22: Automobile | C22: ASHOKLEY | D22: 76.35 | E22: 76.52 | F22: 75.23 | G22: 74.12 | H22: 72.83 | I22: 77.63 | J22: 78.92 | K22: 80.03 | L22: 77.8 | M22: 75.4 | N22: 60036000 | O22: -0.87%
A23: 13 | B23: FMCG | C23: ASIANPAINT | D23: 1774.15 | E23: 1789.12 | F23: 1755.03 | G23: 1735.92 | H23: 1701.83 | I23: 1808.23 | J23: 1842.32 | K23: 1861.43 | L23: 1823.2 | M23: 1770 | N23: 7536000 | O23: 1.64%
A24: 14 | B24: Pharma | C24: AUROPHARMA | D24: 481.05 | E24: 477.55 | F24: 472.70 | G24: 464.35 | H24: 459.50 | I24: 485.90 | J24: 490.75 | K24: 499.10 | L24: 482.4 | M24: 469.2 | N24: 15810000 | O24: 0.78%
A25: 15 | B25: Banking | C25: AXISBANK | D25: 749.15 | E25: 743.38 | F25: 736.07 | G25: 722.98 | H25: 715.67 | I25: 756.47 | J25: 763.78 | K25: 776.87 | L25: 750.7 | M25: 730.3 | N25: 49914000 | O25: -0.48%
A26: 16 | B26: Automobile | C26: BAJAJ-AUTO | D26: 3244.50 | E26: 3250.42 | F26: 3206.08 | G26: 3167.67 | H26: 3123.33 | I26: 3288.83 | J26: 3333.17 | K26: 3371.58 | L26: 3294.75 | M26: 3212 | N26: 2254750 | O26: 3.63%
A27: 17 | B27: Finance | C27: BAJAJFINSV | D27: 8420.05 | E27: 8346.12 | F27: 8226.08 | G27: 8032.12 | H27: 7912.08 | I27: 8540.08 | J27: 8660.12 | K27: 8854.08 | L27: 8466.15 | M27: 8152.15 | N27: 1456500 | O27: 12.01%
A28: 18 | B28: Finance | C28: BAJFINANCE | D28: 4091.05 | E28: 4084.35 | F28: 4041.70 | G28: 3992.35 | H28: 3949.70 | I28: 4133.70 | J28: 4176.35 | K28: 4225.70 | L28: 4127 | M28: 4035 | N28: 6971250 | O28: 2.97%
A29: 19 | B29: Automobile | C29: BALKRISIND | D29: 871.15 | E29: 875.78 | F29: 861.57 | G29: 851.98 | H29: 837.77 | I29: 885.37 | J29: 899.58 | K29: 909.17 | L29: 890 | M29: 866.2 | N29: 1494400 | O29: 4.01%
A30: 20 | B30: Banking | C30: BANKBARODA | D30: 100.10 | E30: 99.57 | F30: 97.73 | G30: 95.37 | H30: 93.53 | I30: 101.93 | J30: 103.77 | K30: 106.13 | L30: 101.4 | M30: 97.2 | N30: 70272000 | O30: -3.43%
A31: 21 | B31: Banking | C31: BANKINDIA | D31: 68.95 | E31: 70.95 | F31: 66.20 | G31: 63.45 | H31: 58.70 | I31: 73.70 | J31: 78.45 | K31: 81.20 | L31: 75.7 | M31: 68.2 | N31: 29052000 | O31: 33.31%
A32: 22 | B32: FMCG | C32: BATAINDIA | D32: 1733.20 | E32: 1753.27 | F32: 1702.93 | G32: 1672.67 | H32: 1622.33 | I32: 1783.53 | J32: 1833.87 | K32: 1864.13 | L32: 1803.6 | M32: 1723 | N32: 2609200 | O32: -1.41%
A33: 23 | B33: Capital_Goods | C33: BEL | D33: 120.75 | E33: 120.37 | F33: 118.63 | G33: 116.52 | H33: 114.78 | I33: 122.48 | J33: 124.22 | K33: 126.33 | L33: 122.1 | M33: 118.25 | N33: 23916000 | O33: 2.05%
A34: 24 | B34: FMCG | C34: BERGEPAINT | D34: 483.55 | E34: 488.95 | F34: 470.40 | G34: 457.25 | H34: 438.70 | I34: 502.10 | J34: 520.65 | K34: 533.80 | L34: 507.5 | M34: 475.8 | N34: 7090600 | O34: 7.15%
A35: 25 | B35: Automobile | C35: BHARATFORG | D35: 459.45 | E35: 456.05 | F35: 450.75 | G35: 442.05 | H35: 436.75 | I35: 464.75 | J35: 470.05 | K35: 478.75 | L35: 461.35 | M35: 447.35 | N35: 6250800 | O35: 0.31%
A36: 26 | B36: Telecom | C36: BHARTIARTL | D36: 375.05 | E36: 372.67 | F36: 368.38 | G36: 361.72 | H36: 357.43 | I36: 379.33 | J36: 383.62 | K36: 390.28 | L36: 376.95 | M36: 366 | N36: 32683107 | O36: 0.24%
A37: 27 | B37: Capital_Goods | C37: BHEL | D37: 57.20 | E37: 57.13 | F37: 56.37 | G37: 55.53 | H37: 54.77 | I37: 57.97 | J37: 58.73 | K37: 59.57 | L37: 57.9 | M37: 56.3 | N37: 49867500 | O37: -1.09%
A38: 28 | B38: Pharma | C38: BIOCON | D38: 247.15 | E38: 246.87 | F38: 244.28 | G38: 241.42 | H38: 238.83 | I38: 249.73 | J38: 252.32 | K38: 255.18 | L38: 249.45 | M38: 244 | N38: 12034000 | O38: -0.50%
A39: 29 | B39: Automobile | C39: BOSCHLTD | D39: 15392.75 | E39: 15400.87 | F39: 15251.93 | G39: 15111.12 | H39: 14962.18 | I39: 15541.68 | J39: 15690.62 | K39: 15831.43 | L39: 15549.8 | M39: 15260.05 | N39: 151410 | O39: 0.38%
A40: 30 | B40: Oil_Gas | C40: BPCL | D40: 521.70 | E40: 522.30 | F40: 516.60 | G40: 511.50 | H40: 505.80 | I40: 527.40 | J40: 533.10 | K40: 538.20 | L40: 528 | M40: 517.2 | N40: 19702800 | O40: 1.44%
A41: 31 | B41: FMCG | C41: BRITANNIA | D41: 3281.85 | E41: 3274.32 | F41: 3253.63 | G41: 3225.42 | H41: 3204.73 | I41: 3302.53 | J41: 3323.22 | K41: 3351.43 | L41: 3295 | M41: 3246.1 | N41: 2001000 | O41: 0.20%
A42: 32 | B42: Pharma | C42: CADILAHC | D42: 256.25 | E42: 255.88 | F42: 252.87 | G42: 249.48 | H42: 246.47 | I42: 259.27 | J42: 262.28 | K42: 265.67 | L42: 258.9 | M42: 252.5 | N42: 7889600 | O42: 0.33%
A43: 33 | B43: Banking | C43: CANBK | D43: 207.90 | E43: 207.17 | F43: 203.58 | G43: 199.27 | H43: 195.68 | I43: 211.48 | J43: 215.07 | K43: 219.38 | L43: 210.75 | M43: 202.85 | N43: 10811000 | O43: 6.70%
A44: 34 | B44: Oil_Gas | C44: CASTROLIND | D44: 155.65 | E44: 155.00 | F44: 152.65 | G44: 149.65 | H44: 147.30 | I44: 158.00 | J44: 160.35 | K44: 163.35 | L44: 157.35 | M44: 152 | N44: 5225800 | O44: -1.41%
A45: 35 | B45: Textile | C45: CENTURYTEX | D45: 412.65 | E45: 416.15 | F45: 404.30 | G45: 395.95 | H45: 384.10 | I45: 424.50 | J45: 436.35 | K45: 444.70 | L45: 428 | M45: 407.8 | N45: 1771800 | O45: 10.23%
A46: 36 | B46: Power | C46: CESC | D46: 803.70 | E46: 806.05 | F46: 799.15 | G46: 794.60 | H46: 787.70 | I46: 810.60 | J46: 817.50 | K46: 822.05 | L46: 812.95 | M46: 801.5 | N46: 807200 | O46: 5.32%
A47: 37 | B47: Finance | C47: CHOLAFIN | D47: 310.75 | E47: 308.58 | F47: 304.57 | G47: 298.38 | H47: 294.37 | I47: 314.77 | J47: 318.78 | K47: 324.97 | L47: 312.6 | M47: 302.4 | N47: 2867500 | O47: 5.91%
A48: 38 | B48: Pharma | C48: CIPLA | D48: 471.30 | E48: 470.68 | F48: 465.62 | G48: 459.93 | H48: 454.87 | I48: 476.37 | J48: 481.43 | K48: 487.12 | L48: 475.75 | M48: 465 | N48: 14652000 | O48: 11.46%
A49: 39 | B49: Others | C49: COALINDIA | D49: 206.50 | E49: 205.28 | F49: 203.27 | G49: 200.03 | H49: 198.02 | I49: 208.52 | J49: 210.53 | K49: 213.77 | L49: 207.3 | M49: 202.05 | N49: 21969200 | O49: 5.07%
A50: 40 | B50: FMCG | C50: COLPAL | D50: 1529.50 | E50: 1536.97 | F50: 1516.08 | G50: 1502.67 | H50: 1481.78 | I50: 1550.38 | J50: 1571.27 | K50: 1584.68 | L50: 1557.85 | M50: 1523.55 | N50: 1712900 | O50: 3.29%
A51: 41 | B51: Others | C51: CONCOR | D51: 583.40 | E51: 584.78 | F51: 573.62 | G51: 563.83 | H51: 552.67 | I51: 594.57 | J51: 605.73 | K51: 615.52 | L51: 595.95 | M51: 575 | N51: 5103195 | O51: 0.43%
A52: 42 | B52: Capital_Goods | C52: CUMMINSIND | D52: 552.60 | E52: 552.35 | F52: 543.55 | G52: 534.50 | H52: 525.70 | I52: 561.40 | J52: 570.20 | K52: 579.25 | L52: 561.15 | M52: 543.3 | N52: 2080400 | O52: 10.57%
A53: 43 | B53: FMCG | C53: DABUR | D53: 464.70 | E53: 465.68 | F53: 459.02 | G53: 453.33 | H53: 446.67 | I53: 471.37 | J53: 478.03 | K53: 483.72 | L53: 472.35 | M53: 460 | N53: 10541250 | O53: 2.01%
A54: 44 | B54: Media | C54: DISHTV | D54: 16.30 | E54: 15.05 | F54: 13.55 | G54: 10.80 | H54: 9.30 | I54: 17.80 | J54: 19.30 | K54: 22.05 | L54: 16.55 | M54: 12.3 | N54: 102056300 | O54: 16.86%
A55: 45 | B55: Pharma | C55: DIVISLAB | D55: 1751.40 | E55: 1758.53 | F55: 1738.07 | G55: 1724.73 | H55: 1704.27 | I55: 1771.87 | J55: 1792.33 | K55: 1805.67 | L55: 1779 | M55: 1745.2 | N55: 2162800 | O55: -0.50%
A56: 46 | B56: Realty | C56: DLF | D56: 185.75 | E56: 185.43 | F56: 183.27 | G56: 180.78 | H56: 178.62 | I56: 187.92 | J56: 190.08 | K56: 192.57 | L56: 187.6 | M56: 182.95 | N56: 36022000 | O56: -0.74%
A57: 47 | B57: Pharma | C57: DRREDDY | D57: 2768.95 | E57: 2784.65 | F57: 2729.30 | G57: 2689.65 | H57: 2634.30 | I57: 2824.30 | J57: 2879.65 | K57: 2919.30 | L57: 2840 | M57: 2745 | N57: 3363500 | O57: 10.25%
A58: 48 | B58: Automobile | C58: EICHERMOT | D58: 22071.40 | E58: 22322.65 | F58: 21755.30 | G58: 21439.20 | H58: 20871.85 | I58: 22638.75 | J58: 23206.10 | K58: 23522.20 | L58: 22890 | M58: 22006.55 | N58: 300100 | O58: 3.14%
A59: 49 | B59: Finance | C59: EQUITAS | D59: 96.35 | E59: 95.85 | F59: 94.50 | G59: 92.65 | H59: 91.30 | I59: 97.70 | J59: 99.05 | K59: 100.90 | L59: 97.2 | M59: 94 | N59: 11128000 | O59: -1.97%
A60: 50 | B60: Automobile | C60: ESCORTS | D60: 660.10 | E60: 665.05 | F60: 650.55 | G60: 641.00 | H60: 626.50 | I60: 674.60 | J60: 689.10 | K60: 698.65 | L60: 679.55 | M60: 655.5 | N60: 5096300 | O60: 0.50%
A61: 51 | B61: Automobile | C61: EXIDEIND | D61: 193.95 | E61: 192.48 | F61: 190.17 | G61: 186.38 | H61: 184.07 | I61: 196.27 | J61: 198.58 | K61: 202.37 | L61: 194.8 | M61: 188.7 | N61: 11464800 | O61: -0.21%
A62: 52 | B62: Banking | C62: FEDERALBNK | D62: 86.45 | E62: 85.68 | F62: 84.52 | G62: 82.58 | H62: 81.42 | I62: 87.62 | J62: 88.78 | K62: 90.72 | L62: 86.85 | M62: 83.75 | N62: 54803000 | O62: 5.17%
A63: 53 | B63: Oil_Gas | C63: GAIL | D63: 135.75 | E63: 136.62 | F63: 134.53 | G63: 133.32 | H63: 131.23 | I63: 137.83 | J63: 139.92 | K63: 141.13 | L63: 138.7 | M63: 135.4 | N63: 42479976 | O63: -1.04%
A64: 54 | B64: Pharma | C64: GLENMARK | D64: 317.20 | E64: 318.42 | F64: 314.48 | G64: 311.77 | H64: 307.83 | I64: 321.13 | J64: 325.07 | K64: 327.78 | L64: 322.35 | M64: 315.7 | N64: 6015000 | O64: 0.52%
A65: 55 | B65: Infrastructure | C65: GMRINFRA | D65: 20.95 | E65: 20.93 | F65: 20.72 | G65: 20.48 | H65: 20.27 | I65: 21.17 | J65: 21.38 | K65: 21.62 | L65: 21.15 | M65: 20.7 | N65: 122040000 | O65: 0.89%
A66: 56 | B66: FMCG | C66: GODREJCP | D66: 739.45 | E66: 744.63 | F66: 731.07 | G66: 722.68 | H66: 709.12 | I66: 753.02 | J66: 766.58 | K66: 774.97 | L66: 758.2 | M66: 736.25 | N66: 3858400 | O66: 2.12%
A67: 57 | B67: Cement | C67: GRASIM | D67: 779.65 | E67: 782.58 | F67: 764.17 | G67: 748.68 | H67: 730.27 | I67: 798.07 | J67: 816.48 | K67: 831.97 | L67: 801 | M67: 767.1 | N67: 19765500 | O67: 3.85%
A68: 58 | B68: Others | C68: HAVELLS | D68: 691.45 | E68: 693.48 | F68: 687.22 | G68: 682.98 | H68: 676.72 | I68: 697.72 | J68: 703.98 | K68: 708.22 | L68: 699.75 | M68: 689.25 | N68: 5188000 | O68: -1.48%
A69: 59 | B69: Technology | C69: HCLTECH | D69: 1157.25 | E69: 1158.22 | F69: 1147.38 | G69: 1137.52 | H69: 1126.68 | I69: 1168.08 | J69: 1178.92 | K69: 1188.78 | L69: 1169.05 | M69: 1148.35 | N69: 10718400 | O69: -0.75%
A70: 60 | B70: Finance | C70: HDFC | D70: 2134.55 | E70: 2142.82 | F70: 2118.88 | G70: 2103.22 | H70: 2079.28 | I70: 2158.48 | J70: 2182.42 | K70: 2198.08 | L70: 2166.75 | M70: 2127.15 | N70: 33785750 | O70: 0.59%
A71: 61 | B71: Banking | C71: HDFCBANK | D71: 1241.55 | E71: 1238.95 | F71: 1233.10 | G71: 1224.65 | H71: 1218.80 | I71: 1247.40 | J71: 1253.25 | K71: 1261.70 | L71: 1244.8 | M71: 1230.5 | N71: 25273500 | O71: -2.78%
A72: 62 | B72: Automobile | C72: HEROMOTOCO | D72: 2718.50 | E72: 2723.60 | F72: 2676.70 | G72: 2634.90 | H72: 2588.00 | I72: 2765.40 | J72: 2812.30 | K72: 2854.10 | L72: 2770.5 | M72: 2681.8 | N72: 3256600 | O72: 4.81%
A73: 63 | B73: Technology | C73: HEXAWARE | D73: 339.40 | E73: 338.33 | F73: 334.07 | G73: 328.73 | H73: 324.47 | I73: 343.67 | J73: 347.93 | K73: 353.27 | L73: 342.6 | M73: 333 | N73: 1896000 | O73: -7.67%
A74: 64 | B74: Metals | C74: HINDALCO | D74: 194.60 | E74: 192.48 | F74: 189.82 | G74: 185.03 | H74: 182.37 | I74: 197.27 | J74: 199.93 | K74: 204.72 | L74: 195.15 | M74: 187.7 | N74: 25690000 | O74: 2.60%
A75: 65 | B75: Oil_Gas | C75: HINDPETRO | D75: 322.45 | E75: 321.70 | F75: 315.35 | G75: 308.25 | H75: 301.90 | I75: 328.80 | J75: 335.15 | K75: 342.25 | L75: 328.05 | M75: 314.6 | N75: 19473300 | O75: -1.28%
A76: 66 | B76: FMCG | C76: HINDUNILVR | D76: 2184.10 | E76: 2174.40 | F76: 2160.80 | G76: 2137.50 | H76: 2123.90 | I76: 2197.70 | J76: 2211.30 | K76: 2234.60 | L76: 2188 | M76: 2151.1 | N76: 8628300 | O76: 2.74%
A77: 67 | B77: Finance | C77: IBULHSGFIN | D77: 211.90 | E77: 212.45 | F77: 198.10 | G77: 184.30 | H77: 169.95 | I77: 226.25 | J77: 240.60 | K77: 254.40 | L77: 226.8 | M77: 198.65 | N77: 24180000 | O77: 3.33%
A78: 68 | B78: Banking | C78: ICICIBANK | D78: 464.20 | E78: 465.30 | F78: 462.00 | G78: 459.80 | H78: 456.50 | I78: 467.50 | J78: 470.80 | K78: 473.00 | L78: 468.6 | M78: 463.1 | N78: 75468250 | O78: 0.50%
A79: 69 | B79: Finance | C79: ICICIPRULI | D79: 508.20 | E79: 511.78 | F79: 502.42 | G79: 496.63 | H79: 487.27 | I79: 517.57 | J79: 526.93 | K79: 532.72 | L79: 521.15 | M79: 506 | N79: 6082500 | O79: -0.73%
A80: 70 | B80: Telecom | C80: IDEA | D80: 4.35 | E80: 4.30 | F80: 3.80 | G80: 3.25 | H80: 2.75 | I80: 4.85 | J80: 5.35 | K80: 5.90 | L80: 4.8 | M80: 3.75 | N80: 563836000 | O80: 9.00%
A81: 71 | B81: Banking | C81: IDFCFIRSTB | D81: 43.00 | E81: 42.77 | F81: 42.23 | G81: 41.47 | H81: 40.93 | I81: 43.53 | J81: 44.07 | K81: 44.83 | L81: 43.3 | M81: 42 | N81: 228108000 | O81: -0.09%
A82: 72 | B82: Oil_Gas | C82: IGL | D82: 393.05 | E82: 392.73 | F82: 389.57 | G82: 386.08 | H82: 382.92 | I82: 396.22 | J82: 399.38 | K82: 402.87 | L82: 395.9 | M82: 389.25 | N82: 2843500 | O82: 5.40%
A83: 73 | B83: Others | C83: INDIGO | D83: 1441.40 | E83: 1461.17 | F83: 1410.33 | G83: 1379.27 | H83: 1328.43 | I83: 1492.23 | J83: 1543.07 | K83: 1574.13 | L83: 1512 | M83: 1430.1 | N83: 3179400 | O83: 4.29%
A84: 74 | B84: Banking | C84: INDUSINDBK | D84: 1380.85 | E84: 1361.82 | F84: 1336.63 | G84: 1292.42 | H84: 1267.23 | I84: 1406.03 | J84: 1431.22 | K84: 1475.43 | L84: 1387 | M84: 1317.6 | N84: 12006000 | O84: -5.94%
A85: 75 | B85: Telecom | C85: INFRATEL | D85: 202.15 | E85: 199.02 | F85: 193.58 | G85: 185.02 | H85: 179.58 | I85: 207.58 | J85: 213.02 | K85: 221.58 | L85: 204.45 | M85: 190.45 | N85: 8658000 | O85: -9.34%
A86: 76 | B86: Technology | C86: INFY | D86: 689.95 | E86: 689.68 | F86: 684.37 | G86: 678.78 | H86: 673.47 | I86: 695.27 | J86: 700.58 | K86: 706.17 | L86: 695 | M86: 684.1 | N86: 51900000 | O86: -1.24%
A87: 77 | B87: Oil_Gas | C87: IOC | D87: 142.95 | E87: 142.38 | F87: 140.67 | G87: 138.38 | H87: 136.67 | I87: 144.67 | J87: 146.38 | K87: 148.67 | L87: 144.1 | M87: 140.1 | N87: 27098000 | O87: -0.89%
A88: 78 | B88: FMCG | C88: ITC | D88: 261.65 | E88: 261.47 | F88: 259.53 | G88: 257.42 | H88: 255.48 | I88: 263.58 | J88: 265.52 | K88: 267.63 | L88: 263.4 | M88: 259.35 | N88: 97766400 | O88: -0.52%
A89: 79 | B89: Metals | C89: JINDALSTEL | D89: 123.50 | E89: 121.38 | F89: 118.57 | G89: 113.63 | H89: 110.82 | I89: 126.32 | J89: 129.13 | K89: 134.07 | L89: 124.2 | M89: 116.45 | N89: 37097600 | O89: 6.86%
A90: 80 | B90: Metals | C90: JSWSTEEL | D90: 238.70 | E90: 235.60 | F90: 231.25 | G90: 223.80 | H90: 219.45 | I90: 243.05 | J90: 247.40 | K90: 254.85 | L90: 239.95 | M90: 228.15 | N90: 51334000 | O90: 0.98%
A91: 81 | B91: Others | C91: JUBLFOOD | D91: 1574.90 | E91: 1577.28 | F91: 1558.12 | G91: 1541.33 | H91: 1522.17 | I91: 1594.07 | J91: 1613.23 | K91: 1630.02 | L91: 1596.45 | M91: 1560.5 | N91: 2138500 | O91: -1.34%
A92: 82 | B92: Others | C92: JUSTDIAL | D92: 560.15 | E92: 570.62 | F92: 547.23 | G92: 534.32 | H92: 510.93 | I92: 583.53 | J92: 606.92 | K92: 619.83 | L92: 594 | M92: 557.7 | N92: 3544800 | O92: 32.15%
A93: 83 | B93: Banking | C93: KOTAKBANK | D93: 1581.85 | E93: 1577.10 | F93: 1567.40 | G93: 1552.95 | H93: 1543.25 | I93: 1591.55 | J93: 1601.25 | K93: 1615.70 | L93: 1586.8 | M93: 1562.65 | N93: 7348000 | O93: 3.98%
A94: 84 | B94: Finance | C94: L&TFH | D94: 97.30 | E94: 97.07 | F94: 95.73 | G94: 94.17 | H94: 92.83 | I94: 98.63 | J94: 99.97 | K94: 101.53 | L94: 98.4 | M94: 95.5 | N94: 35852600 | O94: 1.99%
A95: 85 | B95: Finance | C95: LICHSGFIN | D95: 427.65 | E95: 425.05 | F95: 416.90 | G95: 406.15 | H95: 398.00 | I95: 435.80 | J95: 443.95 | K95: 454.70 | L95: 433.2 | M95: 414.3 | N95: 9407200 | O95: 3.89%
A96: 86 | B96: Capital_Goods | C96: LT | D96: 1456.40 | E96: 1464.30 | F96: 1444.10 | G96: 1431.80 | H96: 1411.60 | I96: 1476.60 | J96: 1496.80 | K96: 1509.10 | L96: 1484.5 | M96: 1452 | N96: 11799375 | O96: 3.79%
A97: 87 | B97: Pharma | C97: LUPIN | D97: 768.10 | E97: 766.37 | F97: 754.83 | G97: 741.57 | H97: 730.03 | I97: 779.63 | J97: 791.17 | K97: 804.43 | L97: 777.9 | M97: 753.1 | N97: 6479200 | O97: 0.25%
A98: 88 | B98: Automobile | C98: M&M | D98: 592.00 | E98: 595.43 | F98: 578.87 | G98: 565.73 | H98: 549.17 | I98: 608.57 | J98: 625.13 | K98: 638.27 | L98: 612 | M98: 582.3 | N98: 20437000 | O98: 2.76%
A99: 89 | B99: Finance | C99: M&MFIN | D99: 358.05 | E99: 358.85 | F99: 354.15 | G99: 350.25 | H99: 345.55 | I99: 362.75 | J99: 367.45 | K99: 371.35 | L99: 363.55 | M99: 354.95 | N99: 12176250 | O99: 1.94%
A100: 90 | B100: Finance | C100: MANAPPURAM | D100: 172.05 | E100: 170.92 | F100: 168.78 | G100: 165.52 | H100: 163.38 | I100: 174.18 | J100: 176.32 | K100: 179.58 | L100: 173.05 | M100: 167.65 | N100: 12864000 | O100: 2.05%
A101: 91 | B101: FMCG | C101: MARICO | D101: 369.00 | E101: 368.65 | F101: 365.55 | G101: 362.10 | H101: 359.00 | I101: 372.10 | J101: 375.20 | K101: 378.65 | L101: 371.75 | M101: 365.2 | N101: 11736400 | O101: -0.94%
A102: 92 | B102: Automobile | C102: MARUTI | D102: 7632.10 | E102: 7620.22 | F102: 7569.88 | G102: 7507.67 | H102: 7457.33 | I102: 7682.43 | J102: 7732.77 | K102: 7794.98 | L102: 7670.55 | M102: 7558 | N102: 2543825 | O102: 0.47%
A103: 93 | B103: FMCG | C103: MCDOWELL-N | D103: 637.95 | E103: 636.02 | F103: 630.43 | G103: 622.92 | H103: 617.33 | I103: 643.53 | J103: 649.12 | K103: 656.63 | L103: 641.6 | M103: 628.5 | N103: 10341250 | O103: 0.07%
A104: 94 | B104: Finance | C104: MFSL | D104: 405.35 | E104: 407.32 | F104: 402.63 | G104: 399.92 | H104: 395.23 | I104: 410.03 | J104: 414.72 | K104: 417.43 | L104: 412 | M104: 404.6 | N104: 2834400 | O104: 3.42%
A105: 95 | B105: Oil_Gas | C105: MGL | D105: 1013.00 | E105: 1018.67 | F105: 1003.08 | G105: 993.17 | H105: 977.58 | I105: 1028.58 | J105: 1044.17 | K105: 1054.08 | L105: 1034.25 | M105: 1008.75 | N105: 1301400 | O105: -1.05%
A106: 96 | B106: Technology | C106: MINDTREE | D106: 723.60 | E106: 722.85 | F106: 715.70 | G106: 707.80 | H106: 700.65 | I106: 730.75 | J106: 737.90 | K106: 745.80 | L106: 730 | M106: 714.95 | N106: 1317600 | O106: 2.19%
A107: 97 | B107: Automobile | C107: MOTHERSUMI | D107: 122.30 | E107: 122.97 | F107: 120.93 | G107: 119.57 | H107: 117.53 | I107: 124.33 | J107: 126.37 | K107: 127.73 | L107: 125 | M107: 121.6 | N107: 26423100 | O107: 1.78%
A108: 98 | B108: Automobile | C108: MRF | D108: 65053.30 | E108: 65505.28 | F108: 64309.57 | G108: 63565.83 | H108: 62370.12 | I108: 66249.02 | J108: 67444.73 | K108: 68188.47 | L108: 66701 | M108: 64761.55 | N108: 19440 | O108: 5.37%
A109: 99 | B109: Finance | C109: MUTHOOTFIN | D109: 712.00 | E109: 713.27 | F109: 707.13 | G109: 702.27 | H109: 696.13 | I109: 718.13 | J109: 724.27 | K109: 729.13 | L109: 719.4 | M109: 708.4 | N109: 2427000 | O109: -0.25%
A110: 100 | B110: Metals | C110: NATIONALUM | D110: 44.90 | E110: 44.62 | F110: 43.98 | G110: 43.07 | H110: 42.43 | I110: 45.53 | J110: 46.17 | K110: 47.08 | L110: 45.25 | M110: 43.7 | N110: 48395100 | O110: 0.63%
A111: 101 | B111: Infrastructure | C111: NBCC | D111: 37.70 | E111: 37.78 | F111: 37.17 | G111: 36.63 | H111: 36.02 | I111: 38.32 | J111: 38.93 | K111: 39.47 | L111: 38.4 | M111: 37.25 | N111: 32096000 | O111: -0.19%
A112: 102 | B112: Infrastructure | C112: NCC | D112: 59.20 | E112: 59.15 | F112: 57.40 | G112: 55.60 | H112: 53.85 | I112: 60.95 | J112: 62.70 | K112: 64.50 | L112: 60.9 | M112: 57.35 | N112: 36370000 | O112: 4.68%
A113: 103 | B113: FMCG | C113: NESTLEIND | D113: 15008.70 | E113: 15002.83 | F113: 14916.97 | G113: 14825.23 | H113: 14739.37 | I113: 15094.57 | J113: 15180.43 | K113: 15272.17 | L113: 15088.7 | M113: 14911.1 | N113: 446050 | O113: 0.59%
A114: 104 | B114: Technology | C114: NIITTECH | D114: 1549.80 | E114: 1540.38 | F114: 1528.42 | G114: 1507.03 | H114: 1495.07 | I114: 1561.77 | J114: 1573.73 | K114: 1595.12 | L114: 1552.35 | M114: 1519 | N114: 540375 | O114: -2.90%
A115: 105 | B115: Metals | C115: NMDC | D115: 111.05 | E115: 110.87 | F115: 109.53 | G115: 108.02 | H115: 106.68 | I115: 112.38 | J115: 113.72 | K115: 115.23 | L115: 112.2 | M115: 109.35 | N115: 17880000 | O115: 0.78%
A116: 106 | B116: Power | C116: NTPC | D116: 122.10 | E116: 122.45 | F116: 121.50 | G116: 120.90 | H116: 119.95 | I116: 123.05 | J116: 124.00 | K116: 124.60 | L116: 123.4 | M116: 121.85 | N116: 45816000 | O116: 1.79%
A117: 107 | B117: Oil_Gas | C117: OIL | D117: 169.40 | E117: 170.47 | F117: 167.33 | G117: 165.27 | H117: 162.13 | I117: 172.53 | J117: 175.67 | K117: 177.73 | L117: 173.6 | M117: 168.4 | N117: 8912178 | O117: 0.65%
A118: 108 | B118: Oil_Gas | C118: ONGC | D118: 141.20 | E118: 140.37 | F118: 139.08 | G118: 136.97 | H118: 135.68 | I118: 142.48 | J118: 143.77 | K118: 145.88 | L118: 141.65 | M118: 138.25 | N118: 18817500 | O118: -1.41%
A119: 109 | B119: Textile | C119: PAGEIND | D119: 24391.50 | E119: 24607.37 | F119: 23964.68 | G119: 23537.87 | H119: 22895.18 | I119: 25034.18 | J119: 25676.87 | K119: 26103.68 | L119: 25250.05 | M119: 24180.55 | N119: 174175 | O119: 2.04%
A120: 110 | B120: Pharma | C120: PEL | D120: 1750.20 | E120: 1727.20 | F120: 1694.15 | G120: 1638.10 | H120: 1605.05 | I120: 1783.25 | J120: 1816.30 | K120: 1872.35 | L120: 1760.25 | M120: 1671.15 | N120: 5042192 | O120: -1.29%
A121: 111 | B121: Oil_Gas | C121: PETRONET | D121: 278.70 | E121: 279.28 | F121: 275.17 | G121: 271.63 | H121: 267.52 | I121: 282.82 | J121: 286.93 | K121: 290.47 | L121: 283.4 | M121: 275.75 | N121: 19407000 | O121: 3.21%
A122: 112 | B122: Finance | C122: PFC | D122: 110.70 | E122: 110.30 | F122: 108.45 | G122: 106.20 | H122: 104.35 | I122: 112.55 | J122: 114.40 | K122: 116.65 | L122: 112.15 | M122: 108.05 | N122: 33523400 | O122: -0.90%
A123: 113 | B123: FMCG | C123: PIDILITIND | D123: 1399.60 | E123: 1407.20 | F123: 1387.40 | G123: 1375.20 | H123: 1355.40 | I123: 1419.40 | J123: 1439.20 | K123: 1451.40 | L123: 1427 | M123: 1395 | N123: 3648000 | O123: 1.11%
A124: 114 | B124: Banking | C124: PNB | D124: 67.25 | E124: 66.88 | F124: 65.67 | G124: 64.08 | H124: 62.87 | I124: 68.47 | J124: 69.68 | K124: 71.27 | L124: 68.1 | M124: 65.3 | N124: 98700300 | O124: 1.45%
A125: 115 | B125: Power | C125: POWERGRID | D125: 198.30 | E125: 198.80 | F125: 197.20 | G125: 196.10 | H125: 194.50 | I125: 199.90 | J125: 201.50 | K125: 202.60 | L125: 200.4 | M125: 197.7 | N125: 28676000 | O125: 3.97%
A126: 116 | B126: Media | C126: PVR | D126: 1789.60 | E126: 1795.67 | F126: 1774.83 | G126: 1760.07 | H126: 1739.23 | I126: 1810.43 | J126: 1831.27 | K126: 1846.03 | L126: 1816.5 | M126: 1780.9 | N126: 1204800 | O126: 3.12%
A127: 117 | B127: Cement | C127: RAMCOCEM | D127: 804.05 | E127: 801.40 | F127: 787.80 | G127: 771.55 | H127: 757.95 | I127: 817.65 | J127: 831.25 | K127: 847.50 | L127: 815 | M127: 785.15 | N127: 1210400 | O127: -2.95%
A128: 118 | B128: Banking | C128: RBLBANK | D128: 309.05 | E128: 312.48 | F128: 300.62 | G128: 292.18 | H128: 280.32 | I128: 320.92 | J128: 332.78 | K128: 341.22 | L128: 324.35 | M128: 304.05 | N128: 9891900 | O128: 1.91%
A129: 119 | B129: Power | C129: RECLTD | D129: 141.55 | E129: 141.23 | F129: 139.82 | G129: 138.08 | H129: 136.67 | I129: 142.97 | J129: 144.38 | K129: 146.12 | L129: 142.65 | M129: 139.5 | N129: 20580000 | O129: 0.03%
A130: 120 | B130: Oil_Gas | C130: RELIANCE | D130: 1463.35 | E130: 1458.62 | F130: 1450.53 | G130: 1437.72 | H130: 1429.63 | I130: 1471.43 | J130: 1479.52 | K130: 1492.33 | L130: 1466.7 | M130: 1445.8 | N130: 49779500 | O130: -0.34%
A131: 121 | B131: Metals | C131: SAIL | D131: 39.05 | E131: 38.43 | F131: 37.27 | G131: 35.48 | H131: 34.32 | I131: 40.22 | J131: 41.38 | K131: 43.17 | L131: 39.6 | M131: 36.65 | N131: 79326500 | O131: 2.38%
A132: 122 | B132: Banking | C132: SBIN | D132: 313.85 | E132: 312.87 | F132: 310.28 | G132: 306.72 | H132: 304.13 | I132: 316.43 | J132: 319.02 | K132: 322.58 | L132: 315.45 | M132: 309.3 | N132: 88662000 | O132: 1.85%
A133: 123 | B133: Cement | C133: SHREECEM | D133: 20118.30 | E133: 20114.08 | F133: 19906.22 | G133: 19694.13 | H133: 19486.27 | I133: 20326.17 | J133: 20534.03 | K133: 20746.12 | L133: 20321.95 | M133: 19902 | N133: 148300 | O133: 2.81%
A134: 124 | B134: Capital_Goods | C134: SIEMENS | D134: 1673.35 | E134: 1678.35 | F134: 1661.70 | G134: 1650.05 | H134: 1633.40 | I134: 1690.00 | J134: 1706.65 | K134: 1718.30 | L134: 1695 | M134: 1666.7 | N134: 1305150 | O134: 4.86%
A135: 125 | B135: Textile | C135: SRF | D135: 2907.60 | E135: 2898.48 | F135: 2869.02 | G135: 2830.43 | H135: 2800.97 | I135: 2937.07 | J135: 2966.53 | K135: 3005.12 | L135: 2927.95 | M135: 2859.9 | N135: 946750 | O135: -2.45%
A136: 126 | B136: Finance | C136: SRTRANSFIN | D136: 1144.25 | E136: 1147.22 | F136: 1132.43 | G136: 1120.62 | H136: 1105.83 | I136: 1159.03 | J136: 1173.82 | K136: 1185.63 | L136: 1162 | M136: 1135.4 | N136: 3969600 | O136: 0.92%
A137: 127 | B137: Pharma | C137: SUNPHARMA | D137: 439.50 | E137: 438.40 | F137: 434.90 | G137: 430.30 | H137: 426.80 | I137: 443.00 | J137: 446.50 | K137: 451.10 | L137: 441.9 | M137: 433.8 | N137: 58731650 | O137: -0.82%
A138: 128 | B138: Media | C138: SUNTV | D138: 542.85 | E138: 540.48 | F138: 528.97 | G138: 515.08 | H138: 503.57 | I138: 554.37 | J138: 565.88 | K138: 579.77 | L138: 552 | M138: 526.6 | N138: 3031200 | O138: 14.43%
A139: 129 | B139: Fertilisers | C139: TATACHEM | D139: 636.95 | E139: 637.67 | F139: 628.98 | G139: 621.02 | H139: 612.33 | I139: 645.63 | J139: 654.32 | K139: 662.28 | L139: 646.35 | M139: 629.7 | N139: 2515500 | O139: 3.48%
A140: 130 | B140: Technology | C140: TATAELXSI | D140: 829.55 | E140: 827.07 | F140: 817.68 | G140: 805.82 | H140: 796.43 | I140: 838.93 | J140: 848.32 | K140: 860.18 | L140: 836.45 | M140: 815.2 | N140: 1113000 | O140: -3.03%
A141: 131 | B141: FMCG | C141: TATAGLOBAL | D141: 306.45 | E141: 311.82 | F141: 300.63 | G141: 294.82 | H141: 283.63 | I141: 317.63 | J141: 328.82 | K141: 334.63 | L141: 323 | M141: 306 | N141: 12244500 | O141: 0.11%
A142: 132 | B142: Automobile | C142: TATAMOTORS | D142: 175.50 | E142: 175.58 | F142: 172.47 | G142: 169.43 | H142: 166.32 | I142: 178.62 | J142: 181.73 | K142: 184.77 | L142: 178.7 | M142: 172.55 | N142: 59575300 | O142: 1.81%
A143: 133 | B143: Automobile | C143: TATAMTRDVR | D143: 81.35 | E143: 81.55 | F143: 79.80 | G143: 78.25 | H143: 76.50 | I143: 83.10 | J143: 84.85 | K143: 86.40 | L143: 83.3 | M143: 80 | N143: 33990000 | O143: -4.45%
A144: 134 | B144: Power | C144: TATAPOWER | D144: 59.85 | E144: 59.95 | F144: 59.30 | G144: 58.75 | H144: 58.10 | I144: 60.50 | J144: 61.15 | K144: 61.70 | L144: 60.6 | M144: 59.4 | N144: 54621000 | O144: 1.68%
A145: 135 | B145: Metals | C145: TATASTEEL | D145: 399.55 | E145: 393.30 | F145: 385.00 | G145: 370.45 | H145: 362.15 | I145: 407.85 | J145: 416.15 | K145: 430.70 | L145: 401.6 | M145: 378.75 | N145: 23158886 | O145: -0.13%
A146: 136 | B146: Technology | C146: TCS | D146: 2211.55 | E146: 2232.18 | F146: 2185.37 | G146: 2159.18 | H146: 2112.37 | I146: 2258.37 | J146: 2305.18 | K146: 2331.37 | L146: 2279 | M146: 2206 | N146: 18228000 | O146: 0.74%
A147: 137 | B147: Technology | C147: TECHM | D147: 764.00 | E147: 758.05 | F147: 749.10 | G147: 734.20 | H147: 725.25 | I147: 772.95 | J147: 781.90 | K147: 796.80 | L147: 767 | M147: 743.15 | N147: 19820400 | O147: 11.36%
A148: 138 | B148: FMCG | C148: TITAN | D148: 1307.20 | E148: 1311.62 | F148: 1284.23 | G148: 1261.27 | H148: 1233.88 | I148: 1334.58 | J148: 1361.97 | K148: 1384.93 | L148: 1339 | M148: 1288.65 | N148: 9887250 | O148: 1.67%
A149: 139 | B149: Pharma | C149: TORNTPHARM | D149: 1808.55 | E149: 1802.72 | F149: 1786.13 | G149: 1763.72 | H149: 1747.13 | I149: 1825.13 | J149: 1841.72 | K149: 1864.13 | L149: 1819.3 | M149: 1780.3 | N149: 369000 | O149: -1.34%
A150: 140 | B150: Power | C150: TORNTPOWER | D150: 282.10 | E150: 283.85 | F150: 279.40 | G150: 276.70 | H150: 272.25 | I150: 286.55 | J150: 291.00 | K150: 293.70 | L150: 288.3 | M150: 281.15 | N150: 4185000 | O150: 7.23%
A151: 141 | B151: Automobile | C151: TVSMOTOR | D151: 455.90 | E151: 459.43 | F151: 443.42 | G151: 430.93 | H151: 414.92 | I151: 471.92 | J151: 487.93 | K151: 500.42 | L151: 475.45 | M151: 446.95 | N151: 8519750 | O151: 7.42%
A152: 142 | B152: FMCG | C152: UBL | D152: 1253.75 | E152: 1260.48 | F152: 1238.87 | G152: 1223.98 | H152: 1202.37 | I152: 1275.37 | J152: 1296.98 | K152: 1311.87 | L152: 1282.1 | M152: 1245.6 | N152: 2091600 | O152: 7.44%
A153: 143 | B153: Finance | C153: UJJIVAN | D153: 272.90 | E153: 273.50 | F153: 269.45 | G153: 266.00 | H153: 261.95 | I153: 276.95 | J153: 281.00 | K153: 284.45 | L153: 277.55 | M153: 270.05 | N153: 8276800 | O153: 0.74%
A154: 144 | B154: Cement | C154: ULTRACEMCO | D154: 4181.90 | E154: 4174.15 | F154: 4153.20 | G154: 4124.50 | H154: 4103.55 | I154: 4202.85 | J154: 4223.80 | K154: 4252.50 | L154: 4195.1 | M154: 4145.45 | N154: 2459000 | O154: 0.79%
A155: 145 | B155: Banking | C155: UNIONBANK | D155: 58.95 | E155: 58.78 | F155: 57.32 | G155: 55.68 | H155: 54.22 | I155: 60.42 | J155: 61.88 | K155: 63.52 | L155: 60.25 | M155: 57.15 | N155: 30632000 | O155: -4.58%
A156: 146 | B156: Fertilisers | C156: UPL | D156: 590.95 | E156: 594.20 | F156: 584.85 | G156: 578.75 | H156: 569.40 | I156: 600.30 | J156: 609.65 | K156: 615.75 | L156: 603.55 | M156: 588.1 | N156: 13683600 | O156: 1.77%
A157: 147 | B157: Metals | C157: VEDL | D157: 153.65 | E157: 151.78 | F157: 149.17 | G157: 144.68 | H157: 142.07 | I157: 156.27 | J157: 158.88 | K157: 163.37 | L157: 154.4 | M157: 147.3 | N157: 57226000 | O157: 7.68%
A158: 148 | B158: Capital_Goods | C158: VOLTAS | D158: 699.05 | E158: 702.35 | F158: 694.25 | G158: 689.45 | H158: 681.35 | I158: 707.15 | J158: 715.25 | K158: 720.05 | L158: 710.45 | M158: 697.55 | N158: 1715000 | O158: 4.00%
A159: 149 | B159: Technology | C159: WIPRO | D159: 259.20 | E159: 259.48 | F159: 257.17 | G159: 255.13 | H159: 252.82 | I159: 261.52 | J159: 263.83 | K159: 265.87 | L159: 261.8 | M159: 257.45 | N159: 24931200 | O159: 1.75%
A160: 150 | B160: Banking | C160: YESBANK | D160: 66.45 | E160: 67.52 | F160: 63.18 | G160: 59.92 | H160: 55.58 | I160: 70.78 | J160: 75.12 | K160: 78.38 | L160: 71.85 | M160: 64.25 | N160: 148152400 | O160: 0.81%
A161: 151 | B161: Media | C161: ZEEL | D161: 309.35 | E161: 294.50 | F161: 277.00 | G161: 244.65 | H161: 227.15 | I161: 326.85 | J161: 344.35 | K161: 376.70 | L161: 312 | M161: 262.15 | N161: 28140200 | O161: 3.22%
A178: Pivot Point: This is trigger point for intra day buy/sell based on the price range of the previous day
A179: As per the tool,the trader should take BUY position just above Pivot and keep the stop loss of pivot point and the first target would be Resistance 1(R1)
A180: If R1 is crossed then R2 becomes the next target with stop loss of at R1
A181: Similarly if price goes below pivot point then the trader should sell and keep a stop loss of pivot point and the first target would be S1
A182: If S1 is crossed then S2 becomes the next target with stop loss of at S1
A184: Disclaimer:
A185: This document has been prepared by the Retail Research Desk of Asit C Mehta
A186: Investment Intermediates Ltd. and is meant for use of the recipient only
A187: and is not for circulation. This document is not to be reported or
A188: copied or made available to others. It should not be considered to be
A189: taken as an offer to sell or a solicitation to buy any security. The
A190: information contained herein is from sources believed reliable. We do
A191: not represent that it is accurate or complete and it should not be
A192: relied upon as such. We may from time to time have positions in and buy
A193: and sell securities referred to herein

Sheet Cash Intra
M5: Back to Main Page
A6: FOR INTRA DAY TRADING | K6: =Main!B10 -> 2019-11-04
A8: Sr.no | B8: Scrip | C8: CLOSE RATE | D8: Pivot Point | E8: Supports | H8: Resistances
C9: Point | E9: S1 | F9: S2 | G9: S3 | H9: R1 | I9: R2 | J9: R3 | K9: HIGH | L9: LOW | M9: Total Trade Quanity in Lakhs
A10: 1 | B10: Nifty 50 | C10: 11890.6 | D10: 11884.08 | E10: 11849.87 | F10: 11809.13 | G10: 11774.92 | H10: 11924.82 | I10: 11959.03 | J10: 11999.77 | K10: 11918.3 | L10: 11843.35
A11: 2 | B11: Nifty Bank | C11: 30330.55 | D11: 30256.15 | E11: 30103.30 | F11: 29876.05 | G11: 29723.20 | H11: 30483.40 | I11: 30636.25 | J11: 30863.50 | K11: 30409 | L11: 30028.9
A12: 3 | B12: Nifty CPSE | C12: 2054.85 | D12: 2047.32 | E12: 2036.48 | F12: 2018.12 | G12: 2007.28 | H12: 2065.68 | I12: 2076.52 | J12: 2094.88 | K12: 2058.15 | L12: 2028.95
A13: 4 | B13: Nifty Infra | C13: 3302.45 | D13: 3307.77 | E13: 3295.68 | F13: 3288.92 | G13: 3276.83 | H13: 3314.53 | I13: 3326.62 | J13: 3333.38 | K13: 3319.85 | L13: 3301
A14: 5 | B14: Nifty IT | C14: 15471.2 | D14: 15506.43 | E14: 15376.57 | F14: 15281.93 | G14: 15152.07 | H14: 15601.07 | I14: 15730.93 | J14: 15825.57 | K14: 15636.3 | L14: 15411.8
A15: 6 | B15: Nifty PSE | C15: 3430.85 | D15: 3427.97 | E15: 3416.53 | F15: 3402.22 | G15: 3390.78 | H15: 3442.28 | I15: 3453.72 | J15: 3468.03 | K15: 3439.4 | L15: 3413.65
A16: 7 | B16: Nifty Midcap 50 | C16: 4657.45 | D16: 4661.32 | E16: 4636.88 | F16: 4616.32 | G16: 4591.88 | H16: 4681.88 | I16: 4706.32 | J16: 4726.88 | K16: 4685.75 | L16: 4640.75
A17: 8 | B17: ACC | C17: 1542.2 | D17: 1548.60 | E17: 1521.60 | F17: 1501.00 | G17: 1474.00 | H17: 1569.20 | I17: 1596.20 | J17: 1616.80 | K17: 1575.6 | L17: 1528 | M17: 8.87153
A18: 9 | B18: AUBANK | C18: 688.4 | D18: 683.15 | E18: 671.30 | F18: 654.20 | G18: 642.35 | H18: 700.25 | I18: 712.10 | J18: 729.20 | K18: 695 | L18: 666.05 | M18: 4.77756
A19: 10 | B19: ADANIPORTS | C19: 389.75 | D19: 391.62 | E19: 385.98 | F19: 382.22 | G19: 376.58 | H19: 395.38 | I19: 401.02 | J19: 404.78 | K19: 397.25 | L19: 387.85 | M19: 36.65336
A20: 11 | B20: ADANIPOWER | C20: 67.9 | D20: 67.35 | E20: 66.15 | F20: 64.40 | G20: 63.20 | H20: 69.10 | I20: 70.30 | J20: 72.05 | K20: 68.55 | L20: 65.6 | M20: 98.22268
A21: 12 | B21: ABCAPITAL | C21: 83 | D21: 83.30 | E21: 81.90 | F21: 80.80 | G21: 79.40 | H21: 84.40 | I21: 85.80 | J21: 86.90 | K21: 84.7 | L21: 82.2 | M21: 36.7375
A22: 13 | B22: ABFRL | C22: 211 | D22: 211.13 | E22: 209.02 | F22: 207.03 | G22: 204.92 | H22: 213.12 | I22: 215.23 | J22: 217.22 | K22: 213.25 | L22: 209.15 | M22: 2.37461
A23: 14 | B23: AJANTPHARM | C23: 1062.8 | D23: 1059.48 | E23: 1044.02 | F23: 1025.23 | G23: 1009.77 | H23: 1078.27 | I23: 1093.73 | J23: 1112.52 | K23: 1074.95 | L23: 1040.7 | M23: 0.50455
A24: 15 | B24: ALKEM | C24: 2000.15 | D24: 1999.52 | E24: 1985.63 | F24: 1971.12 | G24: 1957.23 | H24: 2014.03 | I24: 2027.92 | J24: 2042.43 | K24: 2013.4 | L24: 1985 | M24: 0.53263
A25: 16 | B25: ALBK | C25: 27.3 | D25: 27.18 | E25: 26.62 | F25: 25.93 | G25: 25.37 | H25: 27.87 | I25: 28.43 | J25: 29.12 | K25: 27.75 | L25: 26.5 | M25: 14.5818
A26: 17 | B26: AMARAJABAT | C26: 689.75 | D26: 688.00 | E26: 680.30 | F26: 670.85 | G26: 663.15 | H26: 697.45 | I26: 705.15 | J26: 714.60 | K26: 695.7 | L26: 678.55 | M26: 4.38764
A27: 18 | B27: AMBUJACEM | C27: 201.6 | D27: 201.80 | E27: 199.60 | F27: 197.60 | G27: 195.40 | H27: 203.80 | I27: 206.00 | J27: 208.00 | K27: 204 | L27: 199.8 | M27: 27.7043
A28: 19 | B28: APOLLOHOSP | C28: 1460 | D28: 1472.70 | E28: 1437.40 | F28: 1414.80 | G28: 1379.50 | H28: 1495.30 | I28: 1530.60 | J28: 1553.20 | K28: 1508 | L28: 1450.1 | M28: 5.51152
A29: 20 | B29: APOLLOTYRE | C29: 189.2 | D29: 191.35 | E29: 185.95 | F29: 182.70 | G29: 177.30 | H29: 194.60 | I29: 200.00 | J29: 203.25 | K29: 196.75 | L29: 188.1 | M29: 49.95111
A30: 21 | B30: ASHOKLEY | C30: 75.95 | D30: 76.20 | E30: 74.95 | F30: 73.95 | G30: 72.70 | H30: 77.20 | I30: 78.45 | J30: 79.45 | K30: 77.45 | L30: 75.2 | M30: 248.61078
A31: 22 | B31: ASIANPAINT | C31: 1766.35 | D31: 1783.12 | E31: 1745.23 | F31: 1724.12 | G31: 1686.23 | H31: 1804.23 | I31: 1842.12 | J31: 1863.23 | K31: 1821 | L31: 1762 | M31: 15.2766
A32: 23 | B32: AUROPHARMA | C32: 480.5 | D32: 476.97 | E32: 471.03 | F32: 461.57 | G32: 455.63 | H32: 486.43 | I32: 492.37 | J32: 501.83 | K32: 482.9 | L32: 467.5 | M32: 29.83662
A33: 24 | B33: DMART | C33: 1966.6 | D33: 1976.38 | E33: 1950.82 | F33: 1935.03 | G33: 1909.47 | H33: 1992.17 | I33: 2017.73 | J33: 2033.52 | K33: 2001.95 | L33: 1960.6 | M33: 2.31689
A34: 25 | B34: AXISBANK | C34: 748.3 | D34: 742.13 | E34: 734.27 | F34: 720.23 | G34: 712.37 | H34: 756.17 | I34: 764.03 | J34: 778.07 | K34: 750 | L34: 728.1 | M34: 84.84197
A35: 26 | B35: BAJAJ-AUTO | C35: 3232.65 | D35: 3237.22 | E35: 3185.43 | F35: 3138.22 | G35: 3086.43 | H35: 3284.43 | I35: 3336.22 | J35: 3383.43 | K35: 3289 | L35: 3190 | M35: 7.48062
A36: 27 | B36: BAJFINANCE | C36: 4069.85 | D36: 4066.95 | E36: 4023.90 | F36: 3977.95 | G36: 3934.90 | H36: 4112.90 | I36: 4155.95 | J36: 4201.90 | K36: 4110 | L36: 4021 | M36: 18.75612
A37: 28 | B37: BAJAJFINSV | C37: 8384.75 | D37: 8308.08 | E37: 8187.17 | F37: 7989.58 | G37: 7868.67 | H37: 8505.67 | I37: 8626.58 | J37: 8824.17 | K37: 8429 | L37: 8110.5 | M37: 6.56439
A38: 29 | B38: BAJAJHLDNG | C38: 3698.2 | D38: 3701.75 | E38: 3665.40 | F38: 3632.60 | G38: 3596.25 | H38: 3734.55 | I38: 3770.90 | J38: 3803.70 | K38: 3738.1 | L38: 3668.95 | M38: 0.55997
A39: 30 | B39: BALKRISIND | C39: 872.8 | D39: 880.07 | E39: 860.33 | F39: 847.87 | G39: 828.13 | H39: 892.53 | I39: 912.27 | J39: 924.73 | K39: 899.8 | L39: 867.6 | M39: 4.86874
A40: 31 | B40: BANDHANBNK | C40: 599 | D40: 604.03 | E40: 589.17 | F40: 579.33 | G40: 564.47 | H40: 613.87 | I40: 628.73 | J40: 638.57 | K40: 618.9 | L40: 594.2 | M40: 17.40679
A41: 32 | B41: BANKBARODA | C41: 100 | D41: 99.28 | E41: 97.62 | F41: 95.23 | G41: 93.57 | H41: 101.67 | I41: 103.33 | J41: 105.72 | K41: 100.95 | L41: 96.9 | M41: 398.69804
A42: 33 | B42: BANKINDIA | C42: 71 | D42: 72.32 | E42: 69.08 | F42: 67.17 | G42: 63.93 | H42: 74.23 | I42: 77.47 | J42: 79.38 | K42: 75.55 | L42: 70.4 | M42: 402.26962
A43: 34 | B43: BATAINDIA | C43: 1741.25 | D43: 1761.43 | E43: 1712.72 | F43: 1684.18 | G43: 1635.47 | H43: 1789.97 | I43: 1838.68 | J43: 1867.22 | K43: 1810.15 | L43: 1732.9 | M43: 8.4164
A44: 35 | B44: BERGEPAINT | C44: 508.5 | D44: 512.93 | E44: 498.22 | F44: 487.93 | G44: 473.22 | H44: 523.22 | I44: 537.93 | J44: 548.22 | K44: 527.65 | L44: 502.65 | M44: 38.24378
A45: 36 | B45: BEL | C45: 120.4 | D45: 120.08 | E45: 118.42 | F45: 116.43 | G45: 114.77 | H45: 122.07 | I45: 123.73 | J45: 125.72 | K45: 121.75 | L45: 118.1 | M45: 85.65591
A46: 37 | B46: BHARATFORG | C46: 458.75 | D46: 455.62 | E46: 451.23 | F46: 443.72 | G46: 439.33 | H46: 463.13 | I46: 467.52 | J46: 475.03 | K46: 460 | L46: 448.1 | M46: 10.33117
A47: 38 | B47: BHEL | C47: 56.9 | D47: 56.92 | E47: 56.13 | F47: 55.37 | G47: 54.58 | H47: 57.68 | I47: 58.47 | J47: 59.23 | K47: 57.7 | L47: 56.15 | M47: 195.3818
A48: 39 | B48: BPCL | C48: 519.4 | D48: 520.40 | E48: 515.00 | F48: 510.60 | G48: 505.20 | H48: 524.80 | I48: 530.20 | J48: 534.60 | K48: 525.8 | L48: 516 | M48: 50.61143
A49: 40 | B49: BHARTIARTL | C49: 373.05 | D49: 370.93 | E49: 365.47 | F49: 357.88 | G49: 352.42 | H49: 378.52 | I49: 383.98 | J49: 391.57 | K49: 376.4 | L49: 363.35 | M49: 136.82012
A50: 41 | B50: INFRATEL | C50: 202.45 | D50: 198.82 | E50: 193.33 | F50: 184.22 | G50: 178.73 | H50: 207.93 | I50: 213.42 | J50: 222.53 | K50: 204.3 | L50: 189.7 | M50: 234.57512
A51: 42 | B51: BIOCON | C51: 246.25 | D51: 245.92 | E51: 243.33 | F51: 240.42 | G51: 237.83 | H51: 248.83 | I51: 251.42 | J51: 254.33 | K51: 248.5 | L51: 243 | M51: 38.05645
A52: 43 | B52: BBTC | C52: 1216.65 | D52: 1211.33 | E52: 1181.32 | F52: 1145.98 | G52: 1115.97 | H52: 1246.67 | I52: 1276.68 | J52: 1312.02 | K52: 1241.35 | L52: 1176 | M52: 3.29755
A53: 44 | B53: BOSCHLTD | C53: 15327.05 | D53: 15372.38 | E53: 15207.62 | F53: 15088.18 | G53: 14923.42 | H53: 15491.82 | I53: 15656.58 | J53: 15776.02 | K53: 15537.15 | L53: 15252.95 | M53: 0.15871
A54: 45 | B54: BRITANNIA | C54: 3268.55 | D54: 3266.75 | E54: 3238.50 | F54: 3208.45 | G54: 3180.20 | H54: 3296.80 | I54: 3325.05 | J54: 3355.10 | K54: 3295 | L54: 3236.7 | M54: 3.20106
A55: 46 | B55: CESC | C55: 800.25 | D55: 803.20 | E55: 795.05 | F55: 789.85 | G55: 781.70 | H55: 808.40 | I55: 816.55 | J55: 821.75 | K55: 811.35 | L55: 798 | M55: 1.7915
A56: 47 | B56: CADILAHC | C56: 255.5 | D56: 253.97 | E56: 250.03 | F56: 244.57 | G56: 240.63 | H56: 259.43 | I56: 263.37 | J56: 268.83 | K56: 257.9 | L56: 248.5 | M56: 6.72164
A57: 48 | B57: CANBK | C57: 207.1 | D57: 206.53 | E57: 203.17 | F57: 199.23 | G57: 195.87 | H57: 210.47 | I57: 213.83 | J57: 217.77 | K57: 209.9 | L57: 202.6 | M57: 83.67769
A58: 49 | B58: CASTROLIND | C58: 155.05 | D58: 154.52 | E58: 152.03 | F58: 149.02 | G58: 146.53 | H58: 157.53 | I58: 160.02 | J58: 163.03 | K58: 157 | L58: 151.5 | M58: 15.67869
A59: 50 | B59: CHOLAFIN | C59: 313.2 | D59: 310.73 | E59: 305.92 | F59: 298.63 | G59: 293.82 | H59: 318.02 | I59: 322.83 | J59: 330.12 | K59: 315.55 | L59: 303.45 | M59: 27.47442
A60: 51 | B60: CIPLA | C60: 469.2 | D60: 468.60 | E60: 463.00 | F60: 456.80 | G60: 451.20 | H60: 474.80 | I60: 480.40 | J60: 486.60 | K60: 474.2 | L60: 462.4 | M60: 36.49879
A61: 52 | B61: CUB | C61: 212.95 | D61: 212.43 | E61: 210.52 | F61: 208.08 | G61: 206.17 | H61: 214.87 | I61: 216.78 | J61: 219.22 | K61: 214.35 | L61: 210 | M61: 7.827
A62: 53 | B62: COALINDIA | C62: 207.1 | D62: 205.65 | E62: 203.30 | F62: 199.50 | G62: 197.15 | H62: 209.45 | I62: 211.80 | J62: 215.60 | K62: 208 | L62: 201.85 | M62: 71.18433
A63: 54 | B63: COLPAL | C63: 1534.25 | D63: 1542.25 | E63: 1520.00 | F63: 1505.75 | G63: 1483.50 | H63: 1556.50 | I63: 1578.75 | J63: 1593.00 | K63: 1564.5 | L63: 1528 | M63: 4.60658
A64: 55 | B64: CONCOR | C64: 580.7 | D64: 582.37 | E64: 569.73 | F64: 558.77 | G64: 546.13 | H64: 593.33 | I64: 605.97 | J64: 616.93 | K64: 595 | L64: 571.4 | M64: 20.25302
A65: 56 | B65: COROMANDEL | C65: 477 | D65: 482.95 | E65: 466.90 | F65: 456.80 | G65: 440.75 | H65: 493.05 | I65: 509.10 | J65: 519.20 | K65: 499 | L65: 472.85 | M65: 2.60899
A66: 57 | B66: CROMPTON | C66: 253.1 | D66: 253.63 | E66: 250.57 | F66: 248.03 | G66: 244.97 | H66: 256.17 | I66: 259.23 | J66: 261.77 | K66: 256.7 | L66: 251.1 | M66: 11.23889
A67: 58 | B67: CUMMINSIND | C67: 550.05 | D67: 550.17 | E67: 541.58 | F67: 533.12 | G67: 524.53 | H67: 558.63 | I67: 567.22 | J67: 575.68 | K67: 558.75 | L67: 541.7 | M67: 10.55623
A68: 59 | B68: DLF | C68: 185.15 | D68: 184.83 | E68: 182.92 | F68: 180.68 | G68: 178.77 | H68: 187.07 | I68: 188.98 | J68: 191.22 | K68: 186.75 | L68: 182.6 | M68: 51.12995
A69: 60 | B69: DABUR | C69: 463.85 | D69: 465.60 | E69: 459.25 | F69: 454.65 | G69: 448.30 | H69: 470.20 | I69: 476.55 | J69: 481.15 | K69: 471.95 | L69: 461 | M69: 18.18491
A70: 61 | B70: DALBHARAT | C70: 814.3 | D70: 816.03 | E70: 806.77 | F70: 799.23 | G70: 789.97 | H70: 823.57 | I70: 832.83 | J70: 840.37 | K70: 825.3 | L70: 808.5 | M70: 1.0885
A71: 62 | B71: DIVISLAB | C71: 1743.15 | D71: 1751.27 | E71: 1730.68 | F71: 1718.22 | G71: 1697.63 | H71: 1763.73 | I71: 1784.32 | J71: 1796.78 | K71: 1771.85 | L71: 1738.8 | M71: 3.39865
A72: 63 | B72: DRREDDY | C72: 2756.6 | D72: 2773.87 | E72: 2718.58 | F72: 2680.57 | G72: 2625.28 | H72: 2811.88 | I72: 2867.17 | J72: 2905.18 | K72: 2829.15 | L72: 2735.85 | M72: 30.00855
A73: 64 | B73: EDELWEISS | C73: 93.3 | D73: 93.38 | E73: 91.92 | F73: 90.53 | G73: 89.07 | H73: 94.77 | I73: 96.23 | J73: 97.62 | K73: 94.85 | L73: 92 | M73: 11.01851
A74: 65 | B74: EICHERMOT | C74: 21976.15 | D74: 22254.73 | E74: 21621.47 | F74: 21266.78 | G74: 20633.52 | H74: 22609.42 | I74: 23242.68 | J74: 23597.37 | K74: 22888 | L74: 21900.05 | M74: 1.87025
A75: 66 | B75: EMAMILTD | C75: 327.55 | D75: 329.38 | E75: 323.17 | F75: 318.78 | G75: 312.57 | H75: 333.77 | I75: 339.98 | J75: 344.37 | K75: 335.6 | L75: 325 | M75: 1.3119
A76: 67 | B76: ENDURANCE | C76: 1091.5 | D76: 1100.88 | E76: 1077.27 | F76: 1063.03 | G76: 1039.42 | H76: 1115.12 | I76: 1138.73 | J76: 1152.97 | K76: 1124.5 | L76: 1086.65 | M76: 0.09667
A77: 68 | B77: ENGINERSIN | C77: 121.55 | D77: 121.12 | E77: 119.43 | F77: 117.32 | G77: 115.63 | H77: 123.23 | I77: 124.92 | J77: 127.03 | K77: 122.8 | L77: 119 | M77: 13.54349
A78: 69 | B78: ESCORTS | C78: 657.55 | D78: 663.68 | E78: 648.87 | F78: 640.18 | G78: 625.37 | H78: 672.37 | I78: 687.18 | J78: 695.87 | K78: 678.5 | L78: 655 | M78: 32.66867
A79: 70 | B79: EXIDEIND | C79: 195.5 | D79: 194.03 | E79: 191.12 | F79: 186.73 | G79: 183.82 | H79: 198.42 | I79: 201.33 | J79: 205.72 | K79: 196.95 | L79: 189.65 | M79: 24.58583
A80: 71 | B80: FEDERALBNK | C80: 86.05 | D80: 85.30 | E80: 84.15 | F80: 82.25 | G80: 81.10 | H80: 87.20 | I80: 88.35 | J80: 90.25 | K80: 86.45 | L80: 83.4 | M80: 254.98852
A81: 72 | B81: FCONSUMER | C81: 27.5 | D81: 27.18 | E81: 26.57 | F81: 25.63 | G81: 25.02 | H81: 28.12 | I81: 28.73 | J81: 29.67 | K81: 27.8 | L81: 26.25 | M81: 15.72453
A82: 73 | B82: FRETAIL | C82: 379.35 | D82: 380.17 | E82: 376.68 | F82: 374.02 | G82: 370.53 | H82: 382.83 | I82: 386.32 | J82: 388.98 | K82: 383.65 | L82: 377.5 | M82: 6.19327
A83: 74 | B83: GAIL | C83: 135.15 | D83: 136.18 | E83: 133.67 | F83: 132.18 | G83: 129.67 | H83: 137.67 | I83: 140.18 | J83: 141.67 | K83: 138.7 | L83: 134.7 | M83: 64.01816
A84: 75 | B84: GMRINFRA | C84: 20.8 | D84: 20.82 | E84: 20.53 | F84: 20.27 | G84: 19.98 | H84: 21.08 | I84: 21.37 | J84: 21.63 | K84: 21.1 | L84: 20.55 | M84: 118.16695
A85: 76 | B85: GICRE | C85: 300.95 | D85: 306.62 | E85: 293.33 | F85: 285.72 | G85: 272.43 | H85: 314.23 | I85: 327.52 | J85: 335.13 | K85: 319.9 | L85: 299 | M85: 5.21009
A86: 77 | B86: GLENMARK | C86: 315.75 | D86: 317.47 | E86: 313.13 | F86: 310.52 | G86: 306.18 | H86: 320.08 | I86: 324.42 | J86: 327.03 | K86: 321.8 | L86: 314.85 | M86: 13.34886
A87: 78 | B87: GODREJAGRO | C87: 512.4 | D87: 513.63 | E87: 507.27 | F87: 502.13 | G87: 495.77 | H87: 518.77 | I87: 525.13 | J87: 530.27 | K87: 520 | L87: 508.5 | M87: 0.47218
A88: 79 | B88: GODREJCP | C88: 738.05 | D88: 744.03 | E88: 725.57 | F88: 713.08 | G88: 694.62 | H88: 756.52 | I88: 774.98 | J88: 787.47 | K88: 762.5 | L88: 731.55 | M88: 9.1965
A89: 80 | B89: GODREJIND | C89: 423.35 | D89: 422.13 | E89: 416.82 | F89: 410.28 | G89: 404.97 | H89: 428.67 | I89: 433.98 | J89: 440.52 | K89: 427.45 | L89: 415.6 | M89: 1.16196
A90: 81 | B90: GODREJPROP | C90: 1000 | D90: 1003.27 | E90: 987.63 | F90: 975.27 | G90: 959.63 | H90: 1015.63 | I90: 1031.27 | J90: 1043.63 | K90: 1018.9 | L90: 990.9 | M90: 2.22001
A91: 82 | B91: GRAPHITE | C91: 288.55 | D91: 288.72 | E91: 283.63 | F91: 278.72 | G91: 273.63 | H91: 293.63 | I91: 298.72 | J91: 303.63 | K91: 293.8 | L91: 283.8 | M91: 14.62808
A92: 83 | B92: GRASIM | C92: 775.7 | D92: 779.10 | E92: 760.20 | F92: 744.70 | G92: 725.80 | H92: 794.60 | I92: 813.50 | J92: 829.00 | K92: 798 | L92: 763.6 | M92: 45.57725
A93: 84 | B93: GSPL | C93: 213.6 | D93: 212.58 | E93: 209.12 | F93: 204.63 | G93: 201.17 | H93: 217.07 | I93: 220.53 | J93: 225.02 | K93: 216.05 | L93: 208.1 | M93: 13.25844
A94: 85 | B94: HEG | C94: 990.9 | D94: 997.77 | E94: 978.13 | F94: 965.37 | G94: 945.73 | H94: 1010.53 | I94: 1030.17 | J94: 1042.93 | K94: 1017.4 | L94: 985 | M94: 3.45094
A95: 86 | B95: HCLTECH | C95: 1152 | D95: 1154.13 | E95: 1141.27 | F95: 1130.53 | G95: 1117.67 | H95: 1164.87 | I95: 1177.73 | J95: 1188.47 | K95: 1167 | L95: 1143.4 | M95: 10.65855
A96: 87 | B96: HDFCAMC | C96: 2970.1 | D96: 2978.80 | E96: 2952.60 | F96: 2935.10 | G96: 2908.90 | H96: 2996.30 | I96: 3022.50 | J96: 3040.00 | K96: 3005 | L96: 2961.3 | M96: 2.01716
A97: 88 | B97: HDFCBANK | C97: 1240.05 | D97: 1237.13 | E97: 1230.52 | F97: 1220.98 | G97: 1214.37 | H97: 1246.67 | I97: 1253.28 | J97: 1262.82 | K97: 1243.75 | L97: 1227.6 | M97: 57.5613
A98: 89 | B98: HDFCLIFE | C98: 612.7 | D98: 618.93 | E98: 601.87 | F98: 591.03 | G98: 573.97 | H98: 629.77 | I98: 646.83 | J98: 657.67 | K98: 636 | L98: 608.1 | M98: 40.02384
A99: 90 | B99: HAVELLS | C99: 688.35 | D99: 691.08 | E99: 684.27 | F99: 680.18 | G99: 673.37 | H99: 695.17 | I99: 701.98 | J99: 706.07 | K99: 697.9 | L99: 687 | M99: 5.40561
A100: 91 | B100: HEROMOTOCO | C100: 2707.15 | D100: 2712.42 | E100: 2665.83 | F100: 2624.52 | G100: 2577.93 | H100: 2753.73 | I100: 2800.32 | J100: 2841.63 | K100: 2759 | L100: 2671.1 | M100: 14.27332
A101: 92 | B101: HEXAWARE | C101: 340.7 | D101: 338.88 | E101: 334.82 | F101: 328.93 | G101: 324.87 | H101: 344.77 | I101: 348.83 | J101: 354.72 | K101: 342.95 | L101: 333 | M101: 12.04926
A102: 93 | B102: HINDALCO | C102: 193.75 | D102: 191.82 | E102: 189.28 | F102: 184.82 | G102: 182.28 | H102: 196.28 | I102: 198.82 | J102: 203.28 | K102: 194.35 | L102: 187.35 | M102: 69.21052
A103: 94 | B103: HINDPETRO | C103: 320.95 | D103: 320.80 | E103: 314.15 | F103: 307.35 | G103: 300.70 | H103: 327.60 | I103: 334.25 | J103: 341.05 | K103: 327.45 | L103: 314 | M103: 57.70302
A104: 95 | B104: HINDUNILVR | C104: 2179.35 | D104: 2170.02 | E104: 2155.73 | F104: 2132.12 | G104: 2117.83 | H104: 2193.63 | I104: 2207.92 | J104: 2231.53 | K104: 2184.3 | L104: 2146.4 | M104: 16.09685
A105: 96 | B105: HINDZINC | C105: 207 | D105: 208.35 | E105: 203.70 | F105: 200.40 | G105: 195.75 | H105: 211.65 | I105: 216.30 | J105: 219.60 | K105: 213 | L105: 205.05 | M105: 17.7416
A106: 97 | B106: HUDCO | C106: 40.05 | D106: 40.43 | E106: 39.22 | F106: 38.38 | G106: 37.17 | H106: 41.27 | I106: 42.48 | J106: 43.32 | K106: 41.65 | L106: 39.6 | M106: 17.82848
A107: 98 | B107: HDFC | C107: 2128.6 | D107: 2138.65 | E107: 2110.05 | F107: 2091.50 | G107: 2062.90 | H107: 2157.20 | I107: 2185.80 | J107: 2204.35 | K107: 2167.25 | L107: 2120.1 | M107: 34.31044
A108: 99 | B108: ICICIBANK | C108: 462.25 | D108: 463.23 | E108: 459.52 | F108: 456.78 | G108: 453.07 | H108: 465.97 | I108: 469.68 | J108: 472.42 | K108: 466.95 | L108: 460.5 | M108: 135.22994
A109: 100 | B109: ICICIGI | C109: 1343.35 | D109: 1337.22 | E109: 1322.53 | F109: 1301.72 | G109: 1287.03 | H109: 1358.03 | I109: 1372.72 | J109: 1393.53 | K109: 1351.9 | L109: 1316.4 | M109: 3.30121
A110: 101 | B110: ICICIPRULI | C110: 508.65 | D110: 512.63 | E110: 502.52 | F110: 496.38 | G110: 486.27 | H110: 518.77 | I110: 528.88 | J110: 535.02 | K110: 522.75 | L110: 506.5 | M110: 28.08012
A111: 102 | B111: IDBI | C111: 33.9 | D111: 33.90 | E111: 33.20 | F111: 32.50 | G111: 31.80 | H111: 34.60 | I111: 35.30 | J111: 36.00 | K111: 34.6 | L111: 33.2 | M111: 25.32227
A112: 103 | B112: IDFCFIRSTB | C112: 43.9 | D112: 44.35 | E112: 43.30 | F112: 42.70 | G112: 41.65 | H112: 44.95 | I112: 46.00 | J112: 46.60 | K112: 45.4 | L112: 43.75 | M112: 189.90697
A113: 104 | B113: ITC | C113: 261.3 | D113: 261.02 | E113: 259.03 | F113: 256.77 | G113: 254.78 | H113: 263.28 | I113: 265.27 | J113: 267.53 | K113: 263 | L113: 258.75 | M113: 125.71588
A114: 105 | B114: IBULHSGFIN | C114: 218.6 | D114: 220.83 | E114: 205.27 | F114: 191.93 | G114: 176.37 | H114: 234.17 | I114: 249.73 | J114: 263.07 | K114: 236.4 | L114: 207.5 | M114: 602.57905
A115: 106 | B115: IBVENTURES | C115: 105.85 | D115: 104.50 | E115: 103.15 | F115: 100.45 | G115: 99.10 | H115: 107.20 | I115: 108.55 | J115: 111.25 | K115: 105.85 | L115: 101.8 | M115: 2.59644
A116: 107 | B116: INDIANB | C116: 132.8 | D116: 133.32 | E116: 130.63 | F116: 128.47 | G116: 125.78 | H116: 135.48 | I116: 138.17 | J116: 140.33 | K116: 136 | L116: 131.15 | M116: 15.89292
A117: 108 | B117: INDHOTEL | C117: 151.1 | D117: 151.98 | E117: 149.62 | F117: 148.13 | G117: 145.77 | H117: 153.47 | I117: 155.83 | J117: 157.32 | K117: 154.35 | L117: 150.5 | M117: 11.24427
A118: 109 | B118: IOC | C118: 142.65 | D118: 142.30 | E118: 140.60 | F118: 138.55 | G118: 136.85 | H118: 144.35 | I118: 146.05 | J118: 148.10 | K118: 144 | L118: 140.25 | M118: 182.91841
A119: 110 | B119: IGL | C119: 392.45 | D119: 392.63 | E119: 389.82 | F119: 387.18 | G119: 384.37 | H119: 395.27 | I119: 398.08 | J119: 400.72 | K119: 395.45 | L119: 390 | M119: 9.39743
A120: 111 | B120: INDUSINDBK | C120: 1379.85 | D120: 1360.63 | E120: 1335.42 | F120: 1290.98 | G120: 1265.77 | H120: 1405.07 | I120: 1430.28 | J120: 1474.72 | K120: 1385.85 | L120: 1316.2 | M120: 78.0362
A121: 112 | B121: NAUKRI | C121: 2616.3 | D121: 2604.87 | E121: 2539.93 | F121: 2463.57 | G121: 2398.63 | H121: 2681.23 | I121: 2746.17 | J121: 2822.53 | K121: 2669.8 | L121: 2528.5 | M121: 3.63926
A122: 113 | B122: INFY | C122: 687.9 | D122: 688.17 | E122: 682.33 | F122: 676.77 | G122: 670.93 | H122: 693.73 | I122: 699.57 | J122: 705.13 | K122: 694 | L122: 682.6 | M122: 97.13519
A123: 114 | B123: INDIGO | C123: 1438.65 | D123: 1458.33 | E123: 1409.32 | F123: 1379.98 | G123: 1330.97 | H123: 1487.67 | I123: 1536.68 | J123: 1566.02 | K123: 1507.35 | L123: 1429 | M123: 44.53395
A124: 115 | B124: IPCALAB | C124: 1023.6 | D124: 1020.87 | E124: 984.73 | F124: 945.87 | G124: 909.73 | H124: 1059.73 | I124: 1095.87 | J124: 1134.73 | K124: 1057 | L124: 982 | M124: 5.96127
A125: 116 | B125: JSWENERGY | C125: 70.3 | D125: 70.10 | E125: 68.30 | F125: 66.30 | G125: 64.50 | H125: 72.10 | I125: 73.90 | J125: 75.90 | K125: 71.9 | L125: 68.1 | M125: 19.70968
A126: 117 | B126: JSWSTEEL | C126: 237.6 | D126: 234.87 | E126: 230.23 | F126: 222.87 | G126: 218.23 | H126: 242.23 | I126: 246.87 | J126: 254.23 | K126: 239.5 | L126: 227.5 | M126: 92.08037
A127: 118 | B127: JINDALSTEL | C127: 123.35 | D127: 121.10 | E127: 118.25 | F127: 113.15 | G127: 110.30 | H127: 126.20 | I127: 129.05 | J127: 134.15 | K127: 123.95 | L127: 116 | M127: 300.28955
A128: 119 | B128: JUBLFOOD | C128: 1575.5 | D128: 1581.00 | E128: 1560.00 | F128: 1544.50 | G128: 1523.50 | H128: 1596.50 | I128: 1617.50 | J128: 1633.00 | K128: 1602 | L128: 1565.5 | M128: 7.43052
A129: 120 | B129: JUBILANT | C129: 541.7 | D129: 547.57 | E129: 530.43 | F129: 519.17 | G129: 502.03 | H129: 558.83 | I129: 575.97 | J129: 587.23 | K129: 564.7 | L129: 536.3 | M129: 2.55322
A130: 121 | B130: KOTAKBANK | C130: 1579.9 | D130: 1576.28 | E130: 1566.62 | F130: 1553.33 | G130: 1543.67 | H130: 1589.57 | I130: 1599.23 | J130: 1612.52 | K130: 1585.95 | L130: 1563 | M130: 22.19737
A131: 122 | B131: L&TFH | C131: 96.8 | D131: 96.72 | E131: 95.43 | F131: 94.07 | G131: 92.78 | H131: 98.08 | I131: 99.37 | J131: 100.73 | K131: 98 | L131: 95.35 | M131: 101.97058
A132: 123 | B132: LTTS | C132: 1505.8 | D132: 1503.12 | E132: 1495.23 | F132: 1484.67 | G132: 1476.78 | H132: 1513.68 | I132: 1521.57 | J132: 1532.13 | K132: 1511 | L132: 1492.55 | M132: 0.6554
A133: 124 | B133: LICHSGFIN | C133: 427.2 | D133: 424.62 | E133: 416.63 | F133: 406.07 | G133: 398.08 | H133: 435.18 | I133: 443.17 | J133: 453.73 | K133: 432.6 | L133: 414.05 | M133: 45.27693
A134: 125 | B134: LTI | C134: 1684.5 | D134: 1692.83 | E134: 1668.67 | F134: 1652.83 | G134: 1628.67 | H134: 1708.67 | I134: 1732.83 | J134: 1748.67 | K134: 1717 | L134: 1677 | M134: 1.5808
A135: 126 | B135: LT | C135: 1449.4 | D135: 1458.48 | E135: 1435.92 | F135: 1422.43 | G135: 1399.87 | H135: 1471.97 | I135: 1494.53 | J135: 1508.02 | K135: 1481.05 | L135: 1445 | M135: 22.8722
A136: 127 | B136: LUPIN | C136: 766.3 | D136: 764.35 | E136: 753.70 | F136: 741.10 | G136: 730.45 | H136: 776.95 | I136: 787.60 | J136: 800.20 | K136: 775 | L136: 751.75 | M136: 23.6923
A137: 128 | B137: MRF | C137: 64965.8 | D137: 65381.93 | E137: 64268.27 | F137: 63570.73 | G137: 62457.07 | H137: 66079.47 | I137: 67193.13 | J137: 67890.67 | K137: 66495.6 | L137: 64684.4 | M137: 0.07154
A138: 129 | B138: MGL | C138: 1009.05 | D138: 1015.32 | E138: 997.88 | F138: 986.72 | G138: 969.28 | H138: 1026.48 | I138: 1043.92 | J138: 1055.08 | K138: 1032.75 | L138: 1004.15 | M138: 5.62356
A139: 130 | B139: M&MFIN | C139: 356.3 | D139: 356.98 | E139: 352.32 | F139: 348.33 | G139: 343.67 | H139: 360.97 | I139: 365.63 | J139: 369.62 | K139: 361.65 | L139: 353 | M139: 15.11125
A140: 131 | B140: M&M | C140: 589.75 | D140: 593.50 | E140: 577.25 | F140: 564.75 | G140: 548.50 | H140: 606.00 | I140: 622.25 | J140: 634.75 | K140: 609.75 | L140: 581 | M140: 75.58094
A141: 132 | B141: MANAPPURAM | C141: 172.05 | D141: 171.18 | E141: 169.02 | F141: 165.98 | G141: 163.82 | H141: 174.22 | I141: 176.38 | J141: 179.42 | K141: 173.35 | L141: 168.15 | M141: 50.98259
A142: 133 | B142: MRPL | C142: 53.55 | D142: 54.47 | E142: 52.33 | F142: 51.12 | G142: 48.98 | H142: 55.68 | I142: 57.82 | J142: 59.03 | K142: 56.6 | L142: 53.25 | M142: 8.6403
A143: 134 | B143: MARICO | C143: 370.4 | D143: 370.47 | E143: 367.03 | F143: 363.67 | G143: 360.23 | H143: 373.83 | I143: 377.27 | J143: 380.63 | K143: 373.9 | L143: 367.1 | M143: 20.34159
A144: 135 | B144: MARUTI | C144: 7618.65 | D144: 7604.25 | E144: 7559.50 | F144: 7500.35 | G144: 7455.60 | H144: 7663.40 | I144: 7708.15 | J144: 7767.30 | K144: 7649 | L144: 7545.1 | M144: 11.51035
A145: 136 | B145: MFSL | C145: 403.6 | D145: 405.58 | E145: 400.77 | F145: 397.93 | G145: 393.12 | H145: 408.42 | I145: 413.23 | J145: 416.07 | K145: 410.4 | L145: 402.75 | M145: 5.27407
A146: 137 | B146: MINDTREE | C146: 720.35 | D146: 719.13 | E146: 712.22 | F146: 704.08 | G146: 697.17 | H146: 727.27 | I146: 734.18 | J146: 742.32 | K146: 726.05 | L146: 711 | M146: 3.96818
A147: 138 | B147: MOTHERSUMI | C147: 122.3 | D147: 122.90 | E147: 120.80 | F147: 119.30 | G147: 117.20 | H147: 124.40 | I147: 126.50 | J147: 128.00 | K147: 125 | L147: 121.4 | M147: 75.67115
A148: 139 | B148: MPHASIS | C148: 951.85 | D148: 949.75 | E148: 944.55 | F148: 937.25 | G148: 932.05 | H148: 957.05 | I148: 962.25 | J148: 969.55 | K148: 954.95 | L148: 942.45 | M148: 0.59602
A149: 140 | B149: MUTHOOTFIN | C149: 709.15 | D149: 711.13 | E149: 704.77 | F149: 700.38 | G149: 694.02 | H149: 715.52 | I149: 721.88 | J149: 726.27 | K149: 717.5 | L149: 706.75 | M149: 5.33996
A150: 141 | B150: NATCOPHARM | C150: 586.25 | D150: 587.73 | E150: 579.07 | F150: 571.88 | G150: 563.22 | H150: 594.92 | I150: 603.58 | J150: 610.77 | K150: 596.4 | L150: 580.55 | M150: 1.73413
A151: 142 | B151: NBCC | C151: 37.5 | D151: 37.65 | E151: 37.00 | F151: 36.50 | G151: 35.85 | H151: 38.15 | I151: 38.80 | J151: 39.30 | K151: 38.3 | L151: 37.15 | M151: 107.41263
A152: 143 | B152: NHPC | C152: 23.5 | D152: 23.52 | E152: 23.38 | F152: 23.27 | G152: 23.13 | H152: 23.63 | I152: 23.77 | J152: 23.88 | K152: 23.65 | L152: 23.4 | M152: 9.89375
A153: 144 | B153: NMDC | C153: 110.45 | D153: 110.62 | E153: 108.63 | F153: 106.82 | G153: 104.83 | H153: 112.43 | I153: 114.42 | J153: 116.23 | K153: 112.6 | L153: 108.8 | M153: 37.61295
A154: 145 | B154: NTPC | C154: 121.5 | D154: 121.93 | E154: 120.67 | F154: 119.83 | G154: 118.57 | H154: 122.77 | I154: 124.03 | J154: 124.87 | K154: 123.2 | L154: 121.1 | M154: 41.70369
A155: 146 | B155: NATIONALUM | C155: 46 | D155: 45.62 | E155: 44.83 | F155: 43.67 | G155: 42.88 | H155: 46.78 | I155: 47.57 | J155: 48.73 | K155: 46.4 | L155: 44.45 | M155: 95.63069
A156: 147 | B156: NESTLEIND | C156: 14959.8 | D156: 14959.90 | E156: 14850.20 | F156: 14740.60 | G156: 14630.90 | H156: 15069.50 | I156: 15179.20 | J156: 15288.80 | K156: 15069.6 | L156: 14850.3 | M156: 0.49392
A157: 148 | B157: OBEROIRLTY | C157: 511 | D157: 510.92 | E157: 502.13 | F157: 493.27 | G157: 484.48 | H157: 519.78 | I157: 528.57 | J157: 537.43 | K157: 519.7 | L157: 502.05 | M157: 3.19612
A158: 149 | B158: ONGC | C158: 144.15 | D158: 143.00 | E158: 141.25 | F158: 138.35 | G158: 136.60 | H158: 145.90 | I158: 147.65 | J158: 150.55 | K158: 144.75 | L158: 140.1 | M158: 80.49866
A159: 150 | B159: OIL | C159: 168.5 | D159: 169.92 | E159: 166.18 | F159: 163.87 | G159: 160.13 | H159: 172.23 | I159: 175.97 | J159: 178.28 | K159: 173.65 | L159: 167.6 | M159: 5.40876
A160: 151 | B160: OFSS | C160: 3173.35 | D160: 3184.45 | E160: 3128.90 | F160: 3084.45 | G160: 3028.90 | H160: 3228.90 | I160: 3284.45 | J160: 3328.90 | K160: 3240 | L160: 3140 | M160: 0.23292
A161: 152 | B161: ORIENTBANK | C161: 55.55 | D161: 55.65 | E161: 54.40 | F161: 53.25 | G161: 52.00 | H161: 56.80 | I161: 58.05 | J161: 59.20 | K161: 56.9 | L161: 54.5 | M161: 14.0462
A162: 153 | B162: PIIND | C162: 1388.25 | D162: 1402.03 | E162: 1371.22 | F162: 1354.18 | G162: 1323.37 | H162: 1419.07 | I162: 1449.88 | J162: 1466.92 | K162: 1432.85 | L162: 1385 | M162: 1.21109
A163: 154 | B163: PNBHOUSING | C163: 535.8 | D163: 539.58 | E163: 525.22 | F163: 514.63 | G163: 500.27 | H163: 550.17 | I163: 564.53 | J163: 575.12 | K163: 553.95 | L163: 529 | M163: 7.33015
A164: 155 | B164: PAGEIND | C164: 25049.8 | D164: 25202.08 | E164: 24554.17 | F164: 24058.53 | G164: 23410.62 | H164: 25697.72 | I164: 26345.63 | J164: 26841.27 | K164: 25850 | L164: 24706.45 | M164: 0.30366
A165: 156 | B165: PETRONET | C165: 283.5 | D165: 284.45 | E165: 280.05 | F165: 276.60 | G165: 272.20 | H165: 287.90 | I165: 292.30 | J165: 295.75 | K165: 288.85 | L165: 281 | M165: 48.61869
A166: 157 | B166: PFIZER | C166: 4008.55 | D166: 4052.52 | E166: 3956.03 | F166: 3903.52 | G166: 3807.03 | H166: 4105.03 | I166: 4201.52 | J166: 4254.03 | K166: 4149 | L166: 4000 | M166: 0.48032
A167: 158 | B167: PIDILITIND | C167: 1397.95 | D167: 1405.17 | E167: 1385.88 | F167: 1373.82 | G167: 1354.53 | H167: 1417.23 | I167: 1436.52 | J167: 1448.58 | K167: 1424.45 | L167: 1393.1 | M167: 6.95464
A168: 159 | B168: PEL | C168: 1758.05 | D168: 1739.37 | E168: 1710.73 | F168: 1663.42 | G168: 1634.78 | H168: 1786.68 | I168: 1815.32 | J168: 1862.63 | K168: 1768 | L168: 1692.05 | M168: 19.80953
A169: 160 | B169: PFC | C169: 111.1 | D169: 110.45 | E169: 108.80 | F169: 106.50 | G169: 104.85 | H169: 112.75 | I169: 114.40 | J169: 116.70 | K169: 112.1 | L169: 108.15 | M169: 54.87898
A170: 161 | B170: POWERGRID | C170: 197.3 | D170: 197.63 | E170: 196.42 | F170: 195.53 | G170: 194.32 | H170: 198.52 | I170: 199.73 | J170: 200.62 | K170: 198.85 | L170: 196.75 | M170: 49.52073
A171: 162 | B171: PRESTIGE | C171: 305.8 | D171: 307.25 | E171: 299.80 | F171: 293.80 | G171: 286.35 | H171: 313.25 | I171: 320.70 | J171: 326.70 | K171: 314.7 | L171: 301.25 | M171: 1.69709
A172: 163 | B172: PGHH | C172: 12115.8 | D172: 12156.57 | E172: 11924.23 | F172: 11732.67 | G172: 11500.33 | H172: 12348.13 | I172: 12580.47 | J172: 12772.03 | K172: 12388.9 | L172: 11965 | M172: 0.05077
A173: 164 | B173: PNB | C173: 67.15 | D173: 66.67 | E173: 65.58 | F173: 64.02 | G173: 62.93 | H173: 68.23 | I173: 69.32 | J173: 70.88 | K173: 67.75 | L173: 65.1 | M173: 290.95991
A174: 165 | B174: QUESS | C174: 498.7 | D174: 503.40 | E174: 488.80 | F174: 478.90 | G174: 464.30 | H174: 513.30 | I174: 527.90 | J174: 537.80 | K174: 518 | L174: 493.5 | M174: 2.21104
A175: 166 | B175: RBLBANK | C175: 310.45 | D175: 312.85 | E175: 300.90 | F175: 291.35 | G175: 279.40 | H175: 322.40 | I175: 334.35 | J175: 343.90 | K175: 324.8 | L175: 303.3 | M175: 190.35303
A176: 167 | B176: RECLTD | C176: 141.6 | D176: 140.95 | E176: 139.80 | F176: 138.00 | G176: 136.85 | H176: 142.75 | I176: 143.90 | J176: 145.70 | K176: 142.1 | L176: 139.15 | M176: 49.39303
A177: 168 | B177: RAJESHEXPO | C177: 678.7 | D177: 679.42 | E177: 675.63 | F177: 672.57 | G177: 668.78 | H177: 682.48 | I177: 686.27 | J177: 689.33 | K177: 683.2 | L177: 676.35 | M177: 2.54817
A178: 169 | B178: RELIANCE | C178: 1456.9 | D178: 1453.23 | E178: 1444.67 | F178: 1432.43 | G178: 1423.87 | H178: 1465.47 | I178: 1474.03 | J178: 1486.27 | K178: 1461.8 | L178: 1441 | M178: 63.56579
A179: 170 | B179: RNAM | C179: 355.9 | D179: 358.22 | E179: 349.43 | F179: 342.97 | G179: 334.18 | H179: 364.68 | I179: 373.47 | J179: 379.93 | K179: 367 | L179: 351.75 | M179: 18.68967
A180: 171 | B180: SBILIFE | C180: 997.5 | D180: 999.93 | E180: 990.87 | F180: 984.23 | G180: 975.17 | H180: 1006.57 | I180: 1015.63 | J180: 1022.27 | K180: 1009 | L180: 993.3 | M180: 6.55253
A181: 172 | B181: SRF | C181: 2902.6 | D181: 2895.97 | E181: 2866.63 | F181: 2830.67 | G181: 2801.33 | H181: 2931.93 | I181: 2961.27 | J181: 2997.23 | K181: 2925.3 | L181: 2860 | M181: 3.07775
A182: 173 | B182: SHREECEM | C182: 20003.65 | D182: 20035.55 | E182: 19771.10 | F182: 19538.55 | G182: 19274.10 | H182: 20268.10 | I182: 20532.55 | J182: 20765.10 | K182: 20300 | L182: 19803 | M182: 0.17769
A183: 174 | B183: SRTRANSFIN | C183: 1144.1 | D183: 1148.85 | E183: 1132.80 | F183: 1121.50 | G183: 1105.45 | H183: 1160.15 | I183: 1176.20 | J183: 1187.50 | K183: 1164.9 | L183: 1137.55 | M183: 7.61173
A184: 175 | B184: SIEMENS | C184: 1671.65 | D184: 1675.60 | E184: 1657.80 | F184: 1643.95 | G184: 1626.15 | H184: 1689.45 | I184: 1707.25 | J184: 1721.10 | K184: 1693.4 | L184: 1661.75 | M184: 4.4532
A185: 176 | B185: SBIN | C185: 313.55 | D185: 312.38 | E185: 309.77 | F185: 305.98 | G185: 303.37 | H185: 316.17 | I185: 318.78 | J185: 322.57 | K185: 315 | L185: 308.6 | M185: 448.94016
A186: 177 | B186: SAIL | C186: 38.95 | D186: 38.30 | E186: 37.20 | F186: 35.45 | G186: 34.35 | H186: 40.05 | I186: 41.15 | J186: 42.90 | K186: 39.4 | L186: 36.55 | M186: 463.94896
A187: 178 | B187: STRTECH | C187: 132.7 | D187: 132.23 | E187: 129.87 | F187: 127.03 | G187: 124.67 | H187: 135.07 | I187: 137.43 | J187: 140.27 | K187: 134.6 | L187: 129.4 | M187: 10.13157
A188: 179 | B188: SUNPHARMA | C188: 437.55 | D188: 437.18 | E188: 433.47 | F188: 429.38 | G188: 425.67 | H188: 441.27 | I188: 444.98 | J188: 449.07 | K188: 440.9 | L188: 433.1 | M188: 35.45584
A189: 180 | B189: SUNTV | C189: 542.65 | D189: 540.00 | E189: 528.70 | F189: 514.75 | G189: 503.45 | H189: 553.95 | I189: 565.25 | J189: 579.20 | K189: 551.3 | L189: 526.05 | M189: 16.53964
A190: 181 | B190: SYNGENE | C190: 325.25 | D190: 326.82 | E190: 321.93 | F190: 318.62 | G190: 313.73 | H190: 330.13 | I190: 335.02 | J190: 338.33 | K190: 331.7 | L190: 323.5 | M190: 0.41241
A191: 182 | B191: TVSMOTOR | C191: 469.25 | D191: 473.65 | E191: 458.80 | F191: 448.35 | G191: 433.50 | H191: 484.10 | I191: 498.95 | J191: 509.40 | K191: 488.5 | L191: 463.2 | M191: 26.28138
A192: 183 | B192: TATACHEM | C192: 634.75 | D192: 635.88 | E192: 626.92 | F192: 619.08 | G192: 610.12 | H192: 643.72 | I192: 652.68 | J192: 660.52 | K192: 644.85 | L192: 628.05 | M192: 12.09304
A193: 184 | B193: TCS | C193: 2200.9 | D193: 2223.63 | E193: 2172.27 | F193: 2143.63 | G193: 2092.27 | H193: 2252.27 | I193: 2303.63 | J193: 2332.27 | K193: 2275 | L193: 2195 | M193: 41.7262
A194: 185 | B194: TATAGLOBAL | C194: 304.95 | D194: 310.58 | E194: 298.67 | F194: 292.38 | G194: 280.47 | H194: 316.87 | I194: 328.78 | J194: 335.07 | K194: 322.5 | L194: 304.3 | M194: 91.41707
A195: 186 | B195: TATAMTRDVR | C195: 81.25 | D195: 81.38 | E195: 79.67 | F195: 78.08 | G195: 76.37 | H195: 82.97 | I195: 84.68 | J195: 86.27 | K195: 83.1 | L195: 79.8 | M195: 114.59357
A196: 187 | B196: TATAMOTORS | C196: 175.05 | D196: 175.15 | E196: 172.30 | F196: 169.55 | G196: 166.70 | H196: 177.90 | I196: 180.75 | J196: 183.50 | K196: 178 | L196: 172.4 | M196: 406.13555
A197: 188 | B197: TATAPOWER | C197: 59.5 | D197: 59.65 | E197: 59.00 | F197: 58.50 | G197: 57.85 | H197: 60.15 | I197: 60.80 | J197: 61.30 | K197: 60.3 | L197: 59.15 | M197: 69.97405
A198: 189 | B198: TATASTEEL | C198: 399.5 | D198: 393.47 | E198: 384.03 | F198: 368.57 | G198: 359.13 | H198: 408.93 | I198: 418.37 | J198: 433.83 | K198: 402.9 | L198: 378 | M198: 241.11195
A199: 190 | B199: TECHM | C199: 760.45 | D199: 754.82 | E199: 745.63 | F199: 730.82 | G199: 721.63 | H199: 769.63 | I199: 778.82 | J199: 793.63 | K199: 764 | L199: 740 | M199: 41.36257
A200: 191 | B200: NIACL | C200: 164.1 | D200: 166.70 | E200: 159.50 | F200: 154.90 | G200: 147.70 | H200: 171.30 | I200: 178.50 | J200: 183.10 | K200: 173.9 | L200: 162.1 | M200: 3.96797
A201: 192 | B201: RAMCOCEM | C201: 800.8 | D201: 800.85 | E201: 785.70 | F201: 770.60 | G201: 755.45 | H201: 815.95 | I201: 831.10 | J201: 846.20 | K201: 816 | L201: 785.75 | M201: 4.64708
A202: 193 | B202: TITAN | C202: 1301.9 | D202: 1307.43 | E202: 1281.52 | F202: 1261.13 | G202: 1235.22 | H202: 1327.82 | I202: 1353.73 | J202: 1374.12 | K202: 1333.35 | L202: 1287.05 | M202: 24.91686
A203: 194 | B203: TORNTPHARM | C203: 1801.9 | D203: 1799.60 | E203: 1780.30 | F203: 1758.70 | G203: 1739.40 | H203: 1821.20 | I203: 1840.50 | J203: 1862.10 | K203: 1818.9 | L203: 1778 | M203: 1.89695
A204: 195 | B204: TORNTPOWER | C204: 280.9 | D204: 282.63 | E204: 278.27 | F204: 275.63 | G204: 271.27 | H204: 285.27 | I204: 289.63 | J204: 292.27 | K204: 287 | L204: 280 | M204: 10.66374
A205: 196 | B205: UPL | C205: 588.55 | D205: 591.78 | E205: 582.77 | F205: 576.98 | G205: 567.97 | H205: 597.57 | I205: 606.58 | J205: 612.37 | K205: 600.8 | L205: 586 | M205: 13.93105
... 30 more rows

Sheet MidCap Intra
L5: Back To Main Page
A6: FOR INTRA DAY TRADING | K6: =Main!B10 -> 2019-11-04
A9: Sr.no | B9: Scrip | C9: CLOSE RATE | D9: Pivot Point | E9: Supports | H9: Resistances
C10: Point | E10: S1 | F10: S2 | G10: S3 | H10: R1 | I10: R2 | J10: R3 | K10: HIGH | L10: LOW | M10: Total Trade Quanity in Lakhs
A11: 1 | B11: 3MINDIA | C11: 22202.1 | D11: 22271.38 | E11: 22030.72 | F11: 21859.33 | G11: 21618.67 | H11: 22442.77 | I11: 22683.43 | J11: 22854.82 | K11: 22512.05 | L11: 22100 | M11: 0.01793
A12: 2 | B12: ACC | C12: 1542.2 | D12: 1548.60 | E12: 1521.60 | F12: 1501.00 | G12: 1474.00 | H12: 1569.20 | I12: 1596.20 | J12: 1616.80 | K12: 1575.6 | L12: 1528 | M12: 8.87153
A13: 3 | B13: AIAENG | C13: 1679.85 | D13: 1697.30 | E13: 1654.60 | F13: 1629.35 | G13: 1586.65 | H13: 1722.55 | I13: 1765.25 | J13: 1790.50 | K13: 1740 | L13: 1672.05 | M13: 0.15833
A14: 4 | B14: APLAPOLLO | C14: 1481.15 | D14: 1478.82 | E14: 1457.63 | F14: 1434.12 | G14: 1412.93 | H14: 1502.33 | I14: 1523.52 | J14: 1547.03 | K14: 1500 | L14: 1455.3 | M14: 0.0822
A15: 5 | B15: AUBANK | C15: 688.4 | D15: 683.15 | E15: 671.30 | F15: 654.20 | G15: 642.35 | H15: 700.25 | I15: 712.10 | J15: 729.20 | K15: 695 | L15: 666.05 | M15: 4.77756
A16: 6 | B16: AAVAS | C16: 1582.75 | D16: 1587.58 | E16: 1568.17 | F16: 1553.58 | G16: 1534.17 | H16: 1602.17 | I16: 1621.58 | J16: 1636.17 | K16: 1607 | L16: 1573 | M16: 0.07173
A17: 7 | B17: ABBOTINDIA | C17: 11620.15 | D17: 11700.73 | E17: 11516.42 | F17: 11412.68 | G17: 11228.37 | H17: 11804.47 | I17: 11988.78 | J17: 12092.52 | K17: 11885.05 | L17: 11597 | M17: 0.08388
A18: 8 | B18: ADANIGAS | C18: 146.85 | D18: 147.35 | E18: 146.30 | F18: 145.75 | G18: 144.70 | H18: 147.90 | I18: 148.95 | J18: 149.50 | K18: 148.4 | L18: 146.8 | M18: 3.81934
A19: 9 | B19: ADANIGREEN | C19: 89.95 | D19: 89.68 | E19: 88.37 | F19: 86.78 | G19: 85.47 | H19: 91.27 | I19: 92.58 | J19: 94.17 | K19: 91 | L19: 88.1 | M19: 9.37093
A20: 10 | B20: ADANIPORTS | C20: 389.75 | D20: 391.62 | E20: 385.98 | F20: 382.22 | G20: 376.58 | H20: 395.38 | I20: 401.02 | J20: 404.78 | K20: 397.25 | L20: 387.85 | M20: 36.65336
A21: 11 | B21: ADANIPOWER | C21: 67.9 | D21: 67.35 | E21: 66.15 | F21: 64.40 | G21: 63.20 | H21: 69.10 | I21: 70.30 | J21: 72.05 | K21: 68.55 | L21: 65.6 | M21: 98.22268
A22: 12 | B22: ADANITRANS | C22: 277.45 | D22: 280.35 | E22: 272.70 | F22: 267.95 | G22: 260.30 | H22: 285.10 | I22: 292.75 | J22: 297.50 | K22: 288 | L22: 275.6 | M22: 6.5742
A23: 13 | B23: ABCAPITAL | C23: 83 | D23: 83.30 | E23: 81.90 | F23: 80.80 | G23: 79.40 | H23: 84.40 | I23: 85.80 | J23: 86.90 | K23: 84.7 | L23: 82.2 | M23: 36.7375
A24: 14 | B24: ABFRL | C24: 211 | D24: 211.13 | E24: 209.02 | F24: 207.03 | G24: 204.92 | H24: 213.12 | I24: 215.23 | J24: 217.22 | K24: 213.25 | L24: 209.15 | M24: 2.37461
A25: 15 | B25: ADVENZYMES | C25: 189.45 | D25: 188.17 | E25: 184.33 | F25: 179.22 | G25: 175.38 | H25: 193.28 | I25: 197.12 | J25: 202.23 | K25: 192 | L25: 183.05 | M25: 1.48682
A26: 16 | B26: AEGISCHEM | C26: 172.2 | D26: 172.87 | E26: 170.48 | F26: 168.77 | G26: 166.38 | H26: 174.58 | I26: 176.97 | J26: 178.68 | K26: 175.25 | L26: 171.15 | M26: 1.04301
A27: 17 | B27: AJANTPHARM | C27: 1062.8 | D27: 1059.48 | E27: 1044.02 | F27: 1025.23 | G27: 1009.77 | H27: 1078.27 | I27: 1093.73 | J27: 1112.52 | K27: 1074.95 | L27: 1040.7 | M27: 0.50455
A28: 18 | B28: AKZOINDIA | C28: 2090.1 | D28: 2101.70 | E28: 2060.40 | F28: 2030.70 | G28: 1989.40 | H28: 2131.40 | I28: 2172.70 | J28: 2202.40 | K28: 2143 | L28: 2072 | M28: 0.0827
A29: 19 | B29: APLLTD | C29: 570.7 | D29: 566.20 | E29: 550.50 | F29: 530.30 | G29: 514.60 | H29: 586.40 | I29: 602.10 | J29: 622.30 | K29: 581.9 | L29: 546 | M29: 4.23092
A30: 20 | B30: ALKEM | C30: 2000.15 | D30: 1999.52 | E30: 1985.63 | F30: 1971.12 | G30: 1957.23 | H30: 2014.03 | I30: 2027.92 | J30: 2042.43 | K30: 2013.4 | L30: 1985 | M30: 0.53263
A31: 21 | B31: ALBK | C31: 27.3 | D31: 27.18 | E31: 26.62 | F31: 25.93 | G31: 25.37 | H31: 27.87 | I31: 28.43 | J31: 29.12 | K31: 27.75 | L31: 26.5 | M31: 14.5818
A32: 22 | B32: ALLCARGO | C32: 103.85 | D32: 103.90 | E32: 102.95 | F32: 102.05 | G32: 101.10 | H32: 104.80 | I32: 105.75 | J32: 106.65 | K32: 104.85 | L32: 103 | M32: 1.20664
A33: 23 | B33: AMARAJABAT | C33: 689.75 | D33: 688.00 | E33: 680.30 | F33: 670.85 | G33: 663.15 | H33: 697.45 | I33: 705.15 | J33: 714.60 | K33: 695.7 | L33: 678.55 | M33: 4.38764
A34: 24 | B34: AMBER | C34: 1022.65 | D34: 1029.58 | E34: 1004.17 | F34: 985.68 | G34: 960.27 | H34: 1048.07 | I34: 1073.48 | J34: 1091.97 | K34: 1055 | L34: 1011.1 | M34: 0.36853
A35: 25 | B35: AMBUJACEM | C35: 201.6 | D35: 201.80 | E35: 199.60 | F35: 197.60 | G35: 195.40 | H35: 203.80 | I35: 206.00 | J35: 208.00 | K35: 204 | L35: 199.8 | M35: 27.7043
A36: 26 | B36: ANDHRABANK | C36: 18.2 | D36: 18.18 | E36: 17.72 | F36: 17.23 | G36: 16.77 | H36: 18.67 | I36: 19.13 | J36: 19.62 | K36: 18.65 | L36: 17.7 | M36: 14.3838
A37: 27 | B37: APOLLOHOSP | C37: 1460 | D37: 1472.70 | E37: 1437.40 | F37: 1414.80 | G37: 1379.50 | H37: 1495.30 | I37: 1530.60 | J37: 1553.20 | K37: 1508 | L37: 1450.1 | M37: 5.51152
A38: 28 | B38: APOLLOTYRE | C38: 189.2 | D38: 191.35 | E38: 185.95 | F38: 182.70 | G38: 177.30 | H38: 194.60 | I38: 200.00 | J38: 203.25 | K38: 196.75 | L38: 188.1 | M38: 49.95111
A39: 29 | B39: ARVINDFASN | C39: 441.3 | D39: 444.98 | E39: 435.92 | F39: 430.53 | G39: 421.47 | H39: 450.37 | I39: 459.43 | J39: 464.82 | K39: 454.05 | L39: 439.6 | M39: 0.14794
A40: 30 | B40: ASHOKLEY | C40: 75.95 | D40: 76.20 | E40: 74.95 | F40: 73.95 | G40: 72.70 | H40: 77.20 | I40: 78.45 | J40: 79.45 | K40: 77.45 | L40: 75.2 | M40: 248.61078
A41: 31 | B41: ASHOKA | C41: 101.9 | D41: 102.50 | E41: 100.85 | F41: 99.80 | G41: 98.15 | H41: 103.55 | I41: 105.20 | J41: 106.25 | K41: 104.15 | L41: 101.45 | M41: 2.38975
A42: 32 | B42: ASIANPAINT | C42: 1766.35 | D42: 1783.12 | E42: 1745.23 | F42: 1724.12 | G42: 1686.23 | H42: 1804.23 | I42: 1842.12 | J42: 1863.23 | K42: 1821 | L42: 1762 | M42: 15.2766
A43: 33 | B43: ASTERDM | C43: 141.55 | D43: 141.37 | E43: 135.73 | F43: 129.92 | G43: 124.28 | H43: 147.18 | I43: 152.82 | J43: 158.63 | K43: 147 | L43: 135.55 | M43: 5.08429
A44: 34 | B44: ASTRAZEN | C44: 2700.95 | D44: 2708.70 | E44: 2673.45 | F44: 2645.95 | G44: 2610.70 | H44: 2736.20 | I44: 2771.45 | J44: 2798.95 | K44: 2743.95 | L44: 2681.2 | M44: 0.10933
A45: 35 | B45: ASTRAL | C45: 1116.6 | D45: 1120.53 | E45: 1108.07 | F45: 1099.53 | G45: 1087.07 | H45: 1129.07 | I45: 1141.53 | J45: 1150.07 | K45: 1133 | L45: 1112 | M45: 0.80249
A46: 36 | B46: ATUL | C46: 4332.4 | D46: 4318.45 | E46: 4287.95 | F46: 4243.50 | G46: 4213.00 | H46: 4362.90 | I46: 4393.40 | J46: 4437.85 | K46: 4348.95 | L46: 4274 | M46: 0.12649
A47: 37 | B47: AUROPHARMA | C47: 480.5 | D47: 476.97 | E47: 471.03 | F47: 461.57 | G47: 455.63 | H47: 486.43 | I47: 492.37 | J47: 501.83 | K47: 482.9 | L47: 467.5 | M47: 29.83662
A48: 38 | B48: AVANTIFEED | C48: 451 | D48: 449.50 | E48: 443.25 | F48: 435.50 | G48: 429.25 | H48: 457.25 | I48: 463.50 | J48: 471.25 | K48: 455.75 | L48: 441.75 | M48: 2.15498
A49: 39 | B49: DMART | C49: 1966.6 | D49: 1976.38 | E49: 1950.82 | F49: 1935.03 | G49: 1909.47 | H49: 1992.17 | I49: 2017.73 | J49: 2033.52 | K49: 2001.95 | L49: 1960.6 | M49: 2.31689
A50: 40 | B50: AXISBANK | C50: 748.3 | D50: 742.13 | E50: 734.27 | F50: 720.23 | G50: 712.37 | H50: 756.17 | I50: 764.03 | J50: 778.07 | K50: 750 | L50: 728.1 | M50: 84.84197
A51: 41 | B51: BASF | C51: 996.3 | D51: 1002.37 | E51: 983.93 | F51: 971.57 | G51: 953.13 | H51: 1014.73 | I51: 1033.17 | J51: 1045.53 | K51: 1020.8 | L51: 990 | M51: 0.17704
A52: 42 | B52: BEML | C52: 1046.45 | D52: 1043.82 | E52: 1027.63 | F52: 1008.82 | G52: 992.63 | H52: 1062.63 | I52: 1078.82 | J52: 1097.63 | K52: 1060 | L52: 1025 | M52: 5.64134
A53: 43 | B53: BSE | C53: 548.8 | D53: 551.35 | E53: 543.95 | F53: 539.10 | G53: 531.70 | H53: 556.20 | I53: 563.60 | J53: 568.45 | K53: 558.75 | L53: 546.5 | M53: 0.51188
A54: 44 | B54: BAJAJ-AUTO | C54: 3232.65 | D54: 3237.22 | E54: 3185.43 | F54: 3138.22 | G54: 3086.43 | H54: 3284.43 | I54: 3336.22 | J54: 3383.43 | K54: 3289 | L54: 3190 | M54: 7.48062
A55: 45 | B55: BAJAJCON | C55: 248.55 | D55: 248.85 | E55: 245.45 | F55: 242.35 | G55: 238.95 | H55: 251.95 | I55: 255.35 | J55: 258.45 | K55: 252.25 | L55: 245.75 | M55: 1.88399
A56: 46 | B56: BAJAJELEC | C56: 376 | D56: 377.23 | E56: 373.77 | F56: 371.53 | G56: 368.07 | H56: 379.47 | I56: 382.93 | J56: 385.17 | K56: 380.7 | L56: 375 | M56: 0.59315
A57: 47 | B57: BAJFINANCE | C57: 4069.85 | D57: 4066.95 | E57: 4023.90 | F57: 3977.95 | G57: 3934.90 | H57: 4112.90 | I57: 4155.95 | J57: 4201.90 | K57: 4110 | L57: 4021 | M57: 18.75612
A58: 48 | B58: BAJAJFINSV | C58: 8384.75 | D58: 8308.08 | E58: 8187.17 | F58: 7989.58 | G58: 7868.67 | H58: 8505.67 | I58: 8626.58 | J58: 8824.17 | K58: 8429 | L58: 8110.5 | M58: 6.56439
A59: 49 | B59: BAJAJHLDNG | C59: 3698.2 | D59: 3701.75 | E59: 3665.40 | F59: 3632.60 | G59: 3596.25 | H59: 3734.55 | I59: 3770.90 | J59: 3803.70 | K59: 3738.1 | L59: 3668.95 | M59: 0.55997
A60: 50 | B60: BALKRISIND | C60: 872.8 | D60: 880.07 | E60: 860.33 | F60: 847.87 | G60: 828.13 | H60: 892.53 | I60: 912.27 | J60: 924.73 | K60: 899.8 | L60: 867.6 | M60: 4.86874
A61: 51 | B61: BALMLAWRIE | C61: 197.25 | D61: 197.88 | E61: 194.87 | F61: 192.48 | G61: 189.47 | H61: 200.27 | I61: 203.28 | J61: 205.67 | K61: 200.9 | L61: 195.5 | M61: 0.98679
A62: 52 | B62: BALRAMCHIN | C62: 164.5 | D62: 165.95 | E62: 161.55 | F62: 158.60 | G62: 154.20 | H62: 168.90 | I62: 173.30 | J62: 176.25 | K62: 170.35 | L62: 163 | M62: 19.24934
A63: 53 | B63: BANDHANBNK | C63: 599 | D63: 604.03 | E63: 589.17 | F63: 579.33 | G63: 564.47 | H63: 613.87 | I63: 628.73 | J63: 638.57 | K63: 618.9 | L63: 594.2 | M63: 17.40679
A64: 54 | B64: BANKBARODA | C64: 100 | D64: 99.28 | E64: 97.62 | F64: 95.23 | G64: 93.57 | H64: 101.67 | I64: 103.33 | J64: 105.72 | K64: 100.95 | L64: 96.9 | M64: 398.69804
A65: 55 | B65: BANKINDIA | C65: 71 | D65: 72.32 | E65: 69.08 | F65: 67.17 | G65: 63.93 | H65: 74.23 | I65: 77.47 | J65: 79.38 | K65: 75.55 | L65: 70.4 | M65: 402.26962
A66: 56 | B66: MAHABANK | C66: 12.4 | D66: 12.37 | E66: 11.88 | F66: 11.37 | G66: 10.88 | H66: 12.88 | I66: 13.37 | J66: 13.88 | K66: 12.85 | L66: 11.85 | M66: 20.57746
A67: 57 | B67: BATAINDIA | C67: 1741.25 | D67: 1761.43 | E67: 1712.72 | F67: 1684.18 | G67: 1635.47 | H67: 1789.97 | I67: 1838.68 | J67: 1867.22 | K67: 1810.15 | L67: 1732.9 | M67: 8.4164
A68: 58 | B68: BAYERCROP | C68: 3732 | D68: 3721.93 | E68: 3623.87 | F68: 3515.73 | G68: 3417.67 | H68: 3830.07 | I68: 3928.13 | J68: 4036.27 | K68: 3820 | L68: 3613.8 | M68: 0.21084
A69: 59 | B69: BERGEPAINT | C69: 508.5 | D69: 512.93 | E69: 498.22 | F69: 487.93 | G69: 473.22 | H69: 523.22 | I69: 537.93 | J69: 548.22 | K69: 527.65 | L69: 502.65 | M69: 38.24378
A70: 60 | B70: BDL | C70: 331.55 | D70: 333.87 | E70: 324.63 | F70: 317.72 | G70: 308.48 | H70: 340.78 | I70: 350.02 | J70: 356.93 | K70: 343.1 | L70: 326.95 | M70: 0.82636
A71: 61 | B71: BEL | C71: 120.4 | D71: 120.08 | E71: 118.42 | F71: 116.43 | G71: 114.77 | H71: 122.07 | I71: 123.73 | J71: 125.72 | K71: 121.75 | L71: 118.1 | M71: 85.65591
A72: 62 | B72: BHARATFORG | C72: 458.75 | D72: 455.62 | E72: 451.23 | F72: 443.72 | G72: 439.33 | H72: 463.13 | I72: 467.52 | J72: 475.03 | K72: 460 | L72: 448.1 | M72: 10.33117
A73: 63 | B73: BHEL | C73: 56.9 | D73: 56.92 | E73: 56.13 | F73: 55.37 | G73: 54.58 | H73: 57.68 | I73: 58.47 | J73: 59.23 | K73: 57.7 | L73: 56.15 | M73: 195.3818
A74: 64 | B74: BPCL | C74: 519.4 | D74: 520.40 | E74: 515.00 | F74: 510.60 | G74: 505.20 | H74: 524.80 | I74: 530.20 | J74: 534.60 | K74: 525.8 | L74: 516 | M74: 50.61143
A75: 65 | B75: BHARTIARTL | C75: 373.05 | D75: 370.93 | E75: 365.47 | F75: 357.88 | G75: 352.42 | H75: 378.52 | I75: 383.98 | J75: 391.57 | K75: 376.4 | L75: 363.35 | M75: 136.82012
A76: 66 | B76: INFRATEL | C76: 202.45 | D76: 198.82 | E76: 193.33 | F76: 184.22 | G76: 178.73 | H76: 207.93 | I76: 213.42 | J76: 222.53 | K76: 204.3 | L76: 189.7 | M76: 234.57512
A77: 67 | B77: BIOCON | C77: 246.25 | D77: 245.92 | E77: 243.33 | F77: 240.42 | G77: 237.83 | H77: 248.83 | I77: 251.42 | J77: 254.33 | K77: 248.5 | L77: 243 | M77: 38.05645
A78: 68 | B78: BIRLACORPN | C78: 582.55 | D78: 580.78 | E78: 570.57 | F78: 558.58 | G78: 548.37 | H78: 592.77 | I78: 602.98 | J78: 614.97 | K78: 591 | L78: 568.8 | M78: 0.87777
A79: 69 | B79: BSOFT | C79: 66.1 | D79: 66.27 | E79: 65.03 | F79: 63.97 | G79: 62.73 | H79: 67.33 | I79: 68.57 | J79: 69.63 | K79: 67.5 | L79: 65.2 | M79: 1.8774
A80: 70 | B80: BLISSGVS | C80: 141.95 | D80: 141.13 | E80: 137.27 | F80: 132.58 | G80: 128.72 | H80: 145.82 | I80: 149.68 | J80: 154.37 | K80: 145 | L80: 136.45 | M80: 2.91214
A81: 71 | B81: BLUEDART | C81: 2388.05 | D81: 2405.53 | E81: 2348.07 | F81: 2308.08 | G81: 2250.62 | H81: 2445.52 | I81: 2502.98 | J81: 2542.97 | K81: 2463 | L81: 2365.55 | M81: 0.22505
A82: 72 | B82: BLUESTARCO | C82: 821.45 | D82: 829.90 | E82: 807.80 | F82: 794.15 | G82: 772.05 | H82: 843.55 | I82: 865.65 | J82: 879.30 | K82: 852 | L82: 816.25 | M82: 0.34394
A83: 73 | B83: BBTC | C83: 1216.65 | D83: 1211.33 | E83: 1181.32 | F83: 1145.98 | G83: 1115.97 | H83: 1246.67 | I83: 1276.68 | J83: 1312.02 | K83: 1241.35 | L83: 1176 | M83: 3.29755
A84: 74 | B84: BOMDYEING | C84: 85.55 | D84: 84.58 | E84: 81.57 | F84: 77.58 | G84: 74.57 | H84: 88.57 | I84: 91.58 | J84: 95.57 | K84: 87.6 | L84: 80.6 | M84: 52.92709
A85: 75 | B85: BOSCHLTD | C85: 15327.05 | D85: 15372.38 | E85: 15207.62 | F85: 15088.18 | G85: 14923.42 | H85: 15491.82 | I85: 15656.58 | J85: 15776.02 | K85: 15537.15 | L85: 15252.95 | M85: 0.15871
A86: 76 | B86: BRIGADE | C86: 206.4 | D86: 204.82 | E86: 201.48 | F86: 196.57 | G86: 193.23 | H86: 209.73 | I86: 213.07 | J86: 217.98 | K86: 208.15 | L86: 199.9 | M86: 0.5463
A87: 77 | B87: BRITANNIA | C87: 3268.55 | D87: 3266.75 | E87: 3238.50 | F87: 3208.45 | G87: 3180.20 | H87: 3296.80 | I87: 3325.05 | J87: 3355.10 | K87: 3295 | L87: 3236.7 | M87: 3.20106
A88: 78 | B88: CARERATING | C88: 535 | D88: 533.67 | E88: 531.33 | F88: 527.67 | G88: 525.33 | H88: 537.33 | I88: 539.67 | J88: 543.33 | K88: 536 | L88: 530 | M88: 0.84242
A89: 79 | B89: CCL | C89: 211.9 | D89: 211.57 | E89: 207.33 | F89: 202.77 | G89: 198.53 | H89: 216.13 | I89: 220.37 | J89: 224.93 | K89: 215.8 | L89: 207 | M89: 1.40353
A90: 80 | B90: CESC | C90: 800.25 | D90: 803.20 | E90: 795.05 | F90: 789.85 | G90: 781.70 | H90: 808.40 | I90: 816.55 | J90: 821.75 | K90: 811.35 | L90: 798 | M90: 1.7915
A91: 81 | B91: CGPOWER | C91: 13.9 | D91: 14.10 | E91: 13.55 | F91: 13.20 | G91: 12.65 | H91: 14.45 | I91: 15.00 | J91: 15.35 | K91: 14.65 | L91: 13.75 | M91: 12.67309
A92: 82 | B92: CRISIL | C92: 1502.3 | D92: 1493.37 | E92: 1466.73 | F92: 1431.17 | G92: 1404.53 | H92: 1528.93 | I92: 1555.57 | J92: 1591.13 | K92: 1520 | L92: 1457.8 | M92: 0.17999
A93: 83 | B93: CADILAHC | C93: 255.5 | D93: 253.97 | E93: 250.03 | F93: 244.57 | G93: 240.63 | H93: 259.43 | I93: 263.37 | J93: 268.83 | K93: 257.9 | L93: 248.5 | M93: 6.72164
A94: 84 | B94: CANFINHOME | C94: 405.55 | D94: 403.25 | E94: 396.80 | F94: 388.05 | G94: 381.60 | H94: 412.00 | I94: 418.45 | J94: 427.20 | K94: 409.7 | L94: 394.5 | M94: 3.94654
A95: 85 | B95: CANBK | C95: 207.1 | D95: 206.53 | E95: 203.17 | F95: 199.23 | G95: 195.87 | H95: 210.47 | I95: 213.83 | J95: 217.77 | K95: 209.9 | L95: 202.6 | M95: 83.67769
A96: 86 | B96: CAPLIPOINT | C96: 416.2 | D96: 423.40 | E96: 407.80 | F96: 399.40 | G96: 383.80 | H96: 431.80 | I96: 447.40 | J96: 455.80 | K96: 439 | L96: 415 | M96: 0.65702
A97: 87 | B97: CGCL | C97: 201.25 | D97: 200.80 | E97: 198.50 | F97: 195.75 | G97: 193.45 | H97: 203.55 | I97: 205.85 | J97: 208.60 | K97: 203.1 | L97: 198.05 | M97: 3.53032
A98: 88 | B98: CARBORUNIV | C98: 326.5 | D98: 328.13 | E98: 316.37 | F98: 306.23 | G98: 294.47 | H98: 338.27 | I98: 350.03 | J98: 360.17 | K98: 339.9 | L98: 318 | M98: 0.88276
A99: 89 | B99: CASTROLIND | C99: 155.05 | D99: 154.52 | E99: 152.03 | F99: 149.02 | G99: 146.53 | H99: 157.53 | I99: 160.02 | J99: 163.03 | K99: 157 | L99: 151.5 | M99: 15.67869
A100: 90 | B100: CEATLTD | C100: 1004.2 | D100: 1008.15 | E100: 979.30 | F100: 954.40 | G100: 925.55 | H100: 1033.05 | I100: 1061.90 | J100: 1086.80 | K100: 1037 | L100: 983.25 | M100: 5.30186
A101: 91 | B101: CENTRALBK | C101: 23.75 | D101: 23.95 | E101: 23.10 | F101: 22.45 | G101: 21.60 | H101: 24.60 | I101: 25.45 | J101: 26.10 | K101: 24.8 | L101: 23.3 | M101: 33.64003
A102: 92 | B102: CDSL | C102: 234.3 | D102: 233.00 | E102: 229.30 | F102: 224.30 | G102: 220.60 | H102: 238.00 | I102: 241.70 | J102: 246.70 | K102: 236.7 | L102: 228 | M102: 4.61052
A103: 93 | B103: CENTURYPLY | C103: 168.7 | D103: 167.12 | E103: 164.73 | F103: 160.77 | G103: 158.38 | H103: 171.08 | I103: 173.47 | J103: 177.43 | K103: 169.5 | L103: 163.15 | M103: 1.66217
A104: 94 | B104: CERA | C104: 2701.75 | D104: 2695.58 | E104: 2676.17 | F104: 2650.58 | G104: 2631.17 | H104: 2721.17 | I104: 2740.58 | J104: 2766.17 | K104: 2715 | L104: 2670 | M104: 0.02914
A105: 95 | B105: CHALET | C105: 331.6 | D105: 329.78 | E105: 319.57 | F105: 307.53 | G105: 297.32 | H105: 341.82 | I105: 352.03 | J105: 364.07 | K105: 340 | L105: 317.75 | M105: 0.06459
A106: 96 | B106: CHAMBLFERT | C106: 170.2 | D106: 170.90 | E106: 167.55 | F106: 164.90 | G106: 161.55 | H106: 173.55 | I106: 176.90 | J106: 179.55 | K106: 174.25 | L106: 168.25 | M106: 10.33564
A107: 97 | B107: CHENNPETRO | C107: 156.45 | D107: 156.93 | E107: 155.07 | F107: 153.68 | G107: 151.82 | H107: 158.32 | I107: 160.18 | J107: 161.57 | K107: 158.8 | L107: 155.55 | M107: 1.00894
A108: 98 | B108: CHOLAHLDNG | C108: 470.6 | D108: 470.20 | E108: 453.35 | F108: 436.10 | G108: 419.25 | H108: 487.45 | I108: 504.30 | J108: 521.55 | K108: 487.05 | L108: 452.95 | M108: 0.27988
A109: 99 | B109: CHOLAFIN | C109: 313.2 | D109: 310.73 | E109: 305.92 | F109: 298.63 | G109: 293.82 | H109: 318.02 | I109: 322.83 | J109: 330.12 | K109: 315.55 | L109: 303.45 | M109: 27.47442
A110: 100 | B110: CIPLA | C110: 469.2 | D110: 468.60 | E110: 463.00 | F110: 456.80 | G110: 451.20 | H110: 474.80 | I110: 480.40 | J110: 486.60 | K110: 474.2 | L110: 462.4 | M110: 36.49879
A111: 101 | B111: CUB | C111: 212.95 | D111: 212.43 | E111: 210.52 | F111: 208.08 | G111: 206.17 | H111: 214.87 | I111: 216.78 | J111: 219.22 | K111: 214.35 | L111: 210 | M111: 7.827
A112: 102 | B112: COALINDIA | C112: 207.1 | D112: 205.65 | E112: 203.30 | F112: 199.50 | G112: 197.15 | H112: 209.45 | I112: 211.80 | J112: 215.60 | K112: 208 | L112: 201.85 | M112: 71.18433
A113: 103 | B113: COCHINSHIP | C113: 409.6 | D113: 406.45 | E113: 393.15 | F113: 376.70 | G113: 363.40 | H113: 422.90 | I113: 436.20 | J113: 452.65 | K113: 419.75 | L113: 390 | M113: 5.55707
A114: 104 | B114: COFFEEDAY | C114: 32.05 | D114: 32.05 | E114: 32.05 | F114: 32.05 | G114: 32.05 | H114: 32.05 | I114: 32.05 | J114: 32.05 | K114: 32.05 | L114: 32.05 | M114: 0.68985
A115: 105 | B115: COLPAL | C115: 1534.25 | D115: 1542.25 | E115: 1520.00 | F115: 1505.75 | G115: 1483.50 | H115: 1556.50 | I115: 1578.75 | J115: 1593.00 | K115: 1564.5 | L115: 1528 | M115: 4.60658
A116: 106 | B116: CONCOR | C116: 580.7 | D116: 582.37 | E116: 569.73 | F116: 558.77 | G116: 546.13 | H116: 593.33 | I116: 605.97 | J116: 616.93 | K116: 595 | L116: 571.4 | M116: 20.25302
A117: 107 | B117: COROMANDEL | C117: 477 | D117: 482.95 | E117: 466.90 | F117: 456.80 | G117: 440.75 | H117: 493.05 | I117: 509.10 | J117: 519.20 | K117: 499 | L117: 472.85 | M117: 2.60899
A118: 108 | B118: CORPBANK | C118: 16.55 | D118: 16.65 | E118: 16.20 | F118: 15.85 | G118: 15.40 | H118: 17.00 | I118: 17.45 | J118: 17.80 | K118: 17.1 | L118: 16.3 | M118: 6.90265
A119: 109 | B119: COX&KINGS | C119: 1.7 | D119: 1.70 | E119: 1.70 | F119: 1.70 | G119: 1.70 | H119: 1.70 | I119: 1.70 | J119: 1.70 | K119: 1.7 | L119: 1.7 | M119: 3.34287
A120: 110 | B120: CREDITACC | C120: 638.75 | D120: 640.27 | E120: 633.63 | F120: 628.52 | G120: 621.88 | H120: 645.38 | I120: 652.02 | J120: 657.13 | K120: 646.9 | L120: 635.15 | M120: 0.53016
A121: 111 | B121: CROMPTON | C121: 253.1 | D121: 253.63 | E121: 250.57 | F121: 248.03 | G121: 244.97 | H121: 256.17 | I121: 259.23 | J121: 261.77 | K121: 256.7 | L121: 251.1 | M121: 11.23889
A122: 112 | B122: CUMMINSIND | C122: 550.05 | D122: 550.17 | E122: 541.58 | F122: 533.12 | G122: 524.53 | H122: 558.63 | I122: 567.22 | J122: 575.68 | K122: 558.75 | L122: 541.7 | M122: 10.55623
A123: 113 | B123: CYIENT | C123: 408.05 | D123: 406.48 | E123: 403.07 | F123: 398.08 | G123: 394.67 | H123: 411.47 | I123: 414.88 | J123: 419.87 | K123: 409.9 | L123: 401.5 | M123: 0.76694
A124: 114 | B124: DBCORP | C124: 147.2 | D124: 146.37 | E124: 144.73 | F124: 142.27 | G124: 140.63 | H124: 148.83 | I124: 150.47 | J124: 152.93 | K124: 148 | L124: 143.9 | M124: 0.21312
A125: 115 | B125: DCBBANK | C125: 182.55 | D125: 183.22 | E125: 180.43 | F125: 178.32 | G125: 175.53 | H125: 185.33 | I125: 188.12 | J125: 190.23 | K125: 186 | L125: 181.1 | M125: 8.42496
A126: 116 | B126: DCMSHRIRAM | C126: 376.6 | D126: 375.87 | E126: 368.78 | F126: 360.97 | G126: 353.88 | H126: 383.68 | I126: 390.77 | J126: 398.58 | K126: 382.95 | L126: 368.05 | M126: 1.06674
A127: 117 | B127: DLF | C127: 185.15 | D127: 184.83 | E127: 182.92 | F127: 180.68 | G127: 178.77 | H127: 187.07 | I127: 188.98 | J127: 191.22 | K127: 186.75 | L127: 182.6 | M127: 51.12995
A128: 118 | B128: DABUR | C128: 463.85 | D128: 465.60 | E128: 459.25 | F128: 454.65 | G128: 448.30 | H128: 470.20 | I128: 476.55 | J128: 481.15 | K128: 471.95 | L128: 461 | M128: 18.18491
A129: 119 | B129: DALBHARAT | C129: 814.3 | D129: 816.03 | E129: 806.77 | F129: 799.23 | G129: 789.97 | H129: 823.57 | I129: 832.83 | J129: 840.37 | K129: 825.3 | L129: 808.5 | M129: 1.0885
A130: 120 | B130: DEEPAKNTR | C130: 340.3 | D130: 338.77 | E130: 335.63 | F130: 330.97 | G130: 327.83 | H130: 343.43 | I130: 346.57 | J130: 351.23 | K130: 341.9 | L130: 334.1 | M130: 2.43835
A131: 121 | B131: DELTACORP | C131: 206.35 | D131: 207.62 | E131: 204.23 | F131: 202.12 | G131: 198.73 | H131: 209.73 | I131: 213.12 | J131: 215.23 | K131: 211 | L131: 205.5 | M131: 6.95856
A132: 122 | B132: DEN | C132: 48.15 | D132: 48.45 | E132: 46.85 | F132: 45.55 | G132: 43.95 | H132: 49.75 | I132: 51.35 | J132: 52.65 | K132: 50.05 | L132: 47.15 | M132: 0.25345
A133: 123 | B133: DHFL | C133: 18.3 | D133: 18.30 | E133: 18.30 | F133: 18.30 | G133: 18.30 | H133: 18.30 | I133: 18.30 | J133: 18.30 | K133: 18.3 | L133: 18.3 | M133: 3.65229
A134: 124 | B134: DBL | C134: 459 | D134: 454.93 | E134: 435.57 | F134: 412.13 | G134: 392.77 | H134: 478.37 | I134: 497.73 | J134: 521.17 | K134: 474.3 | L134: 431.5 | M134: 11.12912
A135: 125 | B135: DISHTV | C135: 16.2 | D135: 14.93 | E135: 13.42 | F135: 10.63 | G135: 9.12 | H135: 17.72 | I135: 19.23 | J135: 22.02 | K135: 16.45 | L135: 12.15 | M135: 1510.27585
A136: 126 | B136: DCAL | C136: 116.5 | D136: 117.07 | E136: 114.43 | F136: 112.37 | G136: 109.73 | H136: 119.13 | I136: 121.77 | J136: 123.83 | K136: 119.7 | L136: 115 | M136: 1.99358
A137: 127 | B137: DIVISLAB | C137: 1743.15 | D137: 1751.27 | E137: 1730.68 | F137: 1718.22 | G137: 1697.63 | H137: 1763.73 | I137: 1784.32 | J137: 1796.78 | K137: 1771.85 | L137: 1738.8 | M137: 3.39865
A138: 128 | B138: DIXON | C138: 3013.35 | D138: 3009.12 | E138: 2979.23 | F138: 2945.12 | G138: 2915.23 | H138: 3043.23 | I138: 3073.12 | J138: 3107.23 | K138: 3039 | L138: 2975 | M138: 0.04188
A139: 129 | B139: LALPATHLAB | C139: 1451.45 | D139: 1482.53 | E139: 1415.07 | F139: 1378.68 | G139: 1311.22 | H139: 1518.92 | I139: 1586.38 | J139: 1622.77 | K139: 1550 | L139: 1446.15 | M139: 2.22468
A140: 130 | B140: DRREDDY | C140: 2756.6 | D140: 2773.87 | E140: 2718.58 | F140: 2680.57 | G140: 2625.28 | H140: 2811.88 | I140: 2867.17 | J140: 2905.18 | K140: 2829.15 | L140: 2735.85 | M140: 30.00855
A141: 131 | B141: EIDPARRY | C141: 170.05 | D141: 171.50 | E141: 167.10 | F141: 164.15 | G141: 159.75 | H141: 174.45 | I141: 178.85 | J141: 181.80 | K141: 175.9 | L141: 168.55 | M141: 4.11548
A142: 132 | B142: EIHOTEL | C142: 166.95 | D142: 167.32 | E142: 165.13 | F142: 163.32 | G142: 161.13 | H142: 169.13 | I142: 171.32 | J142: 173.13 | K142: 169.5 | L142: 165.5 | M142: 1.29234
A143: 133 | B143: EDELWEISS | C143: 93.3 | D143: 93.38 | E143: 91.92 | F143: 90.53 | G143: 89.07 | H143: 94.77 | I143: 96.23 | J143: 97.62 | K143: 94.85 | L143: 92 | M143: 11.01851
A144: 134 | B144: EICHERMOT | C144: 21976.15 | D144: 22254.73 | E144: 21621.47 | F144: 21266.78 | G144: 20633.52 | H144: 22609.42 | I144: 23242.68 | J144: 23597.37 | K144: 22888 | L144: 21900.05 | M144: 1.87025
A145: 135 | B145: ELGIEQUIP | C145: 275 | D145: 275.15 | E145: 272.40 | F145: 269.80 | G145: 267.05 | H145: 277.75 | I145: 280.50 | J145: 283.10 | K145: 277.9 | L145: 272.55 | M145: 0.06787
A146: 136 | B146: EMAMILTD | C146: 327.55 | D146: 329.38 | E146: 323.17 | F146: 318.78 | G146: 312.57 | H146: 333.77 | I146: 339.98 | J146: 344.37 | K146: 335.6 | L146: 325 | M146: 1.3119
A147: 137 | B147: ENDURANCE | C147: 1091.5 | D147: 1100.88 | E147: 1077.27 | F147: 1063.03 | G147: 1039.42 | H147: 1115.12 | I147: 1138.73 | J147: 1152.97 | K147: 1124.5 | L147: 1086.65 | M147: 0.09667
A148: 138 | B148: ENGINERSIN | C148: 121.55 | D148: 121.12 | E148: 119.43 | F148: 117.32 | G148: 115.63 | H148: 123.23 | I148: 124.92 | J148: 127.03 | K148: 122.8 | L148: 119 | M148: 13.54349
A149: 139 | B149: EQUITAS | C149: 96.1 | D149: 95.52 | E149: 94.03 | F149: 91.97 | G149: 90.48 | H149: 97.58 | I149: 99.07 | J149: 101.13 | K149: 97 | L149: 93.45 | M149: 28.76844
A150: 140 | B150: ERIS | C150: 424.35 | D150: 426.38 | E150: 419.62 | F150: 414.88 | G150: 408.12 | H150: 431.12 | I150: 437.88 | J150: 442.62 | K150: 433.15 | L150: 421.65 | M150: 0.2858
A151: 141 | B151: ESCORTS | C151: 657.55 | D151: 663.68 | E151: 648.87 | F151: 640.18 | G151: 625.37 | H151: 672.37 | I151: 687.18 | J151: 695.87 | K151: 678.5 | L151: 655 | M151: 32.66867
A152: 142 | B152: ESSELPACK | C152: 112.65 | D152: 112.22 | E152: 109.53 | F152: 106.42 | G152: 103.73 | H152: 115.33 | I152: 118.02 | J152: 121.13 | K152: 114.9 | L152: 109.1 | M152: 0.43385
A153: 143 | B153: EXIDEIND | C153: 195.5 | D153: 194.03 | E153: 191.12 | F153: 186.73 | G153: 183.82 | H153: 198.42 | I153: 201.33 | J153: 205.72 | K153: 196.95 | L153: 189.65 | M153: 24.58583
A154: 144 | B154: FDC | C154: 176.3 | D154: 177.15 | E154: 174.15 | F154: 172.00 | G154: 169.00 | H154: 179.30 | I154: 182.30 | J154: 184.45 | K154: 180.15 | L154: 175 | M154: 0.15827
A155: 145 | B155: FEDERALBNK | C155: 86.05 | D155: 85.30 | E155: 84.15 | F155: 82.25 | G155: 81.10 | H155: 87.20 | I155: 88.35 | J155: 90.25 | K155: 86.45 | L155: 83.4 | M155: 254.98852
A156: 146 | B156: FMGOETZE | C156: 559.75 | D156: 557.88 | E156: 550.87 | F156: 541.98 | G156: 534.97 | H156: 566.77 | I156: 573.78 | J156: 582.67 | K156: 564.9 | L156: 549 | M156: 0.12885
A157: 147 | B157: FINEORG | C157: 1881.1 | D157: 1888.82 | E157: 1858.63 | F157: 1836.17 | G157: 1805.98 | H157: 1911.28 | I157: 1941.47 | J157: 1963.93 | K157: 1919 | L157: 1866.35 | M157: 0.07094
A158: 148 | B158: FINCABLES | C158: 379.7 | D158: 384.23 | E158: 374.57 | F158: 369.43 | G158: 359.77 | H158: 389.37 | I158: 399.03 | J158: 404.17 | K158: 393.9 | L158: 379.1 | M158: 0.34744
A159: 149 | B159: FINPIPE | C159: 601.15 | D159: 605.05 | E159: 596.10 | F159: 591.05 | G159: 582.10 | H159: 610.10 | I159: 619.05 | J159: 624.10 | K159: 614 | L159: 600 | M159: 0.60101
A160: 150 | B160: FSL | C160: 49.6 | D160: 49.78 | E160: 48.77 | F160: 47.93 | G160: 46.92 | H160: 50.62 | I160: 51.63 | J160: 52.47 | K160: 50.8 | L160: 48.95 | M160: 24.2935
A161: 151 | B161: FORTIS | C161: 150.85 | D161: 149.83 | E161: 146.92 | F161: 142.98 | G161: 140.07 | H161: 153.77 | I161: 156.68 | J161: 160.62 | K161: 152.75 | L161: 145.9 | M161: 64.98519
A162: 152 | B162: FCONSUMER | C162: 27.5 | D162: 27.18 | E162: 26.57 | F162: 25.63 | G162: 25.02 | H162: 28.12 | I162: 28.73 | J162: 29.67 | K162: 27.8 | L162: 26.25 | M162: 15.72453
A163: 153 | B163: FLFL | C163: 416.6 | D163: 415.00 | E163: 409.60 | F163: 402.60 | G163: 397.20 | H163: 422.00 | I163: 427.40 | J163: 434.40 | K163: 420.4 | L163: 408 | M163: 0.06135
A164: 154 | B164: FRETAIL | C164: 379.35 | D164: 380.17 | E164: 376.68 | F164: 374.02 | G164: 370.53 | H164: 382.83 | I164: 386.32 | J164: 388.98 | K164: 383.65 | L164: 377.5 | M164: 6.19327
A165: 155 | B165: GAIL | C165: 135.15 | D165: 136.18 | E165: 133.67 | F165: 132.18 | G165: 129.67 | H165: 137.67 | I165: 140.18 | J165: 141.67 | K165: 138.7 | L165: 134.7 | M165: 64.01816
A166: 156 | B166: GEPIL | C166: 707.8 | D166: 721.32 | E166: 689.38 | F166: 670.97 | G166: 639.03 | H166: 739.73 | I166: 771.67 | J166: 790.08 | K166: 753.25 | L166: 702.9 | M166: 0.21127
A167: 157 | B167: GET&D | C167: 200.95 | D167: 202.98 | E167: 196.97 | F167: 192.98 | G167: 186.97 | H167: 206.97 | I167: 212.98 | J167: 216.97 | K167: 209 | L167: 199 | M167: 0.1657
A168: 158 | B168: GHCL | C168: 214.9 | D168: 216.03 | E168: 213.07 | F168: 211.23 | G168: 208.27 | H168: 217.87 | I168: 220.83 | J168: 222.67 | K168: 219 | L168: 214.2 | M168: 0.55719
A169: 159 | B169: GMRINFRA | C169: 20.8 | D169: 20.82 | E169: 20.53 | F169: 20.27 | G169: 19.98 | H169: 21.08 | I169: 21.37 | J169: 21.63 | K169: 21.1 | L169: 20.55 | M169: 118.16695
A170: 160 | B170: GALAXYSURF | C170: 1499.7 | D170: 1509.90 | E170: 1474.80 | F170: 1449.90 | G170: 1414.80 | H170: 1534.80 | I170: 1569.90 | J170: 1594.80 | K170: 1545 | L170: 1485 | M170: 0.07239
A171: 161 | B171: GARFIBRES | C171: 1175.65 | D171: 1176.78 | E171: 1166.52 | F171: 1157.38 | G171: 1147.12 | H171: 1185.92 | I171: 1196.18 | J171: 1205.32 | K171: 1187.05 | L171: 1167.65 | M171: 0.0347
A172: 162 | B172: GAYAPROJ | C172: 124.85 | D172: 126.12 | E172: 122.23 | F172: 119.62 | G172: 115.73 | H172: 128.73 | I172: 132.62 | J172: 135.23 | K172: 130 | L172: 123.5 | M172: 1.27343
A173: 163 | B173: GICRE | C173: 300.95 | D173: 306.62 | E173: 293.33 | F173: 285.72 | G173: 272.43 | H173: 314.23 | I173: 327.52 | J173: 335.13 | K173: 319.9 | L173: 299 | M173: 5.21009
A174: 164 | B174: GILLETTE | C174: 7953.4 | D174: 7982.20 | E174: 7878.20 | F174: 7803.00 | G174: 7699.00 | H174: 8057.40 | I174: 8161.40 | J174: 8236.60 | K174: 8086.2 | L174: 7907 | M174: 0.04374
A175: 165 | B175: GLAXO | C175: 1671.75 | D175: 1673.60 | E175: 1648.20 | F175: 1624.65 | G175: 1599.25 | H175: 1697.15 | I175: 1722.55 | J175: 1746.10 | K175: 1699 | L175: 1650.05 | M175: 0.50289
A176: 166 | B176: GLENMARK | C176: 315.75 | D176: 317.47 | E176: 313.13 | F176: 310.52 | G176: 306.18 | H176: 320.08 | I176: 324.42 | J176: 327.03 | K176: 321.8 | L176: 314.85 | M176: 13.34886
A177: 167 | B177: GODFRYPHLP | C177: 1114.8 | D177: 1112.35 | E177: 1089.80 | F177: 1064.80 | G177: 1042.25 | H177: 1137.35 | I177: 1159.90 | J177: 1184.90 | K177: 1134.9 | L177: 1087.35 | M177: 0.97306
A178: 168 | B178: GODREJAGRO | C178: 512.4 | D178: 513.63 | E178: 507.27 | F178: 502.13 | G178: 495.77 | H178: 518.77 | I178: 525.13 | J178: 530.27 | K178: 520 | L178: 508.5 | M178: 0.47218
A179: 169 | B179: GODREJCP | C179: 738.05 | D179: 744.03 | E179: 725.57 | F179: 713.08 | G179: 694.62 | H179: 756.52 | I179: 774.98 | J179: 787.47 | K179: 762.5 | L179: 731.55 | M179: 9.1965
A180: 170 | B180: GODREJIND | C180: 423.35 | D180: 422.13 | E180: 416.82 | F180: 410.28 | G180: 404.97 | H180: 428.67 | I180: 433.98 | J180: 440.52 | K180: 427.45 | L180: 415.6 | M180: 1.16196
A181: 171 | B181: GODREJPROP | C181: 1000 | D181: 1003.27 | E181: 987.63 | F181: 975.27 | G181: 959.63 | H181: 1015.63 | I181: 1031.27 | J181: 1043.63 | K181: 1018.9 | L181: 990.9 | M181: 2.22001
A182: 172 | B182: GRANULES | C182: 121.15 | D182: 122.53 | E182: 117.67 | F182: 114.18 | G182: 109.32 | H182: 126.02 | I182: 130.88 | J182: 134.37 | K182: 127.4 | L182: 119.05 | M182: 8.85497
A183: 173 | B183: GRAPHITE | C183: 288.55 | D183: 288.72 | E183: 283.63 | F183: 278.72 | G183: 273.63 | H183: 293.63 | I183: 298.72 | J183: 303.63 | K183: 293.8 | L183: 283.8 | M183: 14.62808
A184: 174 | B184: GRASIM | C184: 775.7 | D184: 779.10 | E184: 760.20 | F184: 744.70 | G184: 725.80 | H184: 794.60 | I184: 813.50 | J184: 829.00 | K184: 798 | L184: 763.6 | M184: 45.57725
A185: 175 | B185: GESHIP | C185: 294.7 | D185: 298.50 | E185: 290.00 | F185: 285.30 | G185: 276.80 | H185: 303.20 | I185: 311.70 | J185: 316.40 | K185: 307 | L185: 293.8 | M185: 0.68944
A186: 176 | B186: GREAVESCOT | C186: 138.15 | D186: 138.92 | E186: 136.63 | F186: 135.12 | G186: 132.83 | H186: 140.43 | I186: 142.72 | J186: 144.23 | K186: 141.2 | L186: 137.4 | M186: 0.8989
A187: 177 | B187: GRINDWELL | C187: 592 | D187: 595.87 | E187: 581.73 | F187: 571.47 | G187: 557.33 | H187: 606.13 | I187: 620.27 | J187: 630.53 | K187: 610 | L187: 585.6 | M187: 0.1933
A188: 178 | B188: GUJALKALI | C188: 472.45 | D188: 472.48 | E188: 464.97 | F188: 457.48 | G188: 449.97 | H188: 479.97 | I188: 487.48 | J188: 494.97 | K188: 480 | L188: 465 | M188: 0.46873
A189: 179 | B189: GUJGASLTD | C189: 196.35 | D189: 196.53 | E189: 193.87 | F189: 191.38 | G189: 188.72 | H189: 199.02 | I189: 201.68 | J189: 204.17 | K189: 199.2 | L189: 194.05 | M189: 6.67315
A190: 180 | B190: GMDCLTD | C190: 63.7 | D190: 63.63 | E190: 63.17 | F190: 62.63 | G190: 62.17 | H190: 64.17 | I190: 64.63 | J190: 65.17 | K190: 64.1 | L190: 63.1 | M190: 1.13238
A191: 181 | B191: GNFC | C191: 221.7 | D191: 220.18 | E191: 215.77 | F191: 209.83 | G191: 205.42 | H191: 226.12 | I191: 230.53 | J191: 236.47 | K191: 224.6 | L191: 214.25 | M191: 7.52736
A192: 182 | B192: GPPL | C192: 87.05 | D192: 86.67 | E192: 85.53 | F192: 84.02 | G192: 82.88 | H192: 88.18 | I192: 89.32 | J192: 90.83 | K192: 87.8 | L192: 85.15 | M192: 1.81657
A193: 183 | B193: GSFC | C193: 81.35 | D193: 81.45 | E193: 80.00 | F193: 78.65 | G193: 77.20 | H193: 82.80 | I193: 84.25 | J193: 85.60 | K193: 82.9 | L193: 80.1 | M193: 7.42287
A194: 184 | B194: GSPL | C194: 213.6 | D194: 212.58 | E194: 209.12 | F194: 204.63 | G194: 201.17 | H194: 217.07 | I194: 220.53 | J194: 225.02 | K194: 216.05 | L194: 208.1 | M194: 13.25844
A195: 185 | B195: GULFOILLUB | C195: 880.15 | D195: 877.38 | E195: 869.77 | F195: 859.38 | G195: 851.77 | H195: 887.77 | I195: 895.38 | J195: 905.77 | K195: 885 | L195: 867 | M195: 0.10934
A196: 186 | B196: HEG | C196: 990.9 | D196: 997.77 | E196: 978.13 | F196: 965.37 | G196: 945.73 | H196: 1010.53 | I196: 1030.17 | J196: 1042.93 | K196: 1017.4 | L196: 985 | M196: 3.45094
A197: 187 | B197: HCLTECH | C197: 1152 | D197: 1154.13 | E197: 1141.27 | F197: 1130.53 | G197: 1117.67 | H197: 1164.87 | I197: 1177.73 | J197: 1188.47 | K197: 1167 | L197: 1143.4 | M197: 10.65855
A198: 188 | B198: HDFCAMC | C198: 2970.1 | D198: 2978.80 | E198: 2952.60 | F198: 2935.10 | G198: 2908.90 | H198: 2996.30 | I198: 3022.50 | J198: 3040.00 | K198: 3005 | L198: 2961.3 | M198: 2.01716
A199: 189 | B199: HDFCBANK | C199: 1240.05 | D199: 1237.13 | E199: 1230.52 | F199: 1220.98 | G199: 1214.37 | H199: 1246.67 | I199: 1253.28 | J199: 1262.82 | K199: 1243.75 | L199: 1227.6 | M199: 57.5613
A200: 190 | B200: HDFCLIFE | C200: 612.7 | D200: 618.93 | E200: 601.87 | F200: 591.03 | G200: 573.97 | H200: 629.77 | I200: 646.83 | J200: 657.67 | K200: 636 | L200: 608.1 | M200: 40.02384
A201: 191 | B201: HATHWAY | C201: 21.45 | D201: 21.32 | E201: 20.93 | F201: 20.42 | G201: 20.03 | H201: 21.83 | I201: 22.22 | J201: 22.73 | K201: 21.7 | L201: 20.8 | M201: 2.46661
A202: 192 | B202: HATSUN | C202: 604.7 | D202: 603.58 | E202: 592.17 | F202: 579.63 | G202: 568.22 | H202: 616.12 | I202: 627.53 | J202: 640.07 | K202: 615 | L202: 591.05 | M202: 0.04518
A203: 193 | B203: HAVELLS | C203: 688.35 | D203: 691.08 | E203: 684.27 | F203: 680.18 | G203: 673.37 | H203: 695.17 | I203: 701.98 | J203: 706.07 | K203: 697.9 | L203: 687 | M203: 5.40561
A204: 194 | B204: HEIDELBERG | C204: 186 | D204: 186.33 | E204: 184.32 | F204: 182.63 | G204: 180.62 | H204: 188.02 | I204: 190.03 | J204: 191.72 | K204: 188.35 | L204: 184.65 | M204: 2.29428
A205: 195 | B205: HERITGFOOD | C205: 319.95 | D205: 315.82 | E205: 302.73 | F205: 285.52 | G205: 272.43 | H205: 333.03 | I205: 346.12 | J205: 363.33 | K205: 328.9 | L205: 298.6 | M205: 3.63992
A206: 196 | B206: HEROMOTOCO | C206: 2707.15 | D206: 2712.42 | E206: 2665.83 | F206: 2624.52 | G206: 2577.93 | H206: 2753.73 | I206: 2800.32 | J206: 2841.63 | K206: 2759 | L206: 2671.1 | M206: 14.27332
... 320 more rows

Sheet Bulk Deals
E6: Back To Main Page
A7: Subject : | B7: BULK DEAL | D7: =Main!B10 -> 2019-11-04
A9: Date | B9: Scrip code | C9: Scrip Name | D9: Client Name | E9: Buy / Sell | F9: Quantity Traded | G9: Trade Price / Wt.Avg.trade price | H9: Exchange
A10: 2019-11-01 | B10: 531508 | C10: EVEREADY | D10: ADITYA BIRLA FINANCE LIMITED | E10: SELL | F10: 2,500,000 | G10: 59.60 | H10: BSE
A11: 2019-11-01 | B11: 531508 | C11: EVEREADY | D11: ICM FINANCE PRIVATE LIMITED | E11: BUY | F11: 750,000 | G11: 59.60 | H11: BSE
A12: 2019-11-01 | B12: 531508 | C12: EVEREADY | D12: ICM FINANCE PRIVATE LIMITED | E12: BUY | F12: 1,100,000 | G12: 59.6 | H12: BSE
A13: 2019-11-01 | B13: 531508 | C13: EVEREADY | D13: NARAVI INFRA AND UTILITIES PRIVATELIMITED | E13: BUY | F13: 600,000 | G13: 59.6 | H13: BSE
A14: 2019-11-01 | B14: 533212 | C14: GKB | D14: HARTMUT JOHANNES WURSTER . | E14: BUY | F14: 50,000 | G14: 30.29 | H14: BSE
A15: 2019-11-01 | B15: 533212 | C15: GKB | D15: HDFC BANK LIMITED | E15: SELL | F15: 50,748 | G15: 30.3 | H15: BSE
A16: 2019-11-01 | B16: 538765 | C16: JSHL | D16: RAM SAGAR TIWARI | E16: SELL | F16: 90,000 | G16: 10.25 | H16: BSE
A17: 2019-11-01 | B17: 542459 | C17: KRANTI | D17: SMC GLOBAL SECURITIES LIMITED | E17: SELL | F17: 51,000 | G17: 30.00 | H17: BSE
A18: 2019-11-01 | B18: 542459 | C18: KRANTI | D18: YOGESH CHOUDHARY | E18: BUY | F18: 51,000 | G18: 30.00 | H18: BSE
A19: 2019-11-01 | B19: 530733 | C19: NOVAPUB | D19: EPOCH MERCANTILES PVT LTD | E19: SELL | F19: 39,900 | G19: 12.49 | H19: BSE
A20: 2019-11-01 | B20: 530733 | C20: NOVAPUB | D20: SEKH GOLAMAHEMAD RAZA | E20: BUY | F20: 40,000 | G20: 12.49 | H20: BSE
A21: 2019-11-01 | B21: 523862 | C21: PIFL | D21: GANGADEVI | E21: BUY | F21: 69,000 | G21: 3.61 | H21: BSE
A22: 2019-11-01 | B22: 523862 | C22: PIFL | D22: MILTON PRAVEENRAJ | E22: BUY | F22: 69,000 | G22: 3.61 | H22: BSE
A23: 2019-11-01 | B23: 523862 | C23: PIFL | D23: PUSHPADEVI PADAMCHAND DHOOT | E23: SELL | F23: 69,000 | G23: 3.61 | H23: BSE
A24: 2019-11-01 | B24: 523862 | C24: PIFL | D24: P C DHOOT HUF | E24: SELL | F24: 69,000 | G24: 3.61 | H24: BSE
A25: 2019-11-01 | B25: 539814 | C25: RADHEY | D25: SHASHIKANT JIVANLAL VORA | E25: SELL | F25: 21,000 | G25: 19.75 | H25: BSE
A26: 2019-11-01 | B26: 539814 | C26: RADHEY | D26: PARAS VINODRAI SHAH | E26: SELL | F26: 85,864 | G26: 19.67 | H26: BSE
A27: 2019-11-01 | B27: 539814 | C27: RADHEY | D27: SHIV PARVATI LEASING PRIVATE LIMITED | E27: SELL | F27: 64,136 | G27: 19.74 | H27: BSE
A28: 2019-11-01 | B28: 540796 | C28: RATNABHUMI | D28: ARYAMAN BROKING LIMITED | E28: SELL | F28: 88,000 | G28: 60.56 | H28: BSE
A29: 2019-11-01 | B29: 540796 | C29: RATNABHUMI | D29: SHAH MUKESHKUMAR BABULAL | E29: BUY | F29: 76,000 | G29: 60.04 | H29: BSE
A30: 2019-11-01 | B30: 541634 | C30: RAWEDGE | D30: MIKER FINANCIAL CONSULTANTS PRIVATE LIMITED . | E30: BUY | F30: 48,000 | G30: 70.67 | H30: BSE
A31: 2019-11-01 | B31: 541634 | C31: RAWEDGE | D31: NNM SECURITIES PVT LTD | E31: SELL | F31: 48,000 | G31: 70.67 | H31: BSE
A32: 2019-11-01 | B32: 539520 | C32: SHAILJA | D32: SHASHIKANT CHINUBHAI KAPADIA | E32: SELL | F32: 70,926 | G32: 7.43 | H32: BSE
A33: 2019-11-01 | B33: 539520 | C33: SHAILJA | D33: SHASHIKANT CHINUBHAI KAPADIA | E33: SELL | F33: 45,469 | G33: 8.04 | H33: BSE
A34: 2019-11-01 | B34: 539520 | C34: SHAILJA | D34: BHARATI ARVIND SHAH | E34: BUY | F34: 22,326 | G34: 7.57 | H34: BSE
A35: 2019-11-01 | B35: 539520 | C35: SHAILJA | D35: RUPAL BHAVIN SHAH | E35: BUY | F35: 22,400 | G35: 7.6 | H35: BSE
A36: 2019-11-01 | B36: 539520 | C36: SHAILJA | D36: BHAVIN ARVIND SHAH | E36: BUY | F36: 25,969 | G36: 7.56 | H36: BSE
A37: 2019-11-01 | B37: 539520 | C37: SHAILJA | D37: ARVIND SHANTILAL SHAH | E37: BUY | F37: 27,800 | G37: 7.66 | H37: BSE
A38: 2019-11-01 | B38: 539520 | C38: SHAILJA | D38: ARVIND SHANTILAL SHAH | E38: SELL | F38: 1,000 | G38: 8.04 | H38: BSE
A39: 2019-11-01 | B39: 540653 | C39: SINTEXPLAST | D39: ALPHA LEON ENTERPRISES LLP | E39: BUY | F39: 86 | G39: 1.28 | H39: BSE
A40: 2019-11-01 | B40: 540653 | C40: SINTEXPLAST | D40: ALPHA LEON ENTERPRISES LLP | E40: SELL | F40: 4,337,828 | G40: 1.28 | H40: BSE
A41: 2019-11-01 | B41: 530735 | C41: SUPERBAK | D41: RAJESH RADHESHYAM AGRAWAL | E41: SELL | F41: 20,217 | G41: 5.89 | H41: BSE
A42: 2019-11-01 | B42: 524576 | C42: VIVIDIND | D42: MAHESHKUMAR RAMDAS KANKAREJ | E42: SELL | F42: 47,500 | G42: 14.74 | H42: BSE
A43: 2019-11-01 | B43: DISHTV | C43: Dish TV India Limited | D43: SURJECTIVE RESEARCH CAPITAL LLP | E43: BUY | F43: 10,068,714 | G43: 15.26 | H43: NSE
A44: 2019-11-01 | B44: DISHTV | C44: Dish TV India Limited | D44: TOWER RESEARCH CAPITAL MARKETS INDIA PRIVATE LIMITED | E44: BUY | F44: 11,474,594 | G44: 14.88 | H44: NSE
A45: 2019-11-01 | B45: IBULHSGFIN | C45: Indiabulls Hsg Fin Ltd | D45: TOWER RESEARCH CAPITAL MARKETS INDIA PRIVATE LIMITED | E45: BUY | F45: 3,172,641 | G45: 218.63 | H45: NSE
A46: 2019-11-01 | B46: IBULHSGFIN | C46: Indiabulls Hsg Fin Ltd | D46: SURJECTIVE RESEARCH CAPITAL LLP | E46: BUY | F46: 2,929,423 | G46: 220.11 | H46: NSE
A47: 2019-11-01 | B47: IDEA | C47: Vodafone Idea Limited | D47: SKYVEIL TRADE SOLUTIONS LLP | E47: BUY | F47: 126,345,753 | G47: 4.34 | H47: NSE
A48: 2019-11-01 | B48: JUSTDIAL | C48: Justdial Ltd. | D48: GRAVITON RESEARCH CAPITAL LLP | E48: BUY | F48: 326,475 | G48: 568.21 | H48: NSE
A49: 2019-11-01 | B49: JYOTHYLAB | C49: Jyothy Labs Limited | D49: UTI MUTUAL FUND | E49: BUY | F49: 1,960,000 | G49: 173.4 | H49: NSE
A50: 2019-11-01 | B50: JYOTHYLAB | C50: Jyothy Labs Limited | D50: RELIANCE MUTUAL FUND | E50: BUY | F50: 6,920,000 | G50: 173.4 | H50: NSE
A51: 2019-11-01 | B51: NCC | C51: NCC Limited | D51: TOWER RESEARCH CAPITAL MARKETS INDIA PRIVATE LIMITED | E51: BUY | F51: 2,996,527 | G51: 59.08 | H51: NSE
A52: 2019-11-01 | B52: ORTEL | C52: Ortel Communications Ltd | D52: NITIN RUNGTA HUF | E52: BUY | F52: 198,500 | G52: 0.15 | H52: NSE
A53: 2019-11-01 | B53: ORTEL | C53: Ortel Communications Ltd | D53: ALPHA LEON ENTERPRISES LLP | E53: BUY | F53: 583,603 | G53: 0.15 | H53: NSE
A54: 2019-11-01 | B54: ORTEL | C54: Ortel Communications Ltd | D54: CHANAKYA CAPITAL SERVICES PRIVATE LIMITED | E54: BUY | F54: 362,446 | G54: 0.16 | H54: NSE
A55: 2019-11-01 | B55: SANCO | C55: Sanco Industries Ltd. | D55: BHAMINI KAMAL PAREKH | E55: BUY | F55: 127,000 | G55: 15.95 | H55: NSE
A56: 2019-11-01 | B56: YESBANK | C56: Yes Bank Limited | D56: SURJECTIVE RESEARCH CAPITAL LLP | E56: BUY | F56: 38,831,999 | G56: 68.22 | H56: NSE
A57: 2019-11-01 | B57: YESBANK | C57: Yes Bank Limited | D57: TOWER RESEARCH CAPITAL MARKETS INDIA PRIVATE LIMITED | E57: BUY | F57: 28,104,043 | G57: 68.54 | H57: NSE
A58: 2019-11-01 | B58: YESBANK | C58: Yes Bank Limited | D58: ALPHAGREP SECURITIES PRIVATE LIMITED | E58: BUY | F58: 16,341,251 | G58: 68.17 | H58: NSE
A59: 2019-11-01 | B59: CLEDUCATE | C59: CL Educate Limited | D59: PRINCIPAL MUTUAL FUND | E59: SELL | F59: 72,957 | G59: 75 | H59: NSE
A60: 2019-11-01 | B60: DISHTV | C60: Dish TV India Limited | D60: SURJECTIVE RESEARCH CAPITAL LLP | E60: SELL | F60: 10,048,498 | G60: 15.37 | H60: NSE
A61: 2019-11-01 | B61: DISHTV | C61: Dish TV India Limited | D61: TOWER RESEARCH CAPITAL MARKETS INDIA PRIVATE LIMITED | E61: SELL | F61: 11,474,594 | G61: 14.95 | H61: NSE
A62: 2019-11-01 | B62: IBULHSGFIN | C62: Indiabulls Hsg Fin Ltd | D62: SURJECTIVE RESEARCH CAPITAL LLP | E62: SELL | F62: 2,927,341 | G62: 220.17 | H62: NSE
A63: 2019-11-01 | B63: IBULHSGFIN | C63: Indiabulls Hsg Fin Ltd | D63: TOWER RESEARCH CAPITAL MARKETS INDIA PRIVATE LIMITED | E63: SELL | F63: 3,251,565 | G63: 218.93 | H63: NSE
A64: 2019-11-01 | B64: IDEA | C64: Vodafone Idea Limited | D64: SKYVEIL TRADE SOLUTIONS LLP | E64: SELL | F64: 146238334 | G64: 4.43 | H64: NSE
A65: 2019-11-01 | B65: JUSTDIAL | C65: Justdial Ltd. | D65: GRAVITON RESEARCH CAPITAL LLP | E65: SELL | F65: 326475 | G65: 568.93 | H65: NSE
A66: 2019-11-01 | B66: JYOTHYLAB | C66: Jyothy Labs Limited | D66: SAHYADRI AGENCIES LIMITED | E66: SELL | F66: 2583000 | G66: 173.53 | H66: NSE
A67: 2019-11-01 | B67: JYOTHYLAB | C67: Jyothy Labs Limited | D67: SAHYADRI AGENCIES LIMITED | E67: SELL | F67: 12917000 | G67: 173.4 | H67: NSE
A68: 2019-11-01 | B68: NCC | C68: NCC Limited | D68: TOWER RESEARCH CAPITAL MARKETS INDIA PRIVATE LIMITED | E68: SELL | F68: 3172398 | G68: 59.07 | H68: NSE
A69: 2019-11-01 | B69: ORTEL | C69: Ortel Communications Ltd | D69: RIVENDELL PE LLC | E69: SELL | F69: 1635426 | G69: 0.15 | H69: NSE
A70: 2019-11-01 | B70: SANCO | C70: Sanco Industries Ltd. | D70: RESOURCE OPZIONE CONSULTANCY PRIVATE LIMITED | E70: SELL | F70: 125000 | G70: 15.95 | H70: NSE
A71: 2019-11-01 | B71: SHIRPUR-G | C71: AgeeGoldRefn-Roll Sett | D71: IFCI LTD. | E71: SELL | F71: 333523 | G71: 7.51 | H71: NSE
A72: 2019-11-01 | B72: YESBANK | C72: Yes Bank Limited | D72: ALPHAGREP SECURITIES PRIVATE LIMITED | E72: SELL | F72: 16339456 | G72: 68.2 | H72: NSE
A73: 2019-11-01 | B73: YESBANK | C73: Yes Bank Limited | D73: SURJECTIVE RESEARCH CAPITAL LLP | E73: SELL | F73: 38774780 | G73: 68.23 | H73: NSE
A74: 2019-11-01 | B74: YESBANK | C74: Yes Bank Limited | D74: TOWER RESEARCH CAPITAL MARKETS INDIA PRIVATE LIMITED | E74: SELL | F74: 27171529 | G74: 68.54 | H74: NSE
A75: 2019-11-01 | B75: YESBANK | C75: Yes Bank Limited | D75: BNP PARIBAS ARBITRAGE | E75: SELL | F75: 12956235 | G75: 69.15 | H75: NSE

Sheet Call Tracker (Equity & F&O)
M5: Back To Main Page
A6: Retail Research Technical Calls & Fundamental Performance Report for the month of November-2019
M7: =Main!B10 -> 2019-11-04
B8: Positional Call
A9: Sr.no | B9: Date | D9: Company | E9: Rec | F9: Rec Price | G9: Stop Loss*** | H9: Call Closed At | I9: Target | J9: Remark | K9: Profit / Loss per Share | L9: Gain / Loss % | M9: Status | N9: Closed Date | O9: NSE Closed Price
A10: 1 | B10: 2019-09-26 | D10: HDFC | E10: Buy | F10: 2070 | G10: 1940 | H10: 2165 | I10: 2250-2300 | J10: Profit of Rs.95/- | K10: =H10-F10 -> 95 | L10: =K10/F10 -> 4.59% | M10: Successful | N10: 2019-11-01 | O10: =VLOOKUP(D10,Sheet2!A43:M1682,6,0) -> 2128.6 | R10: H
A11: 2 | B11: 2019-10-01 | D11: UPL | E11: Buy | F11: 592-598 | G11: 564 | I11: 650-660 | J11: Open | O11: =VLOOKUP(D11,Sheet2!A47:M1686,6,0) -> 588.55 | R11: R
A12: 3 | B12: 2019-10-07 | D12: PIDILITIND | E12: Buy | F12: 1367.5 | G12: 1297 | H12: 1413.5 | I12: 1500-1520 | J12: Part Profit of Rs.46/- | K12: =H12-F12 -> 46 | L12: =K12/F12 -> 3.36% | M12: Successful | N12: 2019-10-31 | O12: =VLOOKUP(D12,Sheet2!A51:M1690,6,0) -> 1397.95 | R12: R
A13: 4 | B13: 2019-10-22 | D13: HEIDELBERG | E13: Buy | F13: 187.50-189.50 | G13: 178 | I13: 205-210 | J13: Open | O13: =VLOOKUP(D13,Sheet2!A58:M1697,6,0) -> 186 | R13: H
A14: 5 | B14: 2019-10-27 | D14: AMBUJACEM | E14: Buy | F14: 197 | G14: 185.4 | H14: 203.5 | I14: 216-220 | J14: Part Profit of Rs.6.5/- | K14: =H14-F14 -> 6.5 | L14: =K14/F14 -> 3.30% | M14: Successful | N14: 2019-10-30 | O14: =VLOOKUP(D14,Sheet2!A60:M1699,6,0) -> 201.6 | R14: R
A15: 6
A30: CLBS = Closing Basis ***
A31: Dividend adjusted <> | F31: Reinitiated $
A32: Part book {} | F32: Revised stoploss #
B34: Momentum Call
A35: Sr.no | B35: Date | D35: Company | E35: Rec | F35: Rec Price | G35: Stop Loss | H35: Call Closed At | I35: Target | J35: Remark | K35: Profit / Loss per Share/Lot | L35: Gain / Loss % | M35: Gain / Loss per Lot | N35: Lot | O35: Status | P35: Closed Date
A36: 79 | B36: 2019-10-29 | D36: RELIANCE | E36: Sell | F36: 1445-1450 | G36: 1505 | I36: 1380-1350 | J36: Open | R36: H
A37: 85 | B37: 2019-10-29 | D37: INDUSINDBK | E37: Buy | F37: 1319 | G37: 1278 | H37: 1347.5 | I37: 1370-1390 | J37: Profit of Rs.28.5/- | K37: =H37-F37 -> 28.5 | L37: =K37/F37 -> 2.16% | O37: Successful | P37: 2019-11-01 | R37: H
A38: 89 | B38: 2019-10-30 | D38: POWERGRID | E38: Buy | F38: 199-200 | G38: 194.5 | I38: 210 | J38: Open | R38: H
A39: 90 | B39: 2019-10-31 | D39: MFSL NOV FUT | E39: Buy | F39: 406-408 | G39: 396 | I39: 425 | J39: Open | R39: N
A40: 91 | B40: 2019-10-31 | D40: HDFCBANK NOV FUT | E40: Buy | F40: 1238-1240 | G40: 1215 | I40: 1280 | J40: Open | R40: N
A41: 92 | B41: 2019-11-01 | D41: TORNTPOWER NOV FUT | E41: Sell | F41: 285 | G41: 289 | H41: 282 | I41: 276 | J41: Profit of Rs.3/- | K41: =F41-H41 -> 3 | M41: =N41*K41 -> 9000 | N41: 3000 | O41: Successful | P41: 2019-11-01 | R41: N
A42: 93 | B42: 2019-11-01 | D42: SBIN | E42: Sell | F42: 313-315 | G42: 322 | I42: 300-395 | J42: Open | R42: R
A52: CLBS = Closing Basis ***
A53: Dividend adjusted <> | F53: Reinitiated $
F54: Revised stoploss #
A56: Master Trade High Risk
A57: Sr.no | B57: Date | D57: Company | E57: Rec | F57: Rec Price | G57: Stop Loss | H57: Call Closed At | I57: Target | J57: Remark | K57: Profit / Loss per share | L57: Gain / Loss per Lot | M57: Lot | N57: Status | O57: Closed Date
A58: 1 | B58: 2019-10-30 | D58: BAJAJ-AUTO NOV FUT | E58: Sell | F58: 3235-3245 | G58: 3360 | I58: 3040 | J58: Open | R58: H
D59: BAJAJ-AUTO 3100 PE NOV | E59: Sell | F59: 47-52 | R59: H
A60: 2 | B60: 2019-10-30 | D60: LT NOV FUT | E60: Buy | F60: 1474-1479 | G60: 1418 | I60: 1550 | J60: Open | R60: H
D61: LT 1520 CE NOV | E61: Sell | F61: 27-29 | R61: H
A62: 3 | B62: 2019-10-30 | D62: HEROMOTOCO NOV FUT | E62: Buy | F62: 2715 | G62: 2640 | H62: 2747.5 | I62: 2900 | J62: Profit of Rs.27.50/- | K62: =H62-F62 -> 32.5 | L62: =M62*27.5 -> 5500 | M62: 200 | N62: Successful | O62: 2019-11-01 | R62: N
D63: HEROMOTOCO 2850 CE NOV | E63: Sell | F63: 55 | H63: 60 | K63: =F63-H63 -> -5 | R63: N
A64: 4 | B64: 2019-10-31 | D64: AXISBANK NOV FUT | E64: Buy | F64: 738 | G64: 718 | H64: 743.5 | I64: 760 | J64: Profit of Rs.5/- | K64: =H64-F64 -> 5.5 | L64: =M64*5 -> 6000 | M64: 1200 | N64: Successful | O64: 2019-11-01 | R64: H
D65: AXISBANK 760 CE NOV | E65: Sell | F65: 17.50 | H65: 18 | K65: =F65-H65 -> -0.5 | R65: H
A66: 5 | B66: 2019-11-01 | D66: NIFTY NOV FUT | E66: Sell | F66: 11905-11910 | G66: 12060 | I66: 11700 | J66: Open | R66: H
D67: Nifty 11750 PE 14-NOV | E67: Sell | F67: 76-80 | R67: H
A68: 6
A91: Master Trade Medium Risk
A92: Sr.no | B92: Date | D92: Company | E92: Rec | F92: Rec Price | G92: Stop Loss | H92: Call Closed At | I92: Target | J92: Remark | K92: Profit/ Loss per lot | L92: Gain / Loss per Lot | M92: Lot | N92: Status | O92: Closed Date
A93: 1 | B93: 2019-11-01 | D93: INFRATEL NOV 200 CE | E93: Buy | F93: 16-17 | J93: Open | R93: H
D94: INFRATEL NOV 210 CE | E94: Sell | F94: 12-13 | R94: H
A95: 2 | B95: 2019-11-01 | D95: MARUTI NOV 7500 PE | E95: Buy | F95: 198-202 | J95: Open | R95: N
D96: MARUTI NOV 7300 PE | E96: Sell | F96: 130-135 | R96: N
A97: 3 | B97: 2019-11-01 | D97: BANKNIFTY 30000 PE 7-NOV | E97: Buy | F97: 245-255 | G97: 130 | I97: 450-500 | J97: Open | R97: H
A111: Techno -Funda (positional)
A112: Sr.no | B112: Date | D112: Company | E112: Rec | F112: Rec Price | G112: Stop Loss*** | H112: Call Closed At | I112: Target | J112: Remark | K112: Profit / Loss per Share | L112: Gain / Loss % | M112: Status | N112: Closed Date | O112: NSE Closed Price
A113: 1 | B113: 2019-08-13 | D113: ITC | E113: Buy | F113: 247 | G113: 228 | H113: 262.5 | I113: 290-300 | J113: Part Profit of Rs.15.5/- | K113: =H113-F113 -> 15.5 | L113: =K113/F113 -> 6.28% | M113: Successful | N113: 2019-10-01 | O113: =VLOOKUP(D113,Sheet2!A131:M1770,6,0) -> 261.3 | R113: H
A117: CLBS = Closing Basis *** | F117: Reinitiated $
A118: Dividend adjusted <> | F118: Revised stoploss #
B123: Investment Idea
A124: Sr.no | B124: Date | D124: Company | E124: Rec | F124: Rec Price | G124: Point of Review | H124: Close Rate | I124: Target | J124: Remark | K124: Profit / Loss per Share | L124: Gain / Loss % | M124: Status | N124: Closed Date
A125: 1 | B125: 2013-11-01 | D125: L&T Finance Holding | E125: Accu | F125: 82.00 | G125: - | H125: 100 | I125: 100.00 | J125: Target Achieved | K125: =H125-F125 -> 18.00 | L125: =K125/F125 -> 21.95% | M125: Successful | N125: 2016-10-14
A126: 2 | B126: 2014-06-04 | D126: Finolex Inds | E126: Buy | F126: 257.00 | G126: - | H126: 300 | I126: 300.00 | J126: Target Achieved | K126: =H126-F126 -> 43.00 | L126: 16.73% | M126: Successful | N126: 2014-07-02
A127: 3 | B127: 2014-07-08 | D127: JK Cement | E127: Buy | F127: 393.00 | G127: - | H127: 468 | I127: 468.00 | J127: Target Achieved | K127: =H127-F127 -> 75.00 | L127: 19.08% | M127: Successful | N127: 2014-08-12
A128: 4 | B128: 2014-08-06 | D128: Finolex Cables | E128: Buy | F128: 205.00 | G128: - | H128: 275 | I128: 250.00 | J128: Target Achieved | K128: 70.00 | L128: 34.15% | M128: Successful | N128: 2014-11-19
A129: 5 | B129: 2014-09-04 | D129: Exide Inds | E129: Buy | F129: 162.00 | G129: - | H129: 190 | I129: 190.00 | J129: Target Achieved | K129: 28.00 | L129: 17.28% | M129: Successful | N129: 2015-01-02
A130: 6 | B130: 2014-09-04 | D130: Deepak Nitrite | E130: Buy | F130: 75.00 | G130: - | H130: 91.5 | I130: 95-100 | J130: Profit of Rs.16.50/- | K130: 16.50 | L130: 22.00% | M130: Successful | N130: 2014-11-11
A131: 7 | B131: 2014-10-01 | D131: Mercks | E131: Buy | F131: 850.00 | G131: - | H131: 982.5 | I131: 1050.00 | J131: Profit of Rs.132.50/- | K131: 132.50 | L131: 15.59% | M131: Successful | N131: 2015-02-04
A132: 8 | B132: 2014-10-01 | D132: Grindwell Norton | E132: Buy | F132: 475.00 | G132: - | H132: 515 | I132: 600.00 | J132: Profit of Rs.40/- | K132: 40.00 | L132: 8.42% | M132: Successful | N132: 2014-10-27
A133: 9 | B133: 2014-10-01 | D133: Snowman Logistics | E133: Buy | F133: 86.00 | G133: - | H133: 99 | I133: 140.00 | J133: Profit of Rs.13.00/- | K133: 13.00 | L133: 15.12% | M133: Successful | N133: 2014-10-27
A134: 10 | B134: 2014-10-14 | D134: Birla Corp | E134: Buy | F134: 496.60 | G134: - | H134: 621 | I134: 580.00 | J134: Target Achieved | K134: 124.40 | L134: 25.05% | M134: Successful | N134: 2016-08-23
A135: 11 | B135: 2014-10-14 | D135: Ultratech Cem | E135: Buy | F135: 2481.90 | G135: - | H135: 2840 | I135: 2870.00 | J135: Profit of Rs.358.10/- | K135: 358.10 | L135: 14.43% | M135: Successful | N135: 2015-01-13
A136: 12 | B136: 2014-10-16 | D136: Sintex Inds | E136: Buy | F136: 84.50 | G136: - | H136: 93 | I136: 110.00 | J136: Profit of Rs.8.50/- | K136: 8.50 | L136: 10.06% | M136: Successful | N136: 2014-10-27
A137: 13 | B137: 2014-10-16 | D137: HSIL | E137: Buy | F137: 401.00 | G137: - | H137: 428 | I137: 450.00 | J137: Profit of Rs.27.00/- | K137: 27.00 | L137: 6.73% | M137: Successful | N137: 2015-01-16
A138: 14 | B138: 2014-10-16 | D138: Eveready Inds | E138: Buy | F138: 101.00 | G138: - | H138: 112 | I138: 120.00 | J138: Profit of Rs.11.00/- | K138: 11.00 | L138: 10.89% | M138: Successful | N138: 2014-10-27
A139: 15 | B139: 2014-11-11 | D139: Pennar Inds | E139: Buy | F139: 59.00 | G139: - | H139: 76 | I139: 76.00 | J139: Target Achieved | K139: 17.00 | L139: 28.81% | M139: Successful | N139: 2017-10-24
A140: 16 | B140: 2014-11-11 | D140: Snowman Logistics | E140: Buy | F140: 99.00 | G140: - | H140: 120 | I140: 120.00 | J140: Profit of Rs.21/- | K140: 21.00 | L140: 21.21% | M140: Successful | N140: 2014-11-17
A141: 17 | B141: 2014-11-13 | D141: Dharamsi Morarji Chem | E141: Buy | F141: 22.00 | G141: - | H141: 33.55 | I141: 32.00 | J141: Profit of Rs 11.55/- | K141: 11.55 | L141: 52.50% | M141: Successful | N141: 2015-07-03
A142: 18 | B142: 2014-12-03 | D142: Tatachem | E142: Buy | F142: 440.00 | G142: - | H142: 520 | I142: 520.00 | J142: Profit of Rs 80.00/- | K142: 80.00 | L142: 18.18% | M142: Successful | N142: 2015-07-23
A143: 19 | B143: 2014-12-03 | D143: Advanta | E143: Buy | F143: 360.00 | G143: - | H143: 427 | I143: 425.00 | J143: Profit of Rs.67.00/- | K143: 67.00 | L143: 18.61% | M143: Successful | N143: 2015-02-23
A144: 20 | B144: 2015-01-08 | D144: GDL | E144: Buy | F144: 360.00 | G144: - | H144: 455 | I144: 420.00 | J144: Profit of Rs.95.00/- | K144: 95.00 | L144: 26.39% | M144: Successful | N144: 2015-01-20
A145: 21 | B145: 2015-01-08 | D145: NRB Bearing | E145: Buy | F145: 130.00 | H145: 175.5 | I145: 165.00 | J145: Profit of Rs 45.50/- | K145: 45.50 | L145: 35.00% | M145: Successful | N145: 2017-12-19
A146: 22 | B146: 2015-02-05 | D146: GSFC | E146: Accu | F146: 98.00 | H146: 120 | I146: 120.00 | J146: Target Achieved | K146: 22.00 | L146: 22.45% | M146: Successful | N146: 2017-01-18
A147: 23 | B147: 2015-02-05 | D147: Sundrmfast | E147: Accu | F147: 196.00 | H147: 262 | I147: 255.00 | J147: Target Achieved | K147: 66.00 | L147: 33.67% | M147: Successful | N147: 2016-08-17
A148: 24 | B148: 2015-03-04 | D148: GPPL | E148: Accu | F148: 235 | H148: 77.00 | I148: 280-285 | J148: Loss of Rs.158/- | K148: -158.00 | L148: -67.23% | M148: Unsuccessful | N148: 2019-02-26
A149: 25 | B149: 2015-03-04 | D149: ORIENTCEM | E149: Accu | F149: 185.00 | H149: 224 | I149: 220-225 | J149: Target Achieved | K149: 39.00 | L149: 21.08% | M149: Successful | N149: 2016-10-04
A150: 26 | B150: 2015-03-27 | D150: PFS | E150: Accu | F150: 49.5 | H150: 15.85 | I150: 67.00 | J150: Loss of Rs.33.65/- | K150: -33.65 | L150: -68% | M150: Unsuccessful | N150: 2019-06-11
A151: 27 | B151: 2015-03-30 | D151: Walchandnagar Ind Ltd | E151: Accu | F151: 183.50 | H151: 219 | I151: 218.00 | J151: Profit of Rs.35.50/- | K151: 35.50 | L151: =K151/F151 -> 19.35% | M151: Successful | N151: 2015-04-09
A152: 28 | B152: 2015-04-20 | D152: Kalpataru Power Transmission Ltd | E152: Accu | F152: =(227+237)/2 -> 232.00 | H152: 298 | I152: 298.00 | J152: Target Achieved | K152: 66.00 | L152: 28.45% | M152: Successful | N152: 2017-03-29
A153: 29 | B153: 2015-05-04 | D153: Mastek Ltd | E153: Buy | F153: 385.00 | H153: =212.5+331 -> 543.5 | I153: 510.00 | J153: Profit of Rs 158.50/- | K153: 158.50 | L153: 41.17% | M153: Successful | N153: 2015-08-19
A154: 30 | B154: 2015-05-04 | D154: Suprajit Eng | E154: Buy | F154: 115.50 | H154: 146 | I154: 142.00 | J154: Profit of Rs 30.50/- | K154: 30.50 | L154: 26.41% | M154: Successful | N154: 2015-07-17
A155: 31 | B155: 2015-05-27 | D155: TCI | E155: Buy | F155: 237.50 | H155: 279.5 | I155: 278.00 | J155: Target Achieved | K155: 42.00 | L155: 17.68% | M155: Successful | N155: 2015-08-06
A156: 32 | B156: 2015-06-19 | D156: HSIL | E156: Accu | F156: 340.00 | H156: 448 | I156: 448.00 | J156: Target Achieved | K156: 108.00 | L156: 31.76% | M156: Successful | N156: 2017-10-10
A157: 33 | B157: 2015-07-06 | D157: Capital First | E157: Accu | F157: 390.00 | H157: 460 | I157: 460.00 | J157: Target Achieved | K157: 70.00 | L157: 17.95% | M157: Successful | N157: 2016-04-18
A158: 34 | B158: 2015-07-10 | D158: Dolphin OffShore | E158: Accu | F158: 122.5 | H158: 61.00 | I158: 172.00 | J158: Loss of Rs.61.50/- | K158: -61.50 | L158: -50.20% | M158: Unsuccessful | N158: 2018-08-21
A159: 35 | B159: 2015-08-03 | D159: Allcargo logistics | E159: Accu | F159: 297.50 | H159: 350 | I159: 360.00 | J159: Profit of Rs 52.50/- | K159: 52.50 | L159: 17.65% | M159: Successful | N159: 2015-08-16
A160: 36 | B160: 2015-08-03 | D160: Camline Fine | E160: Accu | F160: 115.50 | H160: 149 | I160: 140.00 | J160: Profit of Rs 33.50/- | K160: 33.50 | L160: 29.00% | M160: Successful | N160: 2017-01-05
A161: 37 | B161: 2015-09-04 | D161: TCI | E161: Accu | F161: 226.00 | H161: 292 | I161: 292.00 | J161: Target Achieved | K161: 66.00 | L161: 29.20% | M161: Successful | N161: 2015-10-09
A162: 38 | B162: 2015-09-07 | D162: Kalpataru Power Transmission Ltd | E162: Accu | F162: 232.50 | H162: 312.5 | I162: 310.00 | J162: Target Achieved | K162: 80.00 | L162: 34.41% | M162: Successful | N162: 2017-03-29
A163: 39 | B163: 2015-09-21 | D163: LLOYD ELECTRIC & ENG LTD | E163: Accu | F163: 196.50 | H163: 238 | I163: 238.00 | J163: Target Achieved | K163: 41.50 | L163: 21.12% | M163: Successful | N163: 2015-10-14
A164: 40 | B164: 2015-09-24 | D164: L&T Finance Holding | E164: Accu | F164: 65.00 | H164: 82 | I164: 82.00 | J164: Target Achieved | K164: 17.00 | L164: 26.15% | M164: Successful | N164: 2016-07-27
A165: 41 | B165: 2015-10-14 | D165: KEC International ltd | E165: Accu | F165: 144.00 | H165: 182.5 | I165: 181.00 | J165: Target Achieved | K165: 38.50 | L165: 26.74% | M165: Successful | N165: 2017-03-23
A166: 42 | B166: 2015-10-14 | D166: Gruh Finance | E166: Accu | F166: 264.00 | H166: 311 | I166: 311.00 | J166: Target Achieved | K166: 47.00 | L166: 17.80% | M166: Successful | N166: 2016-08-22
A167: 43 | B167: 2015-11-10 | D167: Pidilitind | E167: Buy | F167: 549.50 | H167: 630 | I167: 630.00 | J167: Target Achieved | K167: 80.50 | L167: 14.65% | M167: Successful | N167: 2016-02-19
A168: 44 | B168: 2015-12-04 | D168: Zensar Technology | E168: Accu | F168: 1027.50 | H168: 1315 | I168: 1250.00 | J168: Target Achieved | K168: 287.50 | L168: 27.98% | M168: Successful | N168: 2018-05-24
A169: 45 | B169: 2015-12-29 | D169: Vinati Organics Ltd | E169: Accu | F169: 465.00 | H169: 540 | I169: 540.00 | J169: Target Achieved | K169: 75.00 | L169: 16.13% | M169: Successful | N169: 2016-06-09
A170: 46 | B170: 2016-01-11 | D170: GSFC | E170: Buy | F170: 81.00 | H170: 110 | I170: 110.00 | J170: Target Achieved | K170: 29.00 | L170: 35.80% | M170: Successful | N170: 2017-01-10
A171: 47 | B171: 2016-01-13 | D171: SSWL | E171: Buy | F171: 417.50 | H171: 547 | I171: 535.00 | J171: Target Achieved | K171: 129.50 | L171: 31.02% | M171: Successful | N171: 2016-07-27
A172: 48 | B172: 2016-02-08 | D172: Persistent System Ltd | E172: Accu | F172: 650.00 | H172: 800 | I172: 800.00 | J172: Target Achieved | K172: 150.00 | L172: 23.08% | M172: Successful | N172: 2018-02-23
A173: 49 | B173: 2016-03-04 | D173: UPL | E173: Accu | F173: 437.50 | H173: 504.5 | I173: 522.00 | J173: Profit of Rs.67/- | K173: 67.00 | L173: 15.31% | M173: Successful | N173: 2016-04-20
A174: 50 | B174: 2016-03-09 | D174: Ashoka Buildcon Ltd | E174: Accu | F174: 189.50 | H174: 218 | I174: 218.00 | J174: Target Achieved | K174: 28.50 | L174: 15.04% | M174: Successful | N174: 2017-10-26
A175: 51 | B175: 2016-04-11 | D175: PTC INDIA FIN SERV LTD | E175: Accu | F175: 36.5 | H175: 15.85 | I175: 60.00 | J175: Loss of Rs.20.65/- | K175: -20.65 | L175: -56.58% | M175: Unsuccessful | N175: 2019-06-11
A176: 52 | B176: 2016-04-12 | D176: CAMLINFINE $ | E176: Accu | F176: 93.00 | H176: 149 | I176: 140.00 | J176: Profit of Rs 56/- | K176: 56.00 | L176: 60.22% | M176: Successful | N176: 2017-01-05
A177: 53 | B177: 2016-04-12 | D177: Greaves Cotton Ltd. | E177: Accu | F177: 130.00 | H177: 150 | I177: 150-155 | J177: Target Achieved | K177: 20.00 | L177: 15.38% | M177: Successful | N177: 2016-07-13
A178: 54 | B178: 2016-05-02 | D178: KEC International ltd $ | E178: Accu | F178: 127.50 | H178: 148 | I178: 148-150 | J178: Target Achieved | K178: 20.50 | L178: 16.08% | M178: Successful | N178: 2016-07-13
A179: 55 | B179: 2016-05-03 | D179: Mindtree | E179: Accu | F179: 675.00 | H179: 815 | I179: 790-800 | J179: Target Achieved | K179: 140.00 | L179: 20.74% | M179: Successful | N179: 2018-02-23
A180: 56 | B180: 2016-06-06 | D180: TRITURBINE | E180: Accu | F180: 110.00 | H180: 126.5 | I180: 125.00 | J180: Profit of Rs.16.50/- | K180: 16.50 | L180: 15.00% | M180: Successful | N180: 2016-07-01
A181: 57 | B181: 2016-06-17 | D181: Pennar Industries Ltd | E181: Accu | F181: 44.00 | H181: 69.5 | I181: 69.50 | J181: Profit of Rs.25.50/- | K181: 25.50 | L181: 57.95% | M181: Successful | N181: 2017-08-30
A182: 58 | B182: 2016-07-05 | D182: Bajaj Corp Ltd | E182: Accu | F182: 395 | H182: =(468.5+342.5)/2 -> 405.50 | I182: 510.00 | J182: Profit of Rs.10.50/- | K182: 10.50 | L182: 3% | M182: Neutral | N182: 2019-05-21
A183: 59 | B183: 2016-08-02 | D183: GPPL $ | E183: Buy | F183: 169.5 | H183: 77.00 | I183: 198-200 | J183: Loss of Rs.92.5/- | K183: -92.50 | L183: -54.57% | M183: Unsuccessful | N183: 2019-02-26
A184: 60 | B184: 2016-08-04 | D184: WONDERLA HOLIDAYS LTD | E184: Accu | F184: 400 | H184: 305.00 | I184: 475.00 | J184: Loss of Rs.95/- | K184: -95.00 | L184: -23.75% | M184: Unsuccessful | N184: 2019-05-21
A185: 61 | B185: 2016-08-11 | D185: CAMLINFINE | E185: Accu | F185: 86.50 | H185: 130 | I185: 130.00 | J185: Profit of Rs.43.50/- | K185: 43.50 | L185: 50.29% | M185: Successful | N185: 2017-12-22
A186: 62 | B186: 2016-08-18 | D186: GRANULES | E186: Accu | F186: 133.5 | H186: 126.50 | I186: 178.00 | J186: Exit | K186: -7.00 | L186: -5.24% | M186: Unsuccessful | N186: 2016-09-02
A187: 63 | B187: 2016-08-31 | D187: VA TECH WABAG | E187: Accu | F187: 560.00 | H187: 725 | I187: 725.00 | J187: Target Achieved | K187: 165.00 | L187: 29.46% | M187: Successful | N187: 2016-03-27
A188: 64 | B188: 2016-09-01 | D188: SKIPPER LIMITED | E188: Accu | F188: 160.50 | H188: 210 | I188: 210.00 | J188: Target Achieved | K188: 49.50 | L188: 30.84% | M188: Successful | N188: 2017-05-16
A189: 65 | B189: 2016-10-14 | D189: ASIANTILES | E189: Accu | F189: 280.00 | H189: 345 | I189: 345.00 | J189: Target Achieved | K189: 65.00 | L189: 23.21% | M189: Successful | N189: 2017-03-20
A190: 66 | B190: 2016-10-14 | D190: DEEPIND | E190: Accu | F190: 245.00 | H190: 325.5 | I190: 330.00 | J190: Profit of Rs.80.5/- | K190: 80.50 | L190: 32.86% | M190: Successful | N190: 2017-02-03
A191: 67 | B191: 2016-10-17 | D191: DCBBANK | E191: Accu | F191: 125.00 | H191: 160 | I191: 160.00 | J191: Target Achieved | K191: =H191-F191 -> 35.00 | L191: 28.00% | M191: Successful | N191: 2017-03-09
A192: 68 | B192: 2016-10-17 | D192: ORIENTREF | E192: Accu | F192: 114.00 | H192: 145 | I192: 145.00 | J192: Target Achieved | K192: 31.00 | L192: =K192/F192 -> 27.19% | M192: Successful | N192: 2017-05-04
A193: 69 | B193: 2016-10-17 | D193: GANECOS | E193: Accu | F193: 212.00 | H193: 280 | I193: 276.00 | J193: Profit of Rs.68/- | K193: 68.00 | L193: =K193/F193 -> 32.08% | M193: Successful | N193: 2017-05-03
A194: 70 | B194: 2016-11-04 | D194: NBCC | E194: Accu | F194: 155.00 | H194: 210 | I194: 210.00 | J194: Profit of Rs.55/- | K194: 55.00 | L194: =K194/F194 -> 35.48% | M194: Successful | N194: 2017-07-28
A195: 71 | B195: 2016-12-08 | D195: INFRATEL | E195: Accu | F195: 380.00 | H195: 478 | I195: 468.00 | J195: Target Achieved | K195: 98.00 | L195: =K195/F195 -> 25.79% | M195: Successful | N195: 2017-10-17
A196: 72 | B196: 2016-12-30 | D196: GODREJPROP | E196: Accu | F196: 305.00 | H196: 375 | I196: 375.00 | J196: Target Achieved | K196: 70.00 | L196: 22.95% | M196: Successful | N196: 2017-02-02
A197: 73 | B197: 2017-01-04 | D197: DEEPAKNTR | E197: Accu | F197: 99.50 | H197: 158 | I197: 158.00 | J197: Target Achieved | K197: 58.50 | L197: 58.79% | M197: Successful | N197: 2017-06-12
A198: 74 | B198: 2017-02-20 | D198: RECLTD | E198: Accu | F198: 140.50 | H198: 220 | I198: 220.00 | J198: Target Achieved | K198: 79.50 | L198: 56.58% | M198: Successful | N198: 2017-05-09
A199: 75 | B199: 2017-03-24 | D199: VRLLOG | E199: Accu | F199: 300.50 | H199: 417.5 | I199: 420.00 | J199: Profit of Rs.117/- | K199: 117.00 | L199: 38.94% | M199: Successful | N199: 2017-12-01
A200: 76 | B200: 2017-04-05 | D200: RATNAMANI | E200: Accu | F200: 785.00 | H200: 930 | I200: 920.00 | J200: Profit of Rs.145/- | K200: 145.00 | L200: 18.47% | M200: Successful | N200: 2017-08-29
A201: 77 | B201: 2017-04-12 | D201: DABUR | E201: Accu | F201: 289.50 | H201: 354 | I201: 360.00 | J201: Profit of Rs.64.5/- | K201: 64.50 | L201: 22.28% | M201: Successful | N201: 2017-11-01
A202: 78 | B202: 2017-04-20 | D202: KPRMILL | E202: Accu | F202: 700.00 | H202: 840 | I202: 840.00 | J202: Profit of Rs.140/- | K202: 140.00 | L202: 20.00% | M202: Successful | N202: 2017-06-07
A203: 79 | B203: 2017-06-01 | D203: ESSELPACK | E203: Accu | F203: 130.00 | H203: 144.25 | I203: 170.00 | J203: Profit of Rs.14.25/- | K203: 14.25 | L203: =K203/F203 -> 10.96% | M203: Successful | N203: 2019-07-29
A204: 80 | B204: 2017-06-15 | D204: KEI | E204: Accu | F204: 214.50 | H204: 262 | I204: 262.00 | J204: Profit of Rs.47.5/- | K204: =H204-F204 -> 47.50 | L204: 22.14% | M204: Successful | N204: 2017-08-30
A205: 81 | B205: 2017-07-17 | D205: MAYURUNIQ | E205: Accu | F205: 370.00 | H205: 447.5 | I205: 450.00 | J205: Target Achieved | K205: 77.50 | L205: 20.95% | M205: Successful | N205: 2017-10-27
A206: 82 | B206: 2017-07-27 | D206: RAMCOCEM | E206: Accu | F206: 657.50 | H206: 825 | I206: 820.00 | J206: Target Achieved | K206: 167.50 | L206: 25.48% | M206: Successful | N206: 2017-12-21
A207: 83 | B207: 2017-08-17 | D207: FINPIPE | E207: Accu | F207: 605.00 | H207: 750 | I207: 750.00 | J207: Profit of Rs.145/- | K207: 145.00 | L207: 23.97% | M207: Successful | N207: 2017-10-19
A208: 84 | B208: 2017-09-01 | D208: SHK | E208: Accu | F208: 255 | H208: 217.25 | I208: 320.00 | J208: Loss of Rs.37.75/- | K208: -37.75 | L208: -15% | M208: Unsuccessful | N208: 2019-07-15
A209: 85 | B209: 2017-09-19 | D209: SKIPPER | E209: Accu | F209: 215.00 | H209: 258 | I209: 258.00 | J209: Target Achieved | K209: 43.00 | L209: 20.00% | M209: Successful | N209: 2017-11-01
A210: 86 | B210: 2017-09-20 | D210: CAMLINFINE | E210: Accu | F210: 75.00 | H210: 90 | I210: 90.00 | J210: Profit of Rs.15.00/- | K210: 15.00 | L210: 20.00% | M210: Successful | N210: 2017-10-11
A211: 87 | B211: 2017-10-03 | D211: GNA | E211: Accu | F211: 315.00 | H211: 392 | I211: 384.00 | J211: Profit of Rs.77/- | K211: 77.00 | L211: 24.44% | M211: Successful | N211: 2017-10-09
A212: 88 | B212: 2017-10-05 | D212: NOCIL | E212: Accu | F212: 145.00 | H212: 179 | I212: 180.00 | J212: Profit of Rs.34/- | K212: 34.00 | L212: 23.45% | M212: Successful | N212: 2017-10-17
A213: 89 | B213: 2017-10-06 | D213: CENTURYPLY | E213: Accu | F213: 256.00 | H213: 323 | I213: 320.00 | J213: Target Achieved | K213: 67.00 | L213: 26.17% | M213: Successful | N213: 2017-11-28
A214: 90 | B214: 2017-10-09 | D214: EIHOTEL | E214: Accu | F214: 137.50 | H214: 184 | I214: 183.00 | J214: Profit of Rs.46.5/- | K214: 46.50 | L214: 33.82% | M214: Successful | N214: 2018-01-08
A215: 91 | B215: 2017-10-10 | D215: NRBBEARING | E215: Accu | F215: 125.50 | H215: 158 | I215: 155.00 | J215: Profit of Rs.32.5/- | K215: 32.50 | L215: 25.90% | M215: Successful | N215: 2017-11-28
A216: 92 | B216: 2017-11-07 | D216: HATSUN | E216: Accu | F216: 740.00 | H216: 892.5 | I216: 900.00 | J216: Profit of Rs.152.5/- | K216: 152.50 | L216: 20.61% | M216: Successful | N216: 2017-11-13
A217: 93 | B217: 2017-12-04 | D217: SANGHIIND | E217: Accu | F217: 118.50 | H217: 143.5 | I217: 145.00 | J217: Profit of Rs.25/- | K217: 25.00 | L217: 21.10% | M217: Successful | N217: 2017-12-28
A218: 94 | B218: 2017-12-21 | D218: KAJARIACER | E218: Accu | F218: 715 | H218: 500.00 | I218: 872.00 | J218: Loss of Rs.215/- | K218: =H218-F218 -> -215.00 | L218: =K218/F218 -> -30.07% | M218: Unsuccessful | N218: 2019-07-24
A219: 95 | B219: 2018-04-04 | D219: GPPL | E219: Accu | F219: 141.5 | H219: 77.00 | I219: 180.00 | J219: Loss of Rs.64.5/- | K219: -64.50 | L219: -45.58% | M219: Unsuccessful | N219: 2019-02-26
A220: 96 | B220: 2018-04-19 | D220: MANPASAND | E220: Accu | F220: 430 | H220: 220.00 | I220: 537.00 | J220: Loss of Rs.210/- | K220: -210.00 | L220: -48.84% | M220: Unsuccessful | N220: 2018-06-01
A221: 97 | B221: 2018-04-30 | D221: HEIDELBERG | E221: Accu | F221: 156 | H221: 196.00 | I221: 196.00 | J221: Profit of Rs.40/- | K221: 40.00 | L221: 26% | M221: Successful | N221: 2019-05-20
A222: 98 | B222: 2018-08-06 | D222: GABRIEL | E222: Accu | F222: 150.00 | H222: 102 | I222: 182.00 | J222: Loss of Rs.48 /- | K222: -48.00 | L222: -32.00% | M222: Unsuccessful | N222: 2019-07-15
A223: 99 | B223: 2018-08-29 | D223: GRINDWELL | E223: Accu | F223: 525.00 | H223: 585 | I223: 635.00 | J223: Profit of Rs.60- | K223: 60.00 | L223: 11.43% | N223: 2019-07-16
A224: 100 | B224: 2018-10-22 | D224: FINPIPE | E224: Accu | F224: 475.00 | H224: 574 | I224: 570.00 | J224: Target Achieved | K224: 99.00 | L224: 20.84% | M224: Successful | N224: 2018-10-30
A225: 101 | B225: 2018-10-24 | D225: GULFOILLUB | E225: Accu | F225: 707.50 | H225: 872 | I225: 872.00 | J225: Target Achieved | K225: 164.50 | L225: 23.25% | M225: Successful | N225: 2019-01-17
A226: 102 | B226: 2018-10-25 | D226: DBCORP | E226: Accu | F226: 164.00 | H226: 204 | I226: 209.00 | J226: Profit of Rs.40/- | K226: 40.00 | L226: 24.39% | M226: Successful | N226: 2019-03-15
A227: 103 | B227: 2018-10-26 | D227: RITES | E227: Accu | F227: 240.00 | H227: 297 | I227: 297.00 | J227: Target Achieved | K227: 57.00 | L227: 23.75% | M227: Successful | N227: 2018-11-13
A228: 104 | B228: 2018-12-05 | D228: BRIGADE | E228: Accu | F228: 202.50 | H228: 255 | I228: 252.00 | J228: Target Achieved | K228: 52.50 | L228: 25.93% | M228: Successful | N228: 2019-03-18
A229: 105 | B229: 2018-12-31 | D229: JKCEMENT | E229: Accu | F229: 710.00 | H229: 866 | I229: 866.00 | J229: Target Achieved | K229: 156.00 | L229: 21.97% | M229: Successful | N229: 2019-03-29
A230: 105 | B230: 2019-02-26 | D230: MARICO | E230: Accu | F230: 340.00 | H230: 398.5 | I230: 411.00 | J230: Profit of Rs.58.50/- | K230: =H230-F230 -> 58.50 | L230: =K230/F230 -> 17.21% | M230: Successful | N230: 2019-10-22
A231: 107 | B231: 2019-04-04 | D231: ITDCEM | E231: Accu | F231: 130.00 | H231: 65 | I231: 158.00 | J231: Loss of Rs.65 /- | K231: -65.00 | L231: -50.00% | M231: Unsuccessful | N231: 2019-09-18
A232: 108 | B232: 2017-10-09 | D232: RECLTD | E232: Accu | F232: 152.5 | H232: 183.50 | I232: 210.00 | J232: Part Profit of Rs.31/- | K232: 31.00 | L232: 20% | M232: Successful | N232: 2017-11-03 | R232: V
A233: 109 | B233: 2017-12-05 | D233: ALLCARGO | E233: Accu | F233: 177.5 | H233: 215.00 | I233: 230.00 | J233: Part Profit of Rs.37.5/- | K233: 37.50 | L233: 21% | M233: Successful | N233: 2017-12-27 | R233: V
A234: 110 | B234: 2018-04-02 | D234: EVERESTIND | E234: Accu | F234: 492.50 | H234: 442 | I234: 613.00 | J234: Loss of Rs.50.50 /- | K234: =H234-F234 -> -50.50 | L234: =K234/F234 -> -10.25% | M234: Unsuccessful | N234: 2019-10-24 | R234: K
A235: 111 | B235: 2018-10-25 | D235: GODREJCP | E235: Accu | F235: 707.5 | H235: 850.00 | I235: 890.00 | J235: Part Profit of Rs.142.5/- | K235: 142.50 | L235: 20% | M235: Successful | N235: 2018-12-19 | R235: V
A236: 112 | B236: 2017-05-22 | D236: GREAVESCOT | E236: Accu | F236: 153-158 | I236: 190.00 | M236: Open | R236: K
A237: 113 | B237: 2018-02-07 | D237: GREAVESCOT | E237: Accu | F237: 130-132 | I237: 190.00 | M237: Open | R237: K
A238: 114 | B238: 2018-02-27 | D238: MOLDTKPAC | E238: Accu | F238: 320-330 | I238: 398.00 | M238: Open | R238: K
A239: 115 | B239: 2018-03-05 | D239: LICHSGFIN | E239: Accu | F239: 505-515 | I239: 672.00 | M239: Open | R239: V
A240: 116 | B240: 2018-06-07 | D240: KEC | E240: Accu | F240: 340-345 | I240: 439.00 | M240: Open | R240: K
A241: 117 | B241: 2018-07-04 | D241: ASHOKLEY | E241: Accu | F241: 125-130 | I241: 170.00 | M241: Open | R241: V
A242: 118 | B242: 2018-10-23 | D242: JKPAPER | E242: Accu | F242: 158-162 | I242: 191.00 | M242: Open | R242: K
A243: 119 | B243: 2018-12-05 | D243: CCL | E243: Accu | F243: 260-270 | I243: 321.00 | M243: Open | R243: V
A244: 120 | B244: 2019-01-04 | D244: MGL | E244: Accu | F244: 890-900 | I244: 1185.00 | M244: Open | R244: V
A245: 121 | B245: 2019-04-04 | D245: COCHINSHIP | E245: Accu | F245: 384-390 | I245: 490.00 | M245: Open | R245: K
A246: 122 | B246: 2019-08-30 | D246: INDHOTEL | E246: Accu | F246: 135-140 | I246: 190.00 | M246: Open | R246: V
A247: 123 | B247: 2019-09-23 | D247: KNRCON | E247: Accu | F247: 230-240 | I247: 296.00 | M247: Open | R247: V
A248: 124 | B248: 2019-10-14 | D248: KEC | E248: Accu | F248: 275-280 | I248: 333.00 | M248: Open | R248: K
A249: 125 | B249: 2019-10-14 | D249: MGL | E249: Accu | F249: 925-935 | I249: 1200.00 | M249: Open | R249: K
A250: 126 | B250: 2019-10-15 | D250: JKPAPER | E250: Accu | F250: 113-117 | I250: 141.00 | M250: Open | R250: V
A251: 127 | B251: 2019-10-15 | D251: RADICO | E251: Accu | F251: 294-298 | I251: 370.00 | M251: Open | R251: K
A252: 128 | B252: 2019-10-16 | D252: MOLDTKPAC | E252: Accu | F252: 298-302 | I252: 344.00 | M252: Open | R252: V
F253: Reinitiated $ | R253: K
B256: Instituitonal Investment Idea
A257: Sr.no | B257: Date | D257: Company | E257: Rec | F257: Rec Price | G257: Point of Review | H257: Close Rate | I257: Target | J257: Remark | K257: Profit / Loss per Share | L257: Gain / Loss % | M257: Status | N257: Closed Date
A258: 1 | B258: 2016-04-13 | D258: DHFL | E258: Accu | F258: 196.00 | H258: 299 | I258: 299.00 | J258: Target Achieved | K258: 103.00 | L258: 52.55% | M258: Successful | N258: 2016-09-07
A259: 2 | B259: 2016-04-13 | D259: Magma | E259: Accu | F259: 88.00 | H259: 103 | I259: 103.00 | J259: Target Achieved | K259: 15.00 | L259: 17.05% | M259: Successful | N259: 2016-06-09
A260: 3 | B260: 2016-06-01 | D260: Atulauto | E260: Accu | F260: 500 | H260: 232.50 | I260: 565-570 | J260: Loss of Rs.267.50 /- | K260: =H260-F260 -> -267.50 | L260: =K260/F260 -> -53.50% | M260: Unsuccessful | N260: 2019-09-27
A261: 4 | B261: 2016-06-28 | D261: EVEREADY | E261: Accu | F261: 262.50 | H261: 340 | I261: 333.00 | J261: Profit of Rs.77.50/- | K261: 77.50 | L261: 29.52% | M261: Successful | N261: 2017-10-09
A262: 5 | B262: 2016-06-28 | D262: FIEMIND | E262: Accu | F262: 840.00 | H262: 1230 | I262: 1230.00 | J262: Target Achieved | K262: 390.00 | L262: 46.43% | M262: Successful | N262: 2016-10-06
A263: 6 | B263: 2016-10-03 | D263: IFBIND | E263: Accu | F263: 430.00 | H263: 596 | I263: 575.00 | J263: Profit of Rs.166/- | K263: 166.00 | L263: 38.60% | M263: Successful | N263: 2017-02-03
A264: 7 | B264: 2016-12-06 | D264: PRECAM | E264: Accu | F264: 150.5 | H264: 72.50 | I264: 174.00 | J264: Loss of Rs.78/- | K264: -78.00 | L264: -51.83% | M264: Unsuccessful | N264: 2018-08-21
A265: 8 | B265: 2017-01-04 | D265: DEEPAKNTR | E265: Accu | F265: 99.50 | H265: 158 | I265: 158.00 | J265: Target Achieved | K265: 58.50 | L265: 58.79% | M265: Successful | N265: 2017-06-12
A266: 9 | B266: 2017-02-20 | D266: SUBROS | E266: Accu | F266: 202.50 | H266: 234 | I266: 234.00 | J266: Target Achieved | K266: 31.50 | L266: 15.56% | M266: Successful | N266: 2017-04-11
A267: 10 | B267: 2017-03-24 | D267: FIEMIND | E267: Accu | F267: 850.00 | H267: 1042.5 | I267: 1023.00 | J267: Profit of Rs 192.50/- | K267: 192.50 | L267: 22.65% | M267: Successful | N267: 2017-04-05
A268: 11 | B268: 2017-04-06 | D268: ZEEMEDIA | E268: Accu | F268: 40 | H268: 13.10 | I268: 60.00 | J268: Loss of Rs.26.9/- | K268: -26.90 | L268: -67.25% | M268: Unsuccessful | N268: 2018-02-07
A269: 12 | B269: 2017-09-19 | D269: SKIPPER | E269: Accu | F269: 215.00 | H269: 258 | I269: 258.00 | J269: Target Achieved | K269: 43.00 | L269: 20.00% | M269: Successful | N269: 2017-11-01
A270: 13 | B270: 2017-10-10 | D270: BOROSIL | E270: Accu | F270: 895.00 | H270: 1122.5 | I270: 1078.00 | J270: Profit of Rs.227.5/- | K270: 227.50 | L270: 25.42% | M270: Successful | N270: 2018-01-17
A271: 14 | B271: 2017-10-12 | D271: CYIENT | E271: Accu | F271: 525.00 | H271: 629 | I271: 629.00 | J271: Target Achieved | K271: 104.00 | L271: 19.81% | M271: Successful | N271: 2018-01-19
A272: 15 | B272: 2017-12-29 | D272: GNA | E272: Accu | F272: 435.00 | H272: 542.5 | I272: 539.00 | J272: Target Achieved | K272: 107.50 | L272: 24.71% | M272: Successful | N272: 2018-04-16
A273: 16 | B273: 2017-12-29 | D273: ZENSARTECH | E273: Accu | F273: 885.00 | H273: 1090 | I273: 1084.00 | J273: Target Achieved | K273: 205.00 | L273: 23.16% | M273: Successful | N273: 2018-04-23 | R273: .
... 10 more rows

Sheet Sheet2 (hidden)
A1: SYMBOL | B1: SERIES | C1: OPEN | D1: HIGH | E1: LOW | F1: CLOSE | G1: LAST | H1: PREVCLOSE | I1: TOTTRDQTY | J1: TOTTRDVAL | K1: TIMESTAMP | L1: TOTALTRADES | M1: ISIN | N1: ISIN
A2: 20MICRONS | B2: EQ | C2: 38.8 | D2: 38.9 | E2: 37.3 | F2: 37.7 | G2: 37.65 | H2: 38.35 | I2: 39480 | J2: 1510023.9 | K2: 2019-11-01 | L2: 289 | M2: INE144J01027
A3: 21STCENMGM | B3: EQ | C3: 13.25 | D3: 13.25 | E3: 13.25 | F3: 13.25 | G3: 13.25 | H3: 13.25 | I3: 15 | J3: 198.75 | K3: 2019-11-01 | L3: 3 | M3: INE253B01015
A4: 3IINFOTECH | B4: EQ | C4: 2 | D4: 2.05 | E4: 1.95 | F4: 2 | G4: 2 | H4: 2 | I4: 2597619 | J4: 5196924.7 | K4: 2019-11-01 | L4: 710 | M4: INE748C01020
A5: 3MINDIA | B5: EQ | C5: 22497.5 | D5: 22512.05 | E5: 22100 | F5: 22202.1 | G5: 22175 | H5: 22488.2 | I5: 1793 | J5: 39889301.1 | K5: 2019-11-01 | L5: 875 | M5: INE470A01017
A6: 3PLAND | B6: EQ | C6: 6.2 | D6: 6.2 | E6: 6.2 | F6: 6.2 | G6: 6.2 | H6: 6.2 | I6: 1028 | J6: 6373.6 | K6: 2019-11-01 | L6: 5 | M6: INE105C01023
A7: 5PAISA | B7: EQ | C7: 170.55 | D7: 173 | E7: 169.05 | F7: 169.65 | G7: 169.65 | H7: 170.55 | I7: 3624 | J7: 619659.65 | K7: 2019-11-01 | L7: 142 | M7: INE618L01018
A8: 63MOONS | B8: EQ | C8: 122.05 | D8: 123.8 | E8: 119.1 | F8: 119.8 | G8: 119.5 | H8: 121.2 | I8: 104787 | J8: 12669337.9 | K8: 2019-11-01 | L8: 1326 | M8: INE111B01023
A9: A2ZINFRA | B9: EQ | C9: 8.95 | D9: 10.7 | E9: 8.7 | F9: 10.7 | G9: 10.7 | H9: 8.95 | I9: 1497561 | J9: 15641063.95 | K9: 2019-11-01 | L9: 2147 | M9: INE619I01012
A10: AARTIDRUGS | B10: EQ | C10: 540 | D10: 545 | E10: 529 | F10: 532 | G10: 529 | H10: 537.95 | I10: 6779 | J10: 3646507 | K10: 2019-11-01 | L10: 1243 | M10: INE767A01016
A11: AARTIIND | B11: EQ | C11: 881.95 | D11: 881.95 | E11: 870 | F11: 877.4 | G11: 872 | H11: 876.5 | I11: 53188 | J11: 46597507.4 | K11: 2019-11-01 | L11: 4797 | M11: INE769A01020
A12: AARVEEDEN | B12: EQ | C12: 14.45 | D12: 14.95 | E12: 13.9 | F12: 14.1 | G12: 14.15 | H12: 14.15 | I12: 8165 | J12: 118734.3 | K12: 2019-11-01 | L12: 122 | M12: INE273D01019
A13: AAVAS | B13: EQ | C13: 1607 | D13: 1607 | E13: 1573 | F13: 1582.75 | G13: 1573 | H13: 1591.6 | I13: 7173 | J13: 11386167.75 | K13: 2019-11-01 | L13: 1062 | M13: INE216P01012
A14: ABAN | B14: BE | C14: 26.75 | D14: 28.05 | E14: 26.3 | F14: 28 | G14: 28 | H14: 26.75 | I14: 48916 | J14: 1344664.75 | K14: 2019-11-01 | L14: 507 | M14: INE421A01028
A15: ABB | B15: EQ | C15: 1458.6 | D15: 1480 | E15: 1451.65 | F15: 1458.85 | G15: 1457 | H15: 1458.6 | I15: 74552 | J15: 109034209.5 | K15: 2019-11-01 | L15: 5969 | M15: INE117A01022
A16: ABBOTINDIA | B16: EQ | C16: 11750 | D16: 11885.05 | E16: 11597 | F16: 11620.15 | G16: 11630 | H16: 11774.4 | I16: 8388 | J16: 98260816.55 | K16: 2019-11-01 | L16: 3068 | M16: INE358A01014
A17: ABCAPITAL | B17: EQ | C17: 82.2 | D17: 84.7 | E17: 82.2 | F17: 83 | G17: 83.15 | H17: 81.85 | I17: 3673750 | J17: 306793374.9 | K17: 2019-11-01 | L17: 18964 | M17: INE674K01013
A18: ABFRL | B18: EQ | C18: 213.25 | D18: 213.25 | E18: 209.15 | F18: 211 | G18: 210.5 | H18: 212.2 | I18: 237461 | J18: 50069734.1 | K18: 2019-11-01 | L18: 6407 | M18: INE647O01011
A19: ABSLNN50ET | B19: EQ | C19: 283 | D19: 292.44 | E19: 277.7 | F19: 287.62 | G19: 287.62 | H19: 290.54 | I19: 1154 | J19: 332764.91 | K19: 2019-11-01 | L19: 29 | M19: INF209KB1B87
A20: ACC | B20: EQ | C20: 1573 | D20: 1575.6 | E20: 1528 | F20: 1542.2 | G20: 1542.05 | H20: 1568.05 | I20: 887153 | J20: 1378006993 | K20: 2019-11-01 | L20: 24635 | M20: INE012A01025
A21: ACCELYA | B21: EQ | C21: 937 | D21: 945 | E21: 930.05 | F21: 939.25 | G21: 940 | H21: 941.05 | I21: 4526 | J21: 4253893.45 | K21: 2019-11-01 | L21: 300 | M21: INE793A01012
A22: ACE | B22: EQ | C22: 82.05 | D22: 83 | E22: 81.6 | F22: 82.8 | G22: 82.5 | H22: 82.05 | I22: 102155 | J22: 8407899.2 | K22: 2019-11-01 | L22: 634 | M22: INE731H01025
A23: ADANIENT | B23: EQ | C23: 199 | D23: 202.4 | E23: 196.2 | F23: 200.45 | G23: 199.85 | H23: 199.65 | I23: 3522957 | J23: 702469075.2 | K23: 2019-11-01 | L23: 20646 | M23: INE423A01024
A24: ADANIGAS | B24: EQ | C24: 147.45 | D24: 148.4 | E24: 146.8 | F24: 146.85 | G24: 147 | H24: 147.1 | I24: 381934 | J24: 56218008.85 | K24: 2019-11-01 | L24: 4411 | M24: INE399L01023
A25: ADANIGREEN | B25: EQ | C25: 90.25 | D25: 91 | E25: 88.1 | F25: 89.95 | G25: 89.75 | H25: 89.7 | I25: 937093 | J25: 83979605.35 | K25: 2019-11-01 | L25: 5717 | M25: INE364U01010
A26: ADANIPORTS | B26: EQ | C26: 396 | D26: 397.25 | E26: 387.85 | F26: 389.75 | G26: 388.3 | H26: 395.8 | I26: 3665336 | J26: 1435262316 | K26: 2019-11-01 | L26: 37071 | M26: INE742F01042
A27: ADANIPOWER | B27: EQ | C27: 66.1 | D27: 68.55 | E27: 65.6 | F27: 67.9 | G27: 68.05 | H27: 66.05 | I27: 9822268 | J27: 660618746.1 | K27: 2019-11-01 | L27: 24664 | M27: INE814H01011
A28: ADANITRANS | B28: EQ | C28: 276.65 | D28: 288 | E28: 275.6 | F28: 277.45 | G28: 276.3 | H28: 274.1 | I28: 657420 | J28: 185191461 | K28: 2019-11-01 | L28: 9518 | M28: INE931S01010
A29: ADFFOODS | B29: EQ | C29: 294.85 | D29: 304.7 | E29: 282.05 | F29: 299.55 | G29: 301 | H29: 289.2 | I29: 94362 | J29: 28047956.65 | K29: 2019-11-01 | L29: 2061 | M29: INE982B01019
A30: ADHUNIKIND | B30: EQ | C30: 123.8 | D30: 127.5 | E30: 120.5 | F30: 122.15 | G30: 122.35 | H30: 122.7 | I30: 44270 | J30: 5453782.25 | K30: 2019-11-01 | L30: 1189 | M30: INE452L01012
A31: ADLABS | B31: EQ | C31: 2.6 | D31: 2.6 | E31: 2.6 | F31: 2.6 | G31: 2.6 | H31: 2.5 | I31: 8770 | J31: 22802 | K31: 2019-11-01 | L31: 23 | M31: INE172N01012
A32: ADORWELD | B32: EQ | C32: 316 | D32: 326.8 | E32: 316 | F32: 319.45 | G32: 319 | H32: 319.1 | I32: 3068 | J32: 987498.55 | K32: 2019-11-01 | L32: 313 | M32: INE045A01017
A33: ADROITINFO | B33: BE | C33: 7.6 | D33: 7.6 | E33: 7.1 | F33: 7.5 | G33: 7.5 | H33: 7.45 | I33: 6240 | J33: 46613.6 | K33: 2019-11-01 | L33: 16 | M33: INE737B01033
A34: ADSL | B34: EQ | C34: 13.5 | D34: 14.1 | E34: 13.5 | F34: 13.95 | G34: 13.9 | H34: 13.55 | I34: 21600 | J34: 298601.4 | K34: 2019-11-01 | L34: 113 | M34: INE102I01027
A35: ADVANIHOTR | B35: EQ | C35: 57.15 | D35: 59 | E35: 56.4 | F35: 57.65 | G35: 58 | H35: 57.75 | I35: 2959 | J35: 170092.7 | K35: 2019-11-01 | L35: 74 | M35: INE199C01026
A36: ADVENZYMES | B36: EQ | C36: 185.65 | D36: 192 | E36: 183.05 | F36: 189.45 | G36: 190 | H36: 185.95 | I36: 148682 | J36: 28085009.85 | K36: 2019-11-01 | L36: 4472 | M36: INE837H01020
A37: AEGISCHEM | B37: EQ | C37: 172 | D37: 175.25 | E37: 171.15 | F37: 172.2 | G37: 171.7 | H37: 171.6 | I37: 104301 | J37: 18151429.7 | K37: 2019-11-01 | L37: 1832 | M37: INE208C01025
A38: AFFLE | B38: EQ | C38: 1398.45 | D38: 1428 | E38: 1385.1 | F38: 1397.15 | G38: 1392.5 | H38: 1387.55 | I38: 60715 | J38: 85430907.5 | K38: 2019-11-01 | L38: 3850 | M38: INE00WC01019
A39: AGARIND | B39: EQ | C39: 118.8 | D39: 119 | E39: 112.15 | F39: 114.95 | G39: 112.15 | H39: 116.45 | I39: 21876 | J39: 2555801.4 | K39: 2019-11-01 | L39: 227 | M39: INE204E01012
A40: AGCNET | B40: BE | C40: 110.1 | D40: 115.75 | E40: 110.1 | F40: 114.95 | G40: 114.95 | H40: 113.4 | I40: 1160 | J40: 129574.65 | K40: 2019-11-01 | L40: 20 | M40: INE676A01019
A41: AGRITECH | B41: EQ | C41: 47.1 | D41: 49.4 | E41: 46.55 | F41: 49 | G41: 49.4 | H41: 47.55 | I41: 11372 | J41: 555396.55 | K41: 2019-11-01 | L41: 360 | M41: INE449G01018
A42: AGROPHOS | B42: EQ | C42: 116.2 | D42: 116.6 | E42: 116.15 | F42: 116.25 | G42: 116.25 | H42: 116.1 | I42: 345695 | J42: 40210695.15 | K42: 2019-11-01 | L42: 40542 | M42: INE740V01019
A43: AHLEAST | B43: EQ | C43: 186.5 | D43: 186.9 | E43: 176.1 | F43: 184.9 | G43: 186.9 | H43: 177.3 | I43: 396 | J43: 72390 | K43: 2019-11-01 | L43: 106 | M43: INE926K01017
A44: AHLUCONT | B44: EQ | C44: 315.95 | D44: 347.6 | E44: 305.1 | F44: 309.55 | G44: 308 | H44: 303.05 | I44: 91202 | J44: 29300983 | K44: 2019-11-01 | L44: 3784 | M44: INE758C01029
A45: AHLWEST | B45: EQ | C45: 275.05 | D45: 285.35 | E45: 265 | F45: 275.45 | G45: 279.95 | H45: 275.5 | I45: 1274 | J45: 353708.15 | K45: 2019-11-01 | L45: 182 | M45: INE915K01010
A46: AIAENG | B46: EQ | C46: 1715.75 | D46: 1740 | E46: 1672.05 | F46: 1679.85 | G46: 1677 | H46: 1733.25 | I46: 15833 | J46: 26766148.35 | K46: 2019-11-01 | L46: 3261 | M46: INE212H01026
A47: AIONJSW | B47: EQ | C47: 10 | D47: 10.2 | E47: 9.9 | F47: 9.9 | G47: 10 | H47: 10 | I47: 287195 | J47: 2882492.5 | K47: 2019-11-01 | L47: 200 | M47: INE743C01021
A48: AIRAN | B48: EQ | C48: 13 | D48: 13.25 | E48: 12.5 | F48: 12.95 | G48: 13 | H48: 12.8 | I48: 36597 | J48: 476717.4 | K48: 2019-11-01 | L48: 55 | M48: INE645W01026
A49: AJANTPHARM | B49: EQ | C49: 1050 | D49: 1074.95 | E49: 1040.7 | F49: 1062.8 | G49: 1062.35 | H49: 1050.7 | I49: 50455 | J49: 53645003.35 | K49: 2019-11-01 | L49: 3316 | M49: INE031B01049
A50: AJMERA | B50: EQ | C50: 123 | D50: 123.7 | E50: 120.3 | F50: 121.15 | G50: 120.45 | H50: 122.2 | I50: 21968 | J50: 2682312.5 | K50: 2019-11-01 | L50: 603 | M50: INE298G01027
A51: AKASH | B51: EQ | C51: 65 | D51: 65.2 | E51: 63 | F51: 63 | G51: 63 | H51: 64.85 | I51: 2300 | J51: 148387.2 | K51: 2019-11-01 | L51: 11 | M51: INE737W01013
A52: AKSHARCHEM | B52: EQ | C52: 220.15 | D52: 224.9 | E52: 216.7 | F52: 218.15 | G52: 219.95 | H52: 224.2 | I52: 3705 | J52: 817689.85 | K52: 2019-11-01 | L52: 286 | M52: INE542B01011
A53: AKSHOPTFBR | B53: EQ | C53: 7.4 | D53: 7.55 | E53: 7.35 | F53: 7.55 | G53: 7.55 | H53: 7.2 | I53: 168799 | J53: 1265272.15 | K53: 2019-11-01 | L53: 251 | M53: INE523B01011
A54: AKZOINDIA | B54: EQ | C54: 2143 | D54: 2143 | E54: 2072 | F54: 2090.1 | G54: 2075.1 | H54: 2118.05 | I54: 8270 | J54: 17429370.05 | K54: 2019-11-01 | L54: 943 | M54: INE133A01011
A55: ALANKIT | B55: EQ | C55: 15.2 | D55: 15.8 | E55: 15 | F55: 15.8 | G55: 15.8 | H55: 14.4 | I55: 141116 | J55: 2191862.85 | K55: 2019-11-01 | L55: 413 | M55: INE914E01040
A56: ALBERTDAVD | B56: EQ | C56: 403.8 | D56: 418 | E56: 392.1 | F56: 410.45 | G56: 410 | H56: 395.15 | I56: 17649 | J56: 7254160.85 | K56: 2019-11-01 | L56: 783 | M56: INE155C01010
A57: ALBK | B57: EQ | C57: 26.8 | D57: 27.75 | E57: 26.5 | F57: 27.3 | G57: 27.3 | H57: 26.9 | I57: 1458180 | J57: 39779624.25 | K57: 2019-11-01 | L57: 5119 | M57: INE428A01015
A58: ALCHEM | B58: BE | C58: 0.8 | D58: 0.85 | E58: 0.75 | F58: 0.75 | G58: 0.75 | H58: 0.8 | I58: 9930 | J58: 7628 | K58: 2019-11-01 | L58: 24 | M58: INE964B01033
A59: ALEMBICLTD | B59: EQ | C59: 52.15 | D59: 54.75 | E59: 51.35 | F59: 53.8 | G59: 53.65 | H59: 52.15 | I59: 257279 | J59: 13697629.3 | K59: 2019-11-01 | L59: 2318 | M59: INE426A01027
A60: ALICON | B60: EQ | C60: 400 | D60: 400 | E60: 390.5 | F60: 398.65 | G60: 399 | H60: 395.45 | I60: 3143 | J60: 1252862.8 | K60: 2019-11-01 | L60: 82 | M60: INE062D01024
A61: ALKALI | B61: EQ | C61: 44.3 | D61: 47 | E61: 44 | F61: 45.8 | G61: 45.2 | H61: 44.3 | I61: 3348 | J61: 153384.8 | K61: 2019-11-01 | L61: 109 | M61: INE773I01017
A62: ALKEM | B62: EQ | C62: 2013.4 | D62: 2013.4 | E62: 1985 | F62: 2000.15 | G62: 2000 | H62: 1997.7 | I62: 53263 | J62: 106468978.3 | K62: 2019-11-01 | L62: 2657 | M62: INE540L01014
A63: ALKYLAMINE | B63: EQ | C63: 878.25 | D63: 894.7 | E63: 865 | F63: 869.55 | G63: 879 | H63: 887.7 | I63: 4656 | J63: 4077372.95 | K63: 2019-11-01 | L63: 485 | M63: INE150B01021
A64: ALLCARGO | B64: EQ | C64: 103.85 | D64: 104.85 | E64: 103 | F64: 103.85 | G64: 104.5 | H64: 103.85 | I64: 120664 | J64: 12552832 | K64: 2019-11-01 | L64: 1474 | M64: INE418H01029
A65: ALLSEC | B65: EQ | C65: 305 | D65: 305 | E65: 295.1 | F65: 298.05 | G65: 298.05 | H65: 295.55 | I65: 559 | J65: 168055.15 | K65: 2019-11-01 | L65: 158 | M65: INE835G01018
A66: ALMONDZ | B66: EQ | C66: 10 | D66: 10 | E66: 9.55 | F66: 10 | G66: 10 | H66: 10 | I66: 826 | J66: 8021.5 | K66: 2019-11-01 | L66: 15 | M66: INE326B01027
A67: ALOKTEXT | B67: EQ | C67: 1.55 | D67: 1.55 | E67: 1.55 | F67: 1.55 | G67: 1.55 | H67: 1.5 | I67: 569301 | J67: 882416.55 | K67: 2019-11-01 | L67: 188 | M67: INE270A01011
A68: ALPA | B68: EQ | C68: 14.5 | D68: 17.25 | E68: 14.45 | F68: 17.25 | G68: 17.25 | H68: 14.4 | I68: 138431 | J68: 2304793.5 | K68: 2019-11-01 | L68: 1322 | M68: INE385I01010
A69: ALPHAGEO | B69: EQ | C69: 193 | D69: 193 | E69: 188.1 | F69: 189.25 | G69: 188.15 | H69: 192.65 | I69: 7506 | J69: 1427397.4 | K69: 2019-11-01 | L69: 286 | M69: INE137C01018
A70: ALPSINDUS | B70: BE | C70: 0.35 | D70: 0.45 | E70: 0.35 | F70: 0.4 | G70: 0.4 | H70: 0.4 | I70: 17174 | J70: 7697 | K70: 2019-11-01 | L70: 14 | M70: INE093B01015
A71: AMARAJABAT | B71: EQ | C71: 686 | D71: 695.7 | E71: 678.55 | F71: 689.75 | G71: 691.7 | H71: 682.05 | I71: 438764 | J71: 301986313.1 | K71: 2019-11-01 | L71: 14120 | M71: INE885A01032
A72: AMBER | B72: EQ | C72: 1053.65 | D72: 1055 | E72: 1011.1 | F72: 1022.65 | G72: 1026 | H72: 1045.4 | I72: 36853 | J72: 37843966 | K72: 2019-11-01 | L72: 3346 | M72: INE371P01015
A73: AMBIKCO | B73: EQ | C73: 900 | D73: 917.15 | E73: 890.45 | F73: 909.7 | G73: 917 | H73: 899.95 | I73: 3519 | J73: 3173009.6 | K73: 2019-11-01 | L73: 332 | M73: INE540G01014
A74: AMBUJACEM | B74: EQ | C74: 203 | D74: 204 | E74: 199.8 | F74: 201.6 | G74: 201.3 | H74: 202.3 | I74: 2770430 | J74: 560224229.8 | K74: 2019-11-01 | L74: 15039 | M74: INE079A01024
A75: AMDIND | B75: EQ | C75: 14.5 | D75: 15.8 | E75: 14.5 | F75: 15.4 | G75: 15.4 | H75: 15.4 | I75: 3596 | J75: 54347.25 | K75: 2019-11-01 | L75: 44 | M75: INE005I01014
A76: AMJLAND | B76: EQ | C76: 18 | D76: 19.15 | E76: 17.95 | F76: 18.15 | G76: 18 | H76: 18.6 | I76: 15291 | J76: 279532.9 | K76: 2019-11-01 | L76: 104 | M76: INE606A01024
A77: AMRUTANJAN | B77: EQ | C77: 432.9 | D77: 432.9 | E77: 420.3 | F77: 424.25 | G77: 425.95 | H77: 428.6 | I77: 22576 | J77: 9589190.1 | K77: 2019-11-01 | L77: 1904 | M77: INE098F01031
A78: ANANTRAJ | B78: EQ | C78: 31.85 | D78: 32.3 | E78: 31.15 | F78: 31.8 | G78: 31.95 | H78: 31.9 | I78: 105779 | J78: 3361588.2 | K78: 2019-11-01 | L78: 2581 | M78: INE242C01024
A79: ANDHRABANK | B79: EQ | C79: 17.9 | D79: 18.65 | E79: 17.7 | F79: 18.2 | G79: 18.3 | H79: 17.9 | I79: 1438380 | J79: 26253647.7 | K79: 2019-11-01 | L79: 3012 | M79: INE434A01013
A80: ANDHRACEMT | B80: BE | C80: 2.45 | D80: 2.45 | E80: 2.3 | F80: 2.35 | G80: 2.45 | H80: 2.4 | I80: 42719 | J80: 101117.45 | K80: 2019-11-01 | L80: 111 | M80: INE666E01012
A81: ANDHRSUGAR | B81: EQ | C81: 274.8 | D81: 281.35 | E81: 272 | F81: 274.25 | G81: 274 | H81: 269.45 | I81: 49499 | J81: 13687606.95 | K81: 2019-11-01 | L81: 2092 | M81: INE715B01013
A82: ANIKINDS | B82: EQ | C82: 7.5 | D82: 7.5 | E82: 7.5 | F82: 7.5 | G82: 7.5 | H82: 7.15 | I82: 2498 | J82: 18735 | K82: 2019-11-01 | L82: 8 | M82: INE087B01017
A83: ANKITMETAL | B83: BE | C83: 0.45 | D83: 0.5 | E83: 0.45 | F83: 0.5 | G83: 0.5 | H83: 0.5 | I83: 8945 | J83: 4465.25 | K83: 2019-11-01 | L83: 5 | M83: INE106I01010
A84: ANSALAPI | B84: EQ | C84: 4.6 | D84: 4.6 | E84: 4.25 | F84: 4.45 | G84: 4.45 | H84: 4.4 | I84: 44817 | J84: 200471 | K84: 2019-11-01 | L84: 103 | M84: INE436A01026
A85: ANSALHSG | B85: EQ | C85: 5.2 | D85: 5.3 | E85: 4.95 | F85: 5.2 | G85: 5.2 | H85: 5.1 | I85: 42935 | J85: 218754.2 | K85: 2019-11-01 | L85: 135 | M85: INE880B01015
A86: ANTGRAPHIC | B86: BE | C86: 0.65 | D86: 0.7 | E86: 0.65 | F86: 0.7 | G86: 0.7 | H86: 0.7 | I86: 9394 | J86: 6246.3 | K86: 2019-11-01 | L86: 19 | M86: INE414B01021
A87: ANUP | B87: EQ | C87: 485.2 | D87: 487.45 | E87: 475.05 | F87: 483.4 | G87: 483 | H87: 486.65 | I87: 12394 | J87: 5972159.6 | K87: 2019-11-01 | L87: 1394 | M87: INE294Z01018
A88: APARINDS | B88: EQ | C88: 525 | D88: 531.8 | E88: 506.9 | F88: 512.55 | G88: 512 | H88: 534.5 | I88: 12258 | J88: 6325629.55 | K88: 2019-11-01 | L88: 1094 | M88: INE372A01015
A89: APCL | B89: EQ | C89: 150.9 | D89: 152.9 | E89: 146.65 | F89: 147.75 | G89: 147.25 | H89: 151.15 | I89: 2160 | J89: 324032.1 | K89: 2019-11-01 | L89: 128 | M89: INE071F01012
A90: APCOTEXIND | B90: EQ | C90: 166.35 | D90: 169 | E90: 164.25 | F90: 165.15 | G90: 165 | H90: 168.1 | I90: 40184 | J90: 6664514.1 | K90: 2019-11-01 | L90: 1041 | M90: INE116A01032
A91: APEX | B91: EQ | C91: 233.9 | D91: 240.25 | E91: 227.45 | F91: 232.2 | G91: 232.8 | H91: 236.9 | I91: 45862 | J91: 10752879.05 | K91: 2019-11-01 | L91: 1678 | M91: INE346W01013
A92: APLAPOLLO | B92: EQ | C92: 1497 | D92: 1500 | E92: 1455.3 | F92: 1481.15 | G92: 1480 | H92: 1452.95 | I92: 8220 | J92: 12167503.95 | K92: 2019-11-01 | L92: 1063 | M92: INE702C01019
A93: APLLTD | B93: EQ | C93: 550 | D93: 581.9 | E93: 546 | F93: 570.7 | G93: 571 | H93: 550.05 | I93: 423092 | J93: 240205291.6 | K93: 2019-11-01 | L93: 29356 | M93: INE901L01018
A94: APOLLO | B94: EQ | C94: 72.35 | D94: 81.55 | E94: 72 | F94: 79.45 | G94: 79.9 | H94: 72.35 | I94: 119486 | J94: 9253684.45 | K94: 2019-11-01 | L94: 2309 | M94: INE713T01010
A95: APOLLOHOSP | B95: EQ | C95: 1492.8 | D95: 1508 | E95: 1450.1 | F95: 1460 | G95: 1460.95 | H95: 1484.8 | I95: 551152 | J95: 809716222.7 | K95: 2019-11-01 | L95: 25678 | M95: INE437A01024
A96: APOLLOTYRE | B96: EQ | C96: 191.4 | D96: 196.75 | E96: 188.1 | F96: 189.2 | G96: 188.8 | H96: 190.3 | I96: 4995111 | J96: 961389396.6 | K96: 2019-11-01 | L96: 34821 | M96: INE438A01022
A97: APOLSINHOT | B97: EQ | C97: 795 | D97: 795 | E97: 771 | F97: 788.15 | G97: 789 | H97: 780.95 | I97: 950 | J97: 739414.9 | K97: 2019-11-01 | L97: 90 | M97: INE451F01024
A98: APTECHT | B98: EQ | C98: 176 | D98: 178.4 | E98: 170.6 | F98: 171.65 | G98: 171 | H98: 176.55 | I98: 234690 | J98: 40895833.95 | K98: 2019-11-01 | L98: 4173 | M98: INE266F01018
A99: ARCHIDPLY | B99: EQ | C99: 28 | D99: 29 | E99: 26.5 | F99: 28.3 | G99: 28.15 | H99: 28.15 | I99: 12481 | J99: 353789.05 | K99: 2019-11-01 | L99: 182 | M99: INE877I01016
A100: ARCHIES | B100: BE | C100: 18.5 | D100: 18.7 | E100: 18.25 | F100: 18.6 | G100: 18.6 | H100: 18.45 | I100: 15529 | J100: 286590.25 | K100: 2019-11-01 | L100: 70 | M100: INE731A01020
A101: ARCOTECH | B101: BE | C101: 1.8 | D101: 1.8 | E101: 1.8 | F101: 1.8 | G101: 1.8 | H101: 1.75 | I101: 8360 | J101: 15048 | K101: 2019-11-01 | L101: 16 | M101: INE574I01035
A102: ARIES | B102: EQ | C102: 64.35 | D102: 65.8 | E102: 62.85 | F102: 63.9 | G102: 63.85 | H102: 63.05 | I102: 16165 | J102: 1033216.75 | K102: 2019-11-01 | L102: 320 | M102: INE298I01015
A103: ARIHANT | B103: EQ | C103: 17 | D103: 18.5 | E103: 16.3 | F103: 18.1 | G103: 17.9 | H103: 18 | I103: 3174 | J103: 55153.65 | K103: 2019-11-01 | L103: 56 | M103: INE413D01011
A104: ARIHANTSUP | B104: BE | C104: 23.85 | D104: 25.8 | E104: 23.75 | F104: 24.6 | G104: 24.1 | H104: 25 | I104: 789 | J104: 19154.75 | K104: 2019-11-01 | L104: 22 | M104: INE643K01018
A105: ARMANFIN | B105: EQ | C105: 543.9 | D105: 543.9 | E105: 515.1 | F105: 520.5 | G105: 515.15 | H105: 532.8 | I105: 4028 | J105: 2138731 | K105: 2019-11-01 | L105: 320 | M105: INE109C01017
A106: AROGRANITE | B106: EQ | C106: 42.35 | D106: 42.6 | E106: 40.9 | F106: 41.95 | G106: 42 | H106: 40.85 | I106: 4530 | J106: 190068.9 | K106: 2019-11-01 | L106: 81 | M106: INE210C01013
A107: ARROWGREEN | B107: EQ | C107: 52.95 | D107: 53.05 | E107: 51.65 | F107: 53 | G107: 53 | H107: 52.35 | I107: 7534 | J107: 397584.6 | K107: 2019-11-01 | L107: 222 | M107: INE570D01018
A108: ARROWTEX | B108: EQ | C108: 10.75 | D108: 10.75 | E108: 9.6 | F108: 9.95 | G108: 9.95 | H108: 9.7 | I108: 2250 | J108: 22320.65 | K108: 2019-11-01 | L108: 29 | M108: INE933J01015
A109: ARSHIYA | B109: EQ | C109: 17.45 | D109: 18.2 | E109: 17.45 | F109: 17.85 | G109: 18 | H109: 17.9 | I109: 18191 | J109: 325850.85 | K109: 2019-11-01 | L109: 70 | M109: INE968D01022
A110: ARSSINFRA | B110: EQ | C110: 23.85 | D110: 25.8 | E110: 23.5 | F110: 25.4 | G110: 25.75 | H110: 24.6 | I110: 34412 | J110: 868322.15 | K110: 2019-11-01 | L110: 285 | M110: INE267I01010
A111: ARVIND | B111: EQ | C111: 50.3 | D111: 54 | E111: 50.1 | F111: 53.5 | G111: 53.4 | H111: 50.3 | I111: 2364346 | J111: 124899079.1 | K111: 2019-11-01 | L111: 11902 | M111: INE034A01011
A112: ARVINDFASN | B112: EQ | C112: 454.05 | D112: 454.05 | E112: 439.6 | F112: 441.3 | G112: 439.6 | H112: 453.7 | I112: 14794 | J112: 6595729 | K112: 2019-11-01 | L112: 973 | M112: INE955V01021
A113: ARVSMART | B113: EQ | C113: 102.4 | D113: 105 | E113: 100 | F113: 102.5 | G113: 101.15 | H113: 101.4 | I113: 12535 | J113: 1294510.95 | K113: 2019-11-01 | L113: 541 | M113: INE034S01021
A114: ASAHIINDIA | B114: EQ | C114: 211.95 | D114: 211.95 | E114: 201.7 | F114: 207.4 | G114: 206 | H114: 208.7 | I114: 21256 | J114: 4362250.45 | K114: 2019-11-01 | L114: 871 | M114: INE439A01020
A115: ASAHISONG | B115: EQ | C115: 155.6 | D115: 158 | E115: 151 | F115: 156.7 | G115: 156.9 | H115: 155.2 | I115: 4814 | J115: 749846.85 | K115: 2019-11-01 | L115: 181 | M115: INE228I01012
A116: ASAL | B116: EQ | C116: 35.05 | D116: 37 | E116: 34.05 | F116: 34.95 | G116: 34.75 | H116: 35.35 | I116: 11129 | J116: 391685.1 | K116: 2019-11-01 | L116: 142 | M116: INE900C01027
A117: ASHAPURMIN | B117: BE | C117: 32.8 | D117: 32.8 | E117: 30.4 | F117: 31.5 | G117: 32.45 | H117: 31.9 | I117: 22119 | J117: 694835.4 | K117: 2019-11-01 | L117: 104 | M117: INE348A01023
A118: ASHIANA | B118: EQ | C118: 95.35 | D118: 97.6 | E118: 95.25 | F118: 97.35 | G118: 96.75 | H118: 95.05 | I118: 32394 | J118: 3131323.05 | K118: 2019-11-01 | L118: 1153 | M118: INE365D01021
A119: ASHIMASYN | B119: EQ | C119: 8.15 | D119: 8.5 | E119: 8 | F119: 8 | G119: 8 | H119: 8.35 | I119: 39307 | J119: 322401.9 | K119: 2019-11-01 | L119: 197 | M119: INE440A01010
A120: ASHOKA | B120: EQ | C120: 103.25 | D120: 104.15 | E120: 101.45 | F120: 101.9 | G120: 102 | H120: 102.9 | I120: 238975 | J120: 24458231.8 | K120: 2019-11-01 | L120: 3819 | M120: INE442H01029
A121: ASHOKLEY | B121: EQ | C121: 76.75 | D121: 77.45 | E121: 75.2 | F121: 75.95 | G121: 76 | H121: 76.75 | I121: 24861078 | J121: 1897865811 | K121: 2019-11-01 | L121: 66870 | M121: INE208A01029
A122: ASIANHOTNR | B122: EQ | C122: 100.5 | D122: 104.05 | E122: 98.1 | F122: 99.2 | G122: 99.2 | H122: 100.3 | I122: 393 | J122: 39549.85 | K122: 2019-11-01 | L122: 92 | M122: INE363A01022
A123: ASIANPAINT | B123: EQ | C123: 1816 | D123: 1821 | E123: 1762 | F123: 1766.35 | G123: 1770 | H123: 1809.6 | I123: 1527660 | J123: 2716801084 | K123: 2019-11-01 | L123: 65734 | M123: INE021A01026
A124: ASIANTILES | B124: EQ | C124: 234 | D124: 241.45 | E124: 233.1 | F124: 236.3 | G124: 237 | H124: 238.7 | I124: 21469 | J124: 5068608.35 | K124: 2019-11-01 | L124: 1051 | M124: INE022I01019
A125: ASPINWALL | B125: EQ | C125: 144 | D125: 148.95 | E125: 144 | F125: 146 | G125: 146 | H125: 143 | I125: 2457 | J125: 356752.75 | K125: 2019-11-01 | L125: 23 | M125: INE991I01015
A126: ASTEC | B126: EQ | C126: 361 | D126: 374 | E126: 355.5 | F126: 361.65 | G126: 363.4 | H126: 368.9 | I126: 14434 | J126: 5249771.85 | K126: 2019-11-01 | L126: 781 | M126: INE563J01010
A127: ASTERDM | B127: EQ | C127: 138 | D127: 147 | E127: 135.55 | F127: 141.55 | G127: 142.45 | H127: 135.05 | I127: 508429 | J127: 71706066.45 | K127: 2019-11-01 | L127: 14114 | M127: INE914M01019
A128: ASTRAL | B128: EQ | C128: 1133 | D128: 1133 | E128: 1112 | F128: 1116.6 | G128: 1114.8 | H128: 1116.95 | I128: 80249 | J128: 90183458.45 | K128: 2019-11-01 | L128: 3979 | M128: INE006I01046
A129: ASTRAMICRO | B129: EQ | C129: 79.75 | D129: 79.75 | E129: 76.7 | F129: 77.2 | G129: 77.3 | H129: 78.8 | I129: 69454 | J129: 5409588 | K129: 2019-11-01 | L129: 770 | M129: INE386C01029
A130: ASTRAZEN | B130: EQ | C130: 2717.9 | D130: 2743.95 | E130: 2681.2 | F130: 2700.95 | G130: 2700 | H130: 2725.1 | I130: 10933 | J130: 29584979.9 | K130: 2019-11-01 | L130: 1781 | M130: INE203A01020
A131: ASTRON | B131: EQ | C131: 48.4 | D131: 48.4 | E131: 48.4 | F131: 48.4 | G131: 48.4 | H131: 53.75 | I131: 77391 | J131: 3745724.4 | K131: 2019-11-01 | L131: 464 | M131: INE646X01014
A132: ATFL | B132: EQ | C132: 666 | D132: 666 | E132: 629.1 | F132: 636.35 | G132: 637.7 | H132: 646.85 | I132: 17782 | J132: 11391479.45 | K132: 2019-11-01 | L132: 1042 | M132: INE209A01019
A133: ATLANTA | B133: BE | C133: 7.05 | D133: 7.05 | E133: 6.8 | F133: 6.85 | G133: 6.8 | H133: 7.15 | I133: 14395 | J133: 98731.8 | K133: 2019-11-01 | L133: 74 | M133: INE285H01022
A134: ATUL | B134: EQ | C134: 4320 | D134: 4348.95 | E134: 4274 | F134: 4332.4 | G134: 4324.9 | H134: 4295.25 | I134: 12649 | J134: 54635525.25 | K134: 2019-11-01 | L134: 3729 | M134: INE100A01010
A135: ATULAUTO | B135: EQ | C135: 235 | D135: 236 | E135: 228 | F135: 229.15 | G135: 228 | H135: 232.3 | I135: 27634 | J135: 6385956.7 | K135: 2019-11-01 | L135: 1046 | M135: INE951D01028
A136: AUBANK | B136: EQ | C136: 690 | D136: 695 | E136: 666.05 | F136: 688.4 | G136: 687.75 | H136: 685.65 | I136: 477756 | J136: 331052034.9 | K136: 2019-11-01 | L136: 11019 | M136: INE949L01017
A137: AURIONPRO | B137: EQ | C137: 73.1 | D137: 75.85 | E137: 72.1 | F137: 74.45 | G137: 74.75 | H137: 73.6 | I137: 7954 | J137: 585898.35 | K137: 2019-11-01 | L137: 215 | M137: INE132H01018
A138: AUROPHARMA | B138: EQ | C138: 472.4 | D138: 482.9 | E138: 467.5 | F138: 480.5 | G138: 480.55 | H138: 469.85 | I138: 2983662 | J138: 1419501997 | K138: 2019-11-01 | L138: 50370 | M138: INE406A01037
A139: AUSOMENT | B139: EQ | C139: 27.15 | D139: 29.65 | E139: 26.1 | F139: 27.55 | G139: 26.5 | H139: 28.4 | I139: 2687 | J139: 74632.4 | K139: 2019-11-01 | L139: 71 | M139: INE218C01016
A140: AUTOAXLES | B140: EQ | C140: 978 | D140: 980 | E140: 949 | F140: 955.2 | G140: 955 | H140: 969.2 | I140: 6236 | J140: 5990248.4 | K140: 2019-11-01 | L140: 716 | M140: INE449A01011
A141: AUTOIND | B141: EQ | C141: 24.5 | D141: 24.5 | E141: 24 | F141: 24.4 | G141: 24.5 | H141: 24.2 | I141: 15152 | J141: 369129.95 | K141: 2019-11-01 | L141: 127 | M141: INE718H01014
A142: AUTOLITIND | B142: EQ | C142: 22.45 | D142: 22.7 | E142: 20.5 | F142: 22.05 | G142: 22.2 | H142: 22.15 | I142: 22243 | J142: 480441.5 | K142: 2019-11-01 | L142: 166 | M142: INE448A01013
A143: AVADHSUGAR | B143: EQ | C143: 307 | D143: 319.65 | E143: 304.6 | F143: 306.8 | G143: 305 | H143: 291.4 | I143: 415712 | J143: 129600934.4 | K143: 2019-11-01 | L143: 9407 | M143: INE349W01017
A144: AVANTIFEED | B144: EQ | C144: 454.9 | D144: 455.75 | E144: 441.75 | F144: 451 | G144: 451.2 | H144: 453.45 | I144: 215498 | J144: 96874655.3 | K144: 2019-11-01 | L144: 6992 | M144: INE871C01038
A145: AVTNPL | B145: EQ | C145: 25.85 | D145: 25.85 | E145: 24.6 | F145: 24.8 | G145: 24.65 | H145: 25.4 | I145: 32232 | J145: 815011.2 | K145: 2019-11-01 | L145: 281 | M145: INE488D01021
A146: AXISBANK | B146: EQ | C146: 736 | D146: 750 | E146: 728.1 | F146: 748.3 | G146: 749.4 | H146: 736.35 | I146: 8484197 | J146: 6304535464 | K146: 2019-11-01 | L146: 89752 | M146: INE238A01034
A147: AXISCADES | B147: EQ | C147: 67.7 | D147: 72.6 | E147: 61.35 | F147: 70.35 | G147: 70 | H147: 69.15 | I147: 187144 | J147: 12710664.35 | K147: 2019-11-01 | L147: 3157 | M147: INE555B01013
A148: AXISGOLD | B148: EQ | C148: 3398 | D148: 3414 | E148: 3390.35 | F148: 3398.7 | G148: 3399.9 | H148: 3390.05 | I148: 386 | J148: 1312560.45 | K148: 2019-11-01 | L148: 87 | M148: INF846K01347
A149: AXISNIFTY | B149: EQ | C149: 1230.36 | D149: 1230.36 | E149: 1219.08 | F149: 1227.1 | G149: 1227.1 | H149: 1229.32 | I149: 64 | J149: 78156.12 | K149: 2019-11-01 | L149: 9 | M149: INF846K01ZL0
A150: AYMSYNTEX | B150: EQ | C150: 33.7 | D150: 33.9 | E150: 32.5 | F150: 32.55 | G150: 32.5 | H150: 33.65 | I150: 3544 | J150: 117375.7 | K150: 2019-11-01 | L150: 57 | M150: INE193B01039
A151: BAGFILMS | B151: EQ | C151: 1.75 | D151: 1.85 | E151: 1.75 | F151: 1.75 | G151: 1.75 | H151: 1.8 | I151: 211896 | J151: 381286.45 | K151: 2019-11-01 | L151: 130 | M151: INE116D01028
A152: BAJAJ-AUTO | B152: EQ | C152: 3250 | D152: 3289 | E152: 3190 | F152: 3232.65 | G152: 3230 | H152: 3247.35 | I152: 748062 | J152: 2433040797 | K152: 2019-11-01 | L152: 44741 | M152: INE917I01010
A153: BAJAJCON | B153: EQ | C153: 252.05 | D153: 252.25 | E153: 245.75 | F153: 248.55 | G153: 248.5 | H153: 251.4 | I153: 188399 | J153: 46841406.95 | K153: 2019-11-01 | L153: 3261 | M153: INE933K01021
A154: BAJAJELEC | B154: EQ | C154: 380.7 | D154: 380.7 | E154: 375 | F154: 376 | G154: 375.95 | H154: 378.65 | I154: 59315 | J154: 22401713.4 | K154: 2019-11-01 | L154: 1974 | M154: INE193E01025
A155: BAJAJFINSV | B155: EQ | C155: 8168 | D155: 8429 | E155: 8110.5 | F155: 8384.75 | G155: 8394.85 | H155: 8134.35 | I155: 656439 | J155: 5479608036 | K155: 2019-11-01 | L155: 56137 | M155: INE918I01018
A156: BAJAJHIND | B156: EQ | C156: 6.4 | D156: 6.95 | E156: 6.4 | F156: 6.8 | G156: 6.85 | H156: 6.25 | I156: 2630448 | J156: 17790349.75 | K156: 2019-11-01 | L156: 3065 | M156: INE306A01021
A157: BAJAJHLDNG | B157: EQ | C157: 3668.95 | D157: 3738.1 | E157: 3668.95 | F157: 3698.2 | G157: 3700 | H157: 3669.7 | I157: 55997 | J157: 207152821.8 | K157: 2019-11-01 | L157: 8465 | M157: INE118A01012
A158: BAJFINANCE | B158: EQ | C158: 4029 | D158: 4110 | E158: 4021 | F158: 4069.85 | G158: 4075 | H158: 4027.55 | I158: 1875612 | J158: 7640475726 | K158: 2019-11-01 | L158: 86761 | M158: INE296A01024
A159: BALAJITELE | B159: EQ | C159: 54.25 | D159: 55.6 | E159: 52.95 | F159: 55.05 | G159: 55.05 | H159: 54.1 | I159: 80049 | J159: 4373642.35 | K159: 2019-11-01 | L159: 573 | M159: INE794B01026
A160: BALAMINES | B160: EQ | C160: 323 | D160: 327.5 | E160: 319.1 | F160: 321.6 | G160: 321 | H160: 323.95 | I160: 12472 | J160: 4017410.05 | K160: 2019-11-01 | L160: 560 | M160: INE050E01027
A161: BALAXI | B161: EQ | C161: 83.55 | D161: 83.55 | E161: 77 | F161: 77.35 | G161: 81.8 | H161: 79.6 | I161: 156 | J161: 12388.2 | K161: 2019-11-01 | L161: 9 | M161: INE618N01014
A162: BALKRISHNA | B162: BE | C162: 19 | D162: 19.75 | E162: 19 | F162: 19.45 | G162: 19.65 | H162: 19.4 | I162: 18797 | J162: 362367.95 | K162: 2019-11-01 | L162: 55 | M162: INE875R01011
A163: BALKRISIND | B163: EQ | C163: 881 | D163: 899.8 | E163: 867.6 | F163: 872.8 | G163: 871 | H163: 884.7 | I163: 486874 | J163: 430460102.4 | K163: 2019-11-01 | L163: 10986 | M163: INE787D01026
A164: BALLARPUR | B164: EQ | C164: 0.5 | D164: 0.5 | E164: 0.45 | F164: 0.5 | G164: 0.5 | H164: 0.5 | I164: 1032830 | J164: 503277.6 | K164: 2019-11-01 | L164: 261 | M164: INE294A01037
A165: BALMLAWRIE | B165: EQ | C165: 198 | D165: 200.9 | E165: 195.5 | F165: 197.25 | G165: 197 | H165: 197.45 | I165: 98679 | J165: 19452916.45 | K165: 2019-11-01 | L165: 2061 | M165: INE164A01016
A166: BALPHARMA | B166: EQ | C166: 39.45 | D166: 43.45 | E166: 39.4 | F166: 42.7 | G166: 43.35 | H166: 39.15 | I166: 24780 | J166: 1037274.75 | K166: 2019-11-01 | L166: 438 | M166: INE083D01012
A167: BALRAMCHIN | B167: EQ | C167: 164.6 | D167: 170.35 | E167: 163 | F167: 164.5 | G167: 164.5 | H167: 162.95 | I167: 1924934 | J167: 321404108.1 | K167: 2019-11-01 | L167: 23470 | M167: INE119A01028
A168: BANARBEADS | B168: EQ | C168: 35.25 | D168: 37 | E168: 34.35 | F168: 37 | G168: 37 | H168: 35.25 | I168: 5811 | J168: 212145.2 | K168: 2019-11-01 | L168: 57 | M168: INE655B01011
A169: BANARISUG | B169: EQ | C169: 1197 | D169: 1220 | E169: 1169 | F169: 1208.7 | G169: 1212 | H169: 1142.2 | I169: 919 | J169: 1101523.5 | K169: 2019-11-01 | L169: 297 | M169: INE459A01010
A170: BANCOINDIA | B170: EQ | C170: 116.55 | D170: 120.05 | E170: 113.65 | F170: 115.45 | G170: 116.5 | H170: 116.55 | I170: 79593 | J170: 9295209.7 | K170: 2019-11-01 | L170: 2278 | M170: INE213C01025
A171: BANDHANBNK | B171: EQ | C171: 616.95 | D171: 618.9 | E171: 594.2 | F171: 599 | G171: 597.6 | H171: 612.3 | I171: 1740679 | J171: 1056171464 | K171: 2019-11-01 | L171: 63204 | M171: INE545U01014
A172: BANG | B172: EQ | C172: 20.45 | D172: 20.8 | E172: 18.2 | F172: 19.95 | G172: 20 | H172: 19.55 | I172: 8700 | J172: 173508.45 | K172: 2019-11-01 | L172: 547 | M172: INE863I01016
A173: BANKBARODA | B173: EQ | C173: 97.5 | D173: 100.95 | E173: 96.9 | F173: 100 | G173: 99.9 | H173: 97.2 | I173: 39869804 | J173: 3978311658 | K173: 2019-11-01 | L173: 99682 | M173: INE028A01039
A174: BANKBEES | B174: EQ | C174: 3050 | D174: 3098 | E174: 3050 | F174: 3091.45 | G174: 3096 | H174: 3068.52 | I174: 14935 | J174: 46075625.46 | K174: 2019-11-01 | L174: 660 | M174: INF732E01078
A175: BANKINDIA | B175: EQ | C175: 71.5 | D175: 75.55 | E175: 70.4 | F175: 71 | G175: 70.65 | H175: 71.25 | I175: 40226962 | J175: 2935060566 | K175: 2019-11-01 | L175: 102506 | M175: INE084A01016
A176: BANSWRAS | B176: EQ | C176: 67.05 | D176: 69.1 | E176: 65.7 | F176: 66.75 | G176: 67.9 | H176: 67.05 | I176: 4257 | J176: 286627.1 | K176: 2019-11-01 | L176: 65 | M176: INE629D01012
A177: BARTRONICS | B177: BE | C177: 1.3 | D177: 1.35 | E177: 1.3 | F177: 1.35 | G177: 1.35 | H177: 1.3 | I177: 2877 | J177: 3777.15 | K177: 2019-11-01 | L177: 14 | M177: INE855F01034
A178: BASF | B178: EQ | C178: 1013 | D178: 1020.8 | E178: 990 | F178: 996.3 | G178: 999 | H178: 1004 | I178: 17704 | J178: 17803358.55 | K178: 2019-11-01 | L178: 1227 | M178: INE373A01013
A179: BASML | B179: EQ | C179: 164.75 | D179: 169.4 | E179: 145.55 | F179: 150.55 | G179: 150 | H179: 154 | I179: 2893 | J179: 435507.7 | K179: 2019-11-01 | L179: 126 | M179: INE186H01014
A180: BATAINDIA | B180: EQ | C180: 1802 | D180: 1810.15 | E180: 1732.9 | F180: 1741.25 | G180: 1741 | H180: 1806.9 | I180: 841640 | J180: 1483491462 | K180: 2019-11-01 | L180: 33868 | M180: INE176A01028
A181: BAYERCROP | B181: EQ | C181: 3630 | D181: 3820 | E181: 3613.8 | F181: 3732 | G181: 3745 | H181: 3593.9 | I181: 21084 | J181: 78908646.35 | K181: 2019-11-01 | L181: 3735 | M181: INE462A01022
A182: BBL | B182: EQ | C182: 842 | D182: 880.05 | E182: 842 | F182: 860.35 | G182: 855.9 | H182: 849.75 | I182: 13591 | J182: 11777503.65 | K182: 2019-11-01 | L182: 1255 | M182: INE464A01028
A183: BBTC | B183: EQ | C183: 1190 | D183: 1241.35 | E183: 1176 | F183: 1216.65 | G183: 1220 | H183: 1190.45 | I183: 329755 | J183: 401855132.1 | K183: 2019-11-01 | L183: 16664 | M183: INE050A01025
A184: BCG | B184: EQ | C184: 2.75 | D184: 2.85 | E184: 2.65 | F184: 2.75 | G184: 2.7 | H184: 2.7 | I184: 377645 | J184: 1029175.85 | K184: 2019-11-01 | L184: 273 | M184: INE425B01027
A185: BCP | B185: EQ | C185: 7.8 | D185: 7.8 | E185: 7.7 | F185: 7.8 | G185: 7.8 | H185: 7.65 | I185: 54225 | J185: 417950.5 | K185: 2019-11-01 | L185: 19 | M185: INE905P01028
A186: BDL | B186: EQ | C186: 328 | D186: 343.1 | E186: 326.95 | F186: 331.55 | G186: 330 | H186: 328.35 | I186: 82636 | J186: 27665030.85 | K186: 2019-11-01 | L186: 3643 | M186: INE171Z01018
A187: BEARDSELL | B187: EQ | C187: 12.4 | D187: 12.4 | E187: 10.65 | F187: 11 | G187: 11 | H187: 10.85 | I187: 1838 | J187: 20129.75 | K187: 2019-11-01 | L187: 75 | M187: INE520H01022
A188: BEDMUTHA | B188: EQ | C188: 12 | D188: 12 | E188: 9.4 | F188: 11.3 | G188: 11.4 | H188: 10.85 | I188: 108202 | J188: 1151184.2 | K188: 2019-11-01 | L188: 1060 | M188: INE844K01012
A189: BEL | B189: EQ | C189: 118.8 | D189: 121.75 | E189: 118.1 | F189: 120.4 | G189: 120.25 | H189: 118.15 | I189: 8565591 | J189: 1028102441 | K189: 2019-11-01 | L189: 37345 | M189: INE263A01024
A190: BEML | B190: EQ | C190: 1029.95 | D190: 1060 | E190: 1025 | F190: 1046.45 | G190: 1036 | H190: 1035.65 | I190: 564134 | J190: 588114246 | K190: 2019-11-01 | L190: 20363 | M190: INE258A01016
A191: BEPL | B191: EQ | C191: 54.9 | D191: 56.7 | E191: 52.65 | F191: 53.05 | G191: 52.65 | H191: 54.75 | I191: 708139 | J191: 38617853.65 | K191: 2019-11-01 | L191: 3977 | M191: INE922A01025
A192: BERGEPAINT | B192: EQ | C192: 518.95 | D192: 527.65 | E192: 502.65 | F192: 508.5 | G192: 509 | H192: 526.95 | I192: 3824378 | J192: 1963276656 | K192: 2019-11-01 | L192: 103788 | M192: INE463A01038
A193: BFINVEST | B193: EQ | C193: 331.1 | D193: 377 | E193: 330.15 | F193: 356.45 | G193: 357 | H193: 333 | I193: 1114311 | J193: 402184874.1 | K193: 2019-11-01 | L193: 30484 | M193: INE878K01010
A194: BFUTILITIE | B194: EQ | C194: 271.9 | D194: 295.5 | E194: 270.25 | F194: 295.5 | G194: 295.5 | H194: 268.65 | I194: 878823 | J194: 256585635 | K194: 2019-11-01 | L194: 7754 | M194: INE243D01012
A195: BGLOBAL | B195: BE | C195: 2.1 | D195: 2.1 | E195: 1.95 | F195: 2.1 | G195: 2.1 | H195: 2 | I195: 9872 | J195: 20504.4 | K195: 2019-11-01 | L195: 24 | M195: INE224M01013
A196: BGRENERGY | B196: EQ | C196: 33 | D196: 34 | E196: 33 | F196: 33.7 | G196: 33.7 | H196: 33.2 | I196: 85962 | J196: 2897506.55 | K196: 2019-11-01 | L196: 1158 | M196: INE661I01014
A197: BHAGERIA | B197: EQ | C197: 112.8 | D197: 115 | E197: 109.05 | F197: 112.95 | G197: 111 | H197: 110.25 | I197: 12926 | J197: 1444907.6 | K197: 2019-11-01 | L197: 562 | M197: INE354C01027
A198: BHAGYANGR | B198: EQ | C198: 19.4 | D198: 19.6 | E198: 19.05 | F198: 19.15 | G198: 19.15 | H198: 19.3 | I198: 1720 | J198: 33088.6 | K198: 2019-11-01 | L198: 21 | M198: INE458B01036
A199: BHAGYAPROP | B199: EQ | C199: 20 | D199: 21.6 | E199: 19.5 | F199: 19.85 | G199: 19.85 | H199: 20.85 | I199: 1477 | J199: 29741.45 | K199: 2019-11-01 | L199: 11 | M199: INE363W01018
A200: BHANDARI | B200: EQ | C200: 1.1 | D200: 1.25 | E200: 1.1 | F200: 1.25 | G200: 1.25 | H200: 1.1 | I200: 208098 | J200: 248025.25 | K200: 2019-11-01 | L200: 103 | M200: INE474E01029
... 1491 more rows

Sheet Sheet1 (hidden)

Sheet Sheet3 (hidden)

Sheet Sheet4 (hidden)

Sheet Sheet5 (hidden)
